{"text_format":"1","workbook":"xlsx","n_sheets":12,"sheets":["EMPRESAS ELABORADORAS","CAPA","INFORMAÇÕES GERAIS","LISTA_PATRIMÔNIO","LISTAS","IMÓVEIS","ORÇAMENTO","MANUAL IDE-SISEMA","DEMONSTRATIVO DE VIABILIDADE","CAPACIDADE DE PAGAMENTO","PATRIMÔNIO","REGRAS"],"not_rendered":{"charts":0,"images":13,"macros":1,"external_links":4,"defined_names":112,"comments":1,"pivot_tables":0},"unopened":[],"bounds":{"document_bytes":16777216,"sheet_cells":100000,"rows_first":2000,"rows_last":500,"rows_between":2000,"halvings":0,"cell_chars":16384,"cell_head_chars":4096},"cells_cut":0,"cells_raw":0,"read":"whole","date_system":"1900"}

{"sheet":"EMPRESAS ELABORADORAS","index":0,"n_rows":11,"n_cols":6,"rows_kept":11,"cut":false,"hidden":true,"merged":[]}
["NOME","CNPJ","ENDEREÇO","CIDADE","TELEFONE","EMAIL"]
["AGROMINAS - APA ASSESSORIA E PLANEJAMENTO AGROPECUÁRIO LTDA",7357636000134,"RUA DO BÁLSAMO, Nº 500, BAIRRO CAMPESTRE","SÃO GOTARDO","(34)  3671-3425","AGROMINASSG@YAHOO.COM.BR"]
["AGROSOLUÇÕES - AFA ASSESSORIA PROJETOS E PLANEJAMENTOS LTDA",33478456000110,"AV. RUI BARBOSA, 174A, CENTRO","SÃO GOTARDO","(34) 3671-3334","AGROSOLUCOES@AGROSOLUCOESLTDA.COM.BR"]
["COOPADAP - COOPERATIVA AGROPECUÁRIA DO ALTO PARANAÍBA",86675642000106,"ROD MG 235 KM 89, 443 - GUARDA DOS FERREIROS","SÃO GOTARDO","(34) 3616-1200","DEBORAPRATES@COOPADAP.COM.BR"]
["ÉLCIO EDUARDO URBANO JÚNIOR",7244640692,"RUA CORONEL FONTE BOA - Nº 725 - CENTRO","SÃO GOTARDO","(34) 99823-4210","URBANOELCIO@YAHOO.COM.BR"]
["EMATER-MG",19198118000102,"RUA BENTO FERREIRA DOS SANTOS, 160 S02, CENTRO","SÃO GOTARDO","(34) 3671-1355","SAO.GOTARDO@EMATER.MG.GOV.BR"]
["FORTPLAN - VICTOR SATORU ALVES MUKAEDA 10149154658",41465317000180,"AV. TABELIÃO JOÃO LOPES, Nº 1064, CAMPESTRE","SÃO GOTARDO","(34) 99944-7158","FORTPLAN@OUTLOOK.COM"]
["NIVALDO LUCAS MARTINS",10839110669,"RUA CURITIBA, N° 95, BAIRRO SANTA TEREZINHA","SÃO GOTARDO","(34) 99931-0052","THIAGOFERNANDES@SHIMADAAGRO.COM.BR"]
["NOVA CONSULTORIA - JUSCELINO ALEXANDRINO MACHADO EIRELI",14409336000117,"AV. PRESIDENTE VARGAS, 245, CENTRO","SÃO GOTARDO","(34) 3671-2396","NOVACONSULTORIAEPROJETOS@HOTMAIL.COM"]
["PAULO MITURU YAMAGAMI",97037680834,"AV. RIO TOCANTINS, N° 70, BAIRRO SOL NASCENTE","SÃO GOTARDO","(34) 99983-0655","AGROLOGICA@YMAIL.COM"]
["PROGEO - ISAIAS DE SOUZA SANTOS",29368223000198,"RUA TRISTAO FURTADO, Nº 114, CENTRO","RIO PARANAÍBA","(34) 99961-9993","PROGEORP@GMAIL.COM"]

{"sheet":"CAPA","index":1,"n_rows":42,"n_cols":32,"rows_kept":42,"cut":false,"hidden":false,"merged":[[23,23,24,26],[23,27,24,44],[17,23,18,25],[39,23,39,29],[39,30,39,35],[35,23,35,25],[35,26,35,30],[37,23,37,30],[41,23,41,29],[1,0,1,44],[14,23,15,44],[17,0,18,3],[17,4,18,21],[26,0,27,5],[26,6,27,21],[26,23,27,29],[26,30,27,44],[23,0,24,3],[23,4,24,21],[17,26,18,44],[20,23,21,26],[20,27,21,44],[33,29,33,31],[33,23,33,28],[20,0,21,3],[20,4,21,12],[14,0,15,21],[41,0,41,10],[41,11,41,14],[33,0,33,3],[33,4,33,18],[37,0,37,6],[39,0,39,7],[30,0,31,44],[41,30,41,40],[37,7,37,12],[37,31,37,35],[39,8,39,13],[35,8,35,20],[35,0,35,7]]}
[]
[]
[]
[]
[]
[]
[null,null,null,null,null,null,null,null,null,null,null,null,2]
[]
[]
[]
[]
[]
[]
[]
["EMPRESA ELABORADORA",null,null,null,null,null,null,null,null,null,null,null,null,null,null,null,null,null,null,null,null,null,null,"PROPONENTE"]
[]
[]
["EMPRESA:",null,null,null,{"$f":"IF('INFORMAÇÕES GERAIS'!G9=0,\"-\",UPPER('INFORMAÇÕES GERAIS'!G9))","v":"-"},null,null,null,null,null,null,null,null,null,null,null,null,null,null,null,null,null,null,"NOME:",null,null,{"$f":"IF('INFORMAÇÕES GERAIS'!F19=0,\"-\",UPPER('INFORMAÇÕES GERAIS'!F19))","v":"-"}]
[]
[]
["CPF/CNPJ:",null,null,null,{"$f":"IF('INFORMAÇÕES GERAIS'!AJ9=0,\"-\",'INFORMAÇÕES GERAIS'!AJ9)","v":"-"},null,null,null,null,null,null,null,null,null,null,null,null,null,null,null,null,null,null,"CPF/CNPJ:",null,null,null,{"$f":"IF('INFORMAÇÕES GERAIS'!AJ19=0,\"-\",'INFORMAÇÕES GERAIS'!AJ19)","v":"-"}]
[]
[]
["TELEFONE:",null,null,null,{"$f":"IF('INFORMAÇÕES GERAIS'!F13=\"\",\"-\",'INFORMAÇÕES GERAIS'!F13)","v":"-"},null,null,null,null,null,null,null,null,null,null,null,null,null,null,null,null,null,null,"TELEFONE:",null,null,null,{"$f":"IF('INFORMAÇÕES GERAIS'!T23=\"-\",\"\",'INFORMAÇÕES GERAIS'!T23)","v":0}]
[]
[]
["RESP. TÉCNICO:",null,null,null,null,null,{"$f":"IF('INFORMAÇÕES GERAIS'!H15=0,\"-\",UPPER('INFORMAÇÕES GERAIS'!H15))","v":"-"},null,null,null,null,null,null,null,null,null,null,null,null,null,null,null,null,"CONTA CORRENTE:",null,null,null,null,null,null,{"$f":"IF('INFORMAÇÕES GERAIS'!I23=0,\"-\",'INFORMAÇÕES GERAIS'!I23)","v":"-"}]
[]
[]
[]
["INFORMAÇÕES DO PROJETO"]
[]
[]
["CULTURA:",null,null,null,{"$f":"IF('INFORMAÇÕES GERAIS'!E59=0,\"-\",UPPER(CULTURA))","v":"-"},null,null,null,null,null,null,null,null,null,null,null,null,null,null,null,null,null,null,"TAXA DE JUROS:",null,null,null,null,null,{"$f":"IF(TAXA_JUROS=0,\"-\",TAXA_JUROS)","v":"-"}]
[]
["LINHA DE CRÉDITO:",null,null,null,null,null,null,null,{"$f":"IF(LINHA_CRÉDITO=\"\",\"-\",LINHA_CRÉDITO)","v":"-"},null,null,null,null,null,null,null,null,null,null,null,null,null,null,"PRAZO:",null,null,{"$f":"IF(PRAZO_PROJETO=0,\"-\",PRAZO_PROJETO)","v":"-"}]
[]
["VALOR ORÇADO:",null,null,null,null,null,null,{"$f":"IF(VALOR_ORÇADO=0,\"-\",VALOR_ORÇADO)","v":"-"},null,null,null,null,null,null,null,null,null,null,null,null,null,null,null,"VALOR FINANCIADO:",null,null,null,null,null,null,null,{"$f":"IF(VALOR_FINANCIADO=0,\"-\",VALOR_FINANCIADO)","v":"-"}]
[]
["RECEITA ESTIMADA:",null,null,null,null,null,null,null,{"$f":"IF(RECEITA_ESTIMADA=0,\"-\",RECEITA_ESTIMADA)","v":"-"},null,null,null,null,null,null,null,null,null,null,null,null,null,null,"ÁREA FINANCIADA:",null,null,null,null,null,null,{"$f":"IF(ÁREA_FINANCIADA=0,\"-\",ÁREA_FINANCIADA)","v":"-"}]
[]
["PRODUÇÃO ESTIMADA (ton):",null,null,null,null,null,null,null,null,null,null,{"$f":"IF('INFORMAÇÕES GERAIS'!AM69=\"-\",\"-\",'INFORMAÇÕES GERAIS'!AM69)","v":"-"},null,null,null,null,null,null,null,null,null,null,null,"DATA DO PROJETO:",null,null,null,null,null,null,{"$f":"IF('INFORMAÇÕES GERAIS'!AF55=\"\",\"-\",CONCATENATE(IF('INFORMAÇÕES GERAIS'!AF55<10,CONCATENATE(\"0\",'INFORMAÇÕES GERAIS'!AF55),'INFORMAÇÕES GERAIS'!AF55),\" DE \",'INFORMAÇÕES GERAIS'!AI55,\" DE \",'INFORMAÇÕES GERAIS'!AO55))","v":"-"}]

{"sheet":"INFORMAÇÕES GERAIS","index":2,"n_rows":112,"n_cols":46,"rows_kept":112,"cut":false,"hidden":true,"merged":[[88,29,88,36],[76,32,76,35],[76,8,76,17],[76,0,76,7],[76,23,76,31],[88,37,88,44],[80,0,80,14],[80,15,80,18],[80,23,80,37],[80,38,80,41],[82,41,82,44],[82,0,82,13],[82,14,82,17],[82,23,82,40],[78,23,78,32],[78,33,78,36],[78,18,78,21],[78,0,78,17],[86,29,87,36],[86,37,87,44],[60,19,60,21],[60,36,60,40],[72,23,72,38],[70,32,70,37],[70,0,70,9],[70,23,70,31],[66,23,66,31],[68,0,68,9],[66,0,66,11],[66,12,66,16],[70,10,70,15],[72,14,72,18],[72,39,72,44],[68,38,68,44],[62,7,62,20],[52,0,52,44],[88,22,88,28],[86,22,87,28],[86,18,87,21],[88,18,88,21],[86,5,87,17],[54,31,54,32],[54,23,54,30],[54,0,54,7],[54,8,54,21],[86,0,87,4],[88,0,88,4],[88,5,88,17],[64,23,64,36],[68,23,68,37],[64,0,64,13],[66,32,66,36],[72,0,72,13],[62,23,62,34],[60,42,60,44],[60,23,60,35],[58,0,58,3],[58,4,58,10],[60,13,60,17],[40,0,40,5],[40,6,40,27],[40,33,40,44],[40,28,40,32],[42,16,42,25],[42,26,42,29],[42,30,42,40],[42,41,42,44],[50,16,50,25],[50,26,50,29],[50,30,50,40],[50,41,50,44],[48,28,48,32],[50,5,50,15],[50,0,50,4],[26,10,26,11],[32,0,32,5],[32,6,32,27],[32,33,32,44],[32,28,32,32],[28,0,28,44],[30,0,30,6],[38,7,38,28],[38,29,38,34],[38,35,38,44],[30,29,30,34],[34,0,34,4],[34,5,34,15],[38,0,38,6],[36,0,36,44],[34,16,34,25],[34,26,34,29],[34,30,34,40],[34,41,34,44],[58,31,58,40],[6,0,6,44],[16,0,16,44],[22,26,22,29],[18,0,18,4],[18,35,18,44],[20,0,20,4],[20,29,20,32],[8,6,8,30],[10,5,10,28],[12,5,12,18],[14,7,14,29],[18,5,18,29],[20,5,20,28],[22,19,22,25],[22,30,22,44],[22,0,22,7],[22,8,22,13],[12,0,12,4],[12,19,12,22],[12,23,12,44],[18,30,18,34],[14,0,14,6],[20,33,20,44],[74,7,74,21],[8,31,8,34],[8,35,8,45],[10,0,10,4],[10,29,10,32],[10,33,10,44],[22,14,22,18],[104,0,104,7],[98,0,98,7],[96,0,96,7],[94,0,94,44],[102,8,102,44],[104,8,104,44],[98,8,98,44],[96,8,96,44],[102,0,102,7],[84,0,84,44],[90,0,90,4],[90,5,90,17],[90,18,90,21],[24,0,24,44],[30,35,30,44],[30,7,30,28],[26,0,26,9],[54,40,54,42],[56,0,56,8],[90,22,90,28],[90,29,90,36],[90,37,90,44],[110,0,110,19],[111,0,111,19],[109,25,109,44],[110,25,110,44],[111,25,111,44],[100,0,100,7],[100,8,100,44],[109,0,109,19],[92,0,92,44],[91,0,91,44],[56,23,56,27],[56,28,56,44],[56,9,56,12],[62,35,62,44],[58,23,58,30],[60,0,60,11],[74,23,74,31],[74,32,74,35],[74,0,74,6],[8,0,8,5],[14,30,14,34],[14,35,14,44],[89,0,89,4],[89,5,89,17],[89,18,89,21],[89,22,89,28],[89,29,89,36],[89,37,89,44],[42,0,42,4],[42,5,42,15],[46,0,46,6],[46,7,46,28],[46,29,46,34],[46,35,46,44],[44,0,44,44],[48,0,48,5],[48,6,48,27],[48,33,48,44],[68,10,68,15],[62,0,62,6],[64,14,64,21],[64,37,64,44],[54,34,54,38]]}
[]
[]
[]
[]
[]
[]
["REPONSÁVEL PELA ELABORAÇÃO DO PROJETO",null,null,null,null,null,null,null,null,null,null,null,null,null,null,null,null,null,null,null,null,null,null,null,null,null,null,null,null,null,null,null,null,null,null,null,null,null,null,null,null,null,null,null,null,{"$f":"IF(OR(G9=\"\",AJ9=\"\",F11=\"\",AH11=\"\",F13=\"\",X13=\"\",H15=\"\",AJ15=\"\"),\"AUSENTE\",\"OK\")","v":"AUSENTE"}]
[]
["ELABORADOR:",null,null,null,null,null,null,null,null,null,null,null,null,null,null,null,null,null,null,null,null,null,null,null,null,null,null,null,null,null,null,"CPF/CNPJ:",null,null,null,{"$f":"IFERROR(VLOOKUP(G9,'EMPRESAS ELABORADORAS'!A2:F11,2,0),\"-\")","v":"-"}]
[]
["ENDEREÇO:",null,null,null,null,{"$f":"IFERROR(VLOOKUP(G9,'EMPRESAS ELABORADORAS'!A2:F11,3,0),\"-\")","v":"-"},null,null,null,null,null,null,null,null,null,null,null,null,null,null,null,null,null,null,null,null,null,null,null,"CIDADE:",null,null,null,{"$f":"IFERROR(VLOOKUP(G9,'EMPRESAS ELABORADORAS'!A2:F11,4,0),\"-\")","v":"-"}]
[]
["TELEFONE:",null,null,null,null,{"$f":"IFERROR(VLOOKUP(G9,'EMPRESAS ELABORADORAS'!A2:F11,5,0),\"-\")","v":"-"},null,null,null,null,null,null,null,null,null,null,null,null,null,"EMAIL:",null,null,null,{"$f":"IFERROR(VLOOKUP(G9,'EMPRESAS ELABORADORAS'!A2:F11,6,0),\"-\")","v":"-"}]
[]
["RESP. TÉCNICO:",null,null,null,null,null,null,null,null,null,null,null,null,null,null,null,null,null,null,null,null,null,null,null,null,null,null,null,null,null,"CREA / CFTA:"]
[]
["IDENTIFICAÇÃO DO PROPONENTE",null,null,null,null,null,null,null,null,null,null,null,null,null,null,null,null,null,null,null,null,null,null,null,null,null,null,null,null,null,null,null,null,null,null,null,null,null,null,null,null,null,null,null,null,{"$f":"IF(OR(F19=\"\",AJ19=\"\",F21=\"\",AH21=\"\",I23=\"\",T23=\"\",AE23=\"\"),\"AUSENTE\",\"OK\")","v":"AUSENTE"}]
[]
["NOME:",null,null,null,null,null,null,null,null,null,null,null,null,null,null,null,null,null,null,null,null,null,null,null,null,null,null,null,null,null,"CPF/CNPJ:"]
[]
["ENDEREÇO:",null,null,null,null,null,null,null,null,null,null,null,null,null,null,null,null,null,null,null,null,null,null,null,null,null,null,null,null,"CIDADE:"]
[]
["CONTA CORRENTE:",null,null,null,null,null,null,null,null,null,null,null,null,null,"TELEFONE:",null,null,null,null,null,null,null,null,null,null,null,"EMAIL:"]
[]
["IMÓVEIS DE LOCALIZAÇÃO DO EMPREENDIMENTO"]
[]
["QUANTIDADE DE IMÓVEIS:",null,null,null,null,null,null,null,null,null,1]
[]
["IMÓVEL 1",null,null,null,null,null,null,null,null,null,null,null,null,null,null,null,null,null,null,null,null,null,null,null,null,null,null,null,null,null,null,null,null,null,null,null,null,null,null,null,null,null,null,null,null,{"$f":"IF(OR(H31=\"\",AJ31=\"\",G33=\"\",AH33=\"\",F35=\"\"),\"AUSENTE\",\"OK\")","v":"AUSENTE"}]
[]
["PROPRIEDADE:",null,null,null,null,null,null,null,null,null,null,null,null,null,null,null,null,null,null,null,null,null,null,null,null,null,null,null,null,"MATRÍCULA:"]
[]
["PROPRIETÁRIO:",null,null,null,null,null,null,null,null,null,null,null,null,null,null,null,null,null,null,null,null,null,null,null,null,null,null,null,"CPF/CNPJ:"]
[]
["MUNICÍPIO:",null,null,null,null,null,null,null,null,null,null,null,null,null,null,null,"ÁREA TOTAL IMÓVEL (ha):",null,null,null,null,null,null,null,null,null,null,null,null,null,"ÁREA A SER BENEFICIADA (ha):"]
[]
["IMÓVEL 2",null,null,null,null,null,null,null,null,null,null,null,null,null,null,null,null,null,null,null,null,null,null,null,null,null,null,null,null,null,null,null,null,null,null,null,null,null,null,null,null,null,null,null,null,{"$f":"IF(OR(H39=\"\",AJ39=\"\",G41=\"\",AH41=\"\",F43=\"\"),\"AUSENTE\",\"OK\")","v":"AUSENTE"}]
[]
["PROPRIEDADE:",null,null,null,null,null,null,null,null,null,null,null,null,null,null,null,null,null,null,null,null,null,null,null,null,null,null,null,null,"MATRÍCULA:"]
[]
["PROPRIETÁRIO:",null,null,null,null,null,null,null,null,null,null,null,null,null,null,null,null,null,null,null,null,null,null,null,null,null,null,null,"CPF/CNPJ:"]
[]
["MUNICÍPIO:",null,null,null,null,null,null,null,null,null,null,null,null,null,null,null,"ÁREA TOTAL IMÓVEL (ha):",null,null,null,null,null,null,null,null,null,null,null,null,null,"ÁREA A SER BENEFICIADA (ha):"]
[]
["IMÓVEL 3",null,null,null,null,null,null,null,null,null,null,null,null,null,null,null,null,null,null,null,null,null,null,null,null,null,null,null,null,null,null,null,null,null,null,null,null,null,null,null,null,null,null,null,null,{"$f":"IF(OR(H47=\"\",AJ47=\"\",G49=\"\",AH49=\"\",F51=\"\"),\"AUSENTE\",\"OK\")","v":"AUSENTE"}]
[]
["PROPRIEDADE:",null,null,null,null,null,null,null,null,null,null,null,null,null,null,null,null,null,null,null,null,null,null,null,null,null,null,null,null,"MATRÍCULA:"]
[]
["PROPRIETÁRIO:",null,null,null,null,null,null,null,null,null,null,null,null,null,null,null,null,null,null,null,null,null,null,null,null,null,null,null,"CPF/CNPJ:"]
[]
["MUNICÍPIO:",null,null,null,null,null,null,null,null,null,null,null,null,null,null,null,"ÁREA TOTAL IMÓVEL (ha):",null,null,null,null,null,null,null,null,null,null,null,null,null,"ÁREA A SER BENEFICIADA (ha):"]
[]
["EMPREENDIMENTO",null,null,null,null,null,null,null,null,null,null,null,null,null,null,null,null,null,null,null,null,null,null,null,null,null,null,null,null,null,null,null,null,null,null,null,null,null,null,null,null,null,null,null,null,{"$f":"IF(OR(LINHA_CRÉDITO=\"\",CULTURA=\"\",N61=\"\",T61=\"\",PRAZO_PROJETO=\"\",O65=\"\",M67=\"\",K69=\"\",K71=\"\",TAXA_JUROS=\"\",O73=\"\",H75=\"\",I77=\"\",H75=\"\",I77=\"\",S79=\"\",P81=\"\",O83=\"\",AF55=\"\",AI55=\"\",AO55=\"\",PORTE_PRODUTOR=\"\",AK61=\"\",AQ61=\"\",AJ63=\"\",AL65=\"\",ÁREA_FINANCIADA=\"\",AM69=\"\",RECEITA_ESTIMADA=\"\",AC57=\"\",CUSTO_ARRENDAMENTO=\"\",AG75=\"\",AG77=\"\",AH79=\"\",AM81=\"\",AP83=\"\"),\"AUSENTE\",\"OK\")","v":"AUSENTE"}]
[]
["LINHA DE CRÉDITO:",null,null,null,null,null,null,null,null,null,null,null,null,null,null,null,null,null,null,null,null,null,null,"DATA DO PROJETO:",null,null,null,null,null,null,null,null,null,"/",null,null,null,null,null,"/",null,null,null,null,null,{"$f":"IF(CULTURA<>\"CAFÉ\",\"CULTURA_12MESES\",\"CULTURA_14MESES\")","v":"CULTURA_12MESES"}]
[]
["TAXA DE JUROS (a.a):",null,null,null,null,null,null,null,null,null,null,null,null,null,null,null,null,null,null,null,null,null,null,"GARANTIAS:"]
[]
["CULTURA:",null,null,null,null,null,null,null,null,null,null,null,null,null,null,null,null,null,null,null,null,null,null,"PORTE DO PRODUTOR:"]
[]
["PREVISÃO DO INICIO DO PLANTIO:",null,null,null,null,null,null,null,null,null,null,null,null,null,null,null,null,null,"/",null,null,null,null,"PREVISÃO DO TÉRMINO DA COLHEITA:",null,null,null,null,null,null,null,null,null,null,null,null,null,null,null,null,null,"/"]
[]
["PRAZO DO CUSTEIO:",null,null,null,null,null,null,null,null,null,null,null,null,null,null,null,null,null,null,null,null,null,null,"PERIODICIDADE DO REEMBOLSO:"]
[]
["VALOR ORÇADO TOTAL DO PROJETO (R$):",null,null,null,null,null,null,null,null,null,null,null,null,null,{"$f":"IF(VALOR_ORÇADO=0,\"-\",VALOR_ORÇADO)","v":"-"},null,null,null,null,null,null,null,null,"VALOR A SER FINANCIADO NO PROJETO:",null,null,null,null,null,null,null,null,null,null,null,null,null,{"$f":"IF(VALOR_FINANCIADO=0,\"-\",VALOR_FINANCIADO)","v":"-"}]
[]
["ÁREA TOTAL DA LAVOURA (ha):",null,null,null,null,null,null,null,null,null,null,null,null,null,null,null,null,null,null,null,null,null,null,"ÁREA FINANCIADA (ha):"]
[]
["PRODUTIVIDADE (kg/ha):",null,null,null,null,null,null,null,null,null,null,null,null,null,null,null,null,null,null,null,null,null,null,"PRODUÇÃO DA ÁREA FINANCIADA (ton): ",null,null,null,null,null,null,null,null,null,null,null,null,null,null,{"$f":"IF((K69*ÁREA_FINANCIADA)/1000=0,\"-\",(K69*ÁREA_FINANCIADA)/1000)","v":"-"}]
[]
["PREÇO ESTIMADO (R$/kg):",null,null,null,null,null,null,null,null,null,null,null,null,null,null,null,null,null,null,null,null,null,null,"RECEITA PREVISTA (R$):",null,null,null,null,null,null,null,null,{"$f":"IF(K71*K69*ÁREA_FINANCIADA=0,\"-\",K71*K69*ÁREA_FINANCIADA)","v":"-"}]
[]
["ÁREA BENEFICIADA ARRENDADA (ha):",null,null,null,null,null,null,null,null,null,null,null,null,null,null,null,null,null,null,null,null,null,null,"CUSTO MENSAL DO ARRENDAMENTO (por ha):"]
[]
["ASSISTÊNCIA TÉC.:",null,null,null,null,null,null,null,null,null,null,null,null,null,null,null,null,null,null,null,null,null,null,"MAQUINÁRIO PRÓPRIO:"]
[]
["SISTEMA DE PLANTIO:",null,null,null,null,null,null,null,null,null,null,null,null,null,null,null,null,null,null,null,null,null,null,"ÁREA COM IRRIGAÇÃO:"]
[]
["RESERVA LEGAL , APP OU PLANO DE RECUPERAÇÃO:",null,null,null,null,null,null,null,null,null,null,null,null,null,null,null,null,null,null,null,null,null,null,"ZONEAMENTO AGRÍCOLA:"]
[]
["SEGURO AGRÍCOLA, EXCETO PROAGRO:",null,null,null,null,null,null,null,null,null,null,null,null,null,null,null,null,null,null,null,null,null,null,"CONTRATOS FUTUROS OU DE OPÇÕES:"]
[]
["SISTEMA ORGÂNICO DE PRODUÇÃO:",null,null,null,null,null,null,null,null,null,null,null,null,null,null,null,null,null,null,null,null,null,null,"PARTICIPA DO SAPI E CERTIFICAÇÃO DO INMETRO:"]
[]
["HISTÓRICO DE PRODUTIVIDADE"]
[]
["ANO",null,null,null,null,"CULTURA",null,null,null,null,null,null,null,null,null,null,null,null,"ÁREA\n(ha)",null,null,null,"PRODUÇÃO\n(kg/ha)",null,null,null,null,null,null,"PREÇO MÉDIO UNITÁRIO (R$/kg)",null,null,null,null,null,null,null,"RECEITA TOTAL (R$)"]
[]
[null,null,null,null,null,null,null,null,null,null,null,null,null,null,null,null,null,null,null,null,null,null,null,null,null,null,null,null,null,null,null,null,null,null,null,null,null,{"$f":"IF(OR(S89=\"\",W89=\"\",AD89=\"\"),\"-\",AD89*W89*S89)","v":"-"}]
[null,null,null,null,null,null,null,null,null,null,null,null,null,null,null,null,null,null,null,null,null,null,null,null,null,null,null,null,null,null,null,null,null,null,null,null,null,{"$f":"IF(OR(S90=\"\",W90=\"\",AD90=\"\"),\"-\",AD90*W90*S90)","v":"-"}]
[null,null,null,null,null,null,null,null,null,null,null,null,null,null,null,null,null,null,null,null,null,null,null,null,null,null,null,null,null,null,null,null,null,null,null,null,null,{"$f":"IF(OR(S91=\"\",W91=\"\",AD91=\"\"),\"-\",AD91*W91*S91)","v":"-"}]
["OBSERVAÇÕES:"]
[]
[]
["INFORMAÇÕES COMPLEMENTARES (OPCIONAIS)",null,null,null,null,null,null,null,null,null,null,null,null,null,null,null,null,null,null,null,null,null,null,null,null,null,null,null,null,null,null,null,null,null,null,null,null,null,null,null,null,null,null,null,null,{"$f":"IF(AND(EMPREENDIMENTO_INFO=\"\",EMPREENDIMENTO_INFO1=\"\",EMPREENDIMENTO_INFO2=\"\",EMPREENDIMENTO_INFO3=\"\",EMPREENDIMENTO_INFO4=\"\"),0,1)","v":0}]
[]
["SOBRE O PRODUTOR:"]
[]
["SOBRE A PRODUÇÃO:"]
[]
["SOBRE A ÁREA:"]
[]
["SOBRE A ESTRUTURA:"]
[]
["SOBRE O MAQUINÁRIO E EQUIPAMENTOS:"]
[]
[]
[]
[]
["________________________________________",null,null,null,null,null,null,null,null,null,null,null,null,null,null,null,null,null,null,null,null,null,null,null,null,"________________________________________"]
[{"$f":"UPPER('INFORMAÇÕES GERAIS'!F19)","v":""},null,null,null,null,null,null,null,null,null,null,null,null,null,null,null,null,null,null,null,null,null,null,null,null,{"$f":"UPPER('INFORMAÇÕES GERAIS'!H15)","v":""}]
["Proponente",null,null,null,null,null,null,null,null,null,null,null,null,null,null,null,null,null,null,null,null,null,null,null,null,"Responsável Técnico"]

{"sheet":"LISTA_PATRIMÔNIO","index":3,"n_rows":21,"n_cols":11,"rows_kept":21,"cut":false,"hidden":true,"merged":[]}
["LOCALIZAÇÃO","TIPO USO","TIPO BEM","TIPO BEM",null,null,null,null,"TIPO_SEMOVENTES",null,"REF"]
["URBANO","RESIDENCIAL","CASA","VEÍCULO",null,null,null,null,"SUÍNOS",null,1]
["RURAL","COMERCIAL","APARTAMENTO","MÁQUINA",null,null,null,null,"BUBALINOS",null,2]
[" ","INDUSTRIAL","PRÉDIO","EQUIPAMENTO",null,null,null,null,"EQUINOS",null,3]
[null,"RURAL","TERRENO",null,null,null,null,null,"OVINOS",null,4]
[null,null,"PRÉDIO",null,null,null,null,null,"APICULTURA",null,5]
[null,null,"TERRENO",null,null,null,null,null,"ASININOS",null,6]
[null,null,"LOJA",null,null,null,null,null,"AVICULTURA",null,7]
[null,null,"SALA",null,null,null,null,null,"CANINOS",null,8]
[null,null,"GALPÃO",null,null,null,null,null,"CAPRINOS",null,9]
[null,null,"PRÉDIO",null,null,null,null,null,"PISCICULTURA",null,10]
[null,null,"TERRENO",null,null,null,null,null,"RANICULTURA",null,11]
[null,null,"FAZENDA",null,null,null,null,null,"SERICICULTURA",null,12]
[null,null,"SÍTIO",null,null,null,null,null,null,null,13]
[null,null,"RANCHO",null,null,null,null,null,null,null,14]
[null,null,"CHÁCARA",null,null,null,null,null,null,null,15]
[null,null,"ESTÂNCIA",null,null,null,null,null,null,null,16]
[null,null,"OUTRO",null,null,null,null,null,null,null,17]
[null,null,null,null,null,null,null,null,null,null,18]
[null,null,null,null,null,null,null,null,null,null,19]
[null,null,null,null,null,null,null,null,null,null,20]

{"sheet":"LISTAS","index":4,"n_rows":33,"n_cols":25,"rows_kept":33,"cut":false,"hidden":true,"merged":[]}
["CULTURAS","UNIDADES","DIA","MÊS","ANO","ASSISTENCIA TÉCNICA","CULTURA","GARANTIA","PERIODICIDADE","PRAZO DO PROJETO",null,{"$f":"YEAR(TODAY())","v":2023},"PRODUTOR",null,null,"SEGURO",null,null,null,null,null,"BEZERRA","BEZERRA","0 a 6",{"$f":"YEAR(TODAY())-1","v":2022}]
[null,"UN",1,"JANEIRO",2020,"ELABORAÇÃO DO PROJETO","ABACATE","PENHOR DA SAFRA","MENSAL","14 MESES",14,{"$f":"L1-1","v":2022},"PEQUENO PRODUTOR",null,null,"SIM",null,null,null,null,null,"BEZERRO","BEZERRA","7 a 12",{"$f":"Y1-1","v":2021}]
[null,"KG",2,"FEVEREIRO",2021,"PROJETO + ASSISTÊNCIA TÉCNICA","ABÓBORA","PENHOR DA SAFRA E GARANTIA FIDEJUSSÓRIA","SEMESTRAL","13 MESES",13,{"$f":"L2-1","v":2021},"MÉDIO PRODUTOR",null,null,"NÃO",null,null,null,null,null,"NOVILHA","BEZERRO","0 a 6",2020]
[null,"TON",3,"MARÇO",2022,null,"ALHO","PENHOR DA SAFRA E GARANTIA REAL","ANUAL","12 MESES",12,{"$f":"L3-1","v":2020},"GRANDE PRODUTOR",null,null,null,null,null,null,null,null,"NOVILHO","BEZERRO","7 a 12",2019]
[null,"GR",4,"ABRIL",2023,null,"BANANA",null,"FINAL","11 MESES",11,{"$f":"L4-1","v":2019},null,null,null,null,null,null,null,null,null,"VACA","BOI","25 a 30",2018]
[null,"m",5,"MAIO",2024,null,"BATATA",null,null,"10 MESES",10,2018,null,null,null,null,null,null,null,null,null,"BOI","BOI","30 a 36",2017]
[null,"m²",6,"JUNHO",2025,null,"BETERRABA",null,null,"9 MESES",9,2017,null,null,null,null,null,null,null,null,null,null,"BOI",{"$f":"TEXT(\"+ de 36\",1)","v":"+ de 36"},2016]
[null,"m³",7,"JULHO",2026,null,"CAFÉ",null,null,"8 MESES",8,2016,null,null,null,null,null,null,null,null,null,null,"NOVILHA","13 a 18",2015]
[null,"DIÁRIA",8,"AGOSTO",2027,null,"CANA-DE-AÇUCAR",null,null,"7 MESES",7,2015,null,null,null,null,null,null,null,null,null,null,"NOVILHA","19 a 24"]
[null,"HORA",9,"SETEMBRO",2028,null,"CEBOLA",null,null,"6 MESES",6,2014,null,null,null,null,null,null,null,null,null,null,"NOVILHA","25 a 30"]
[null,"L",10,"OUTUBRO",2029,null,"CENOURA",null,null,"5 MESES",5,2013,null,null,null,null,null,null,null,null,null,null,"NOVILHO","19 a 24"]
[null,"ml",11,"NOVEMBRO",2030,null,"FEIJÃO",null,null,"4 MESES",4,2012,null,null,null,null,null,null,null,null,null,null,"NOVILHO","13 a 18"]
[null,null,12,"DEZEMBRO",2031,null,"LARANJA",null,null,"3 MESES",3,null,null,null,null,null,null,null,null,null,null,null,"NOVILHO","25 a 30"]
[null,null,null,null,null,null,"LICHIA (LECHIA)"]
[null,null,13,null,null,null,"MANDIOCA",null,null,"2 MESES",2,null,null,null,null,null,null,null,null,null,null,null,"VACA","25 a 30"]
[null,null,14,null,null,null,"MANGA",null,null,"1 MÊS",1,null,null,null,null,null,null,null,null,null,null,null,"VACA","30 a 36"]
[null,null,15,null,null,null,"MARACUJÁ",null,null,null,null,null,null,null,null,null,null,null,null,null,null,null,"VACA",{"$f":"TEXT(\"+ de 36\",1)","v":"+ de 36"}]
[null,null,16,null,null,null,"MILHO"]
[null,null,17,null,null,null,"MILHO SAFRINHA"]
[null,null,18,null,null,null,"MORANGO"]
[null,null,19,null,null,null,"PASTAGEM"]
[null,null,20,null,null,null,"PIMENTÃO"]
[null,null,21,null,null,null,"REPOLHO"]
[null,null,22,null,null,null,"SOJA"]
[null,null,23,null,null,null,"SORGO"]
[null,null,24,null,null,null,"TRIGO"]
[null,null,25,null,null,null,"UVA"]
[null,null,26]
[null,null,27]
[null,null,28]
[null,null,29]
[null,null,30]
[null,null,31]

{"sheet":"IMÓVEIS","index":5,"n_rows":285,"n_cols":57,"rows_kept":285,"cut":false,"hidden":true,"merged":[[12,0,12,15],[12,16,12,19],[14,0,15,3],[14,5,15,8],[14,10,15,12],[14,15,15,18],[6,0,6,58],[8,0,8,5],[8,6,8,27],[8,28,8,33],[8,34,8,40],[10,7,10,58],[16,40,16,43],[16,46,16,49],[16,51,16,54],[16,56,16,58],[17,0,17,3],[17,5,17,8],[17,10,17,12],[17,15,17,18],[17,20,17,23],[17,25,17,27],[14,51,15,54],[14,56,15,58],[16,0,16,3],[16,5,16,8],[16,10,16,12],[16,15,16,18],[16,20,16,23],[16,25,16,27],[16,30,16,33],[16,35,16,38],[14,20,15,23],[14,25,15,27],[14,30,15,33],[14,35,15,38],[14,40,15,43],[14,46,15,49],[18,30,18,33],[18,35,18,38],[18,40,18,43],[18,46,18,49],[18,51,18,54],[18,56,18,58],[18,0,18,3],[18,5,18,8],[18,10,18,12],[18,15,18,18],[18,20,18,23],[18,25,18,27],[17,30,17,33],[17,35,17,38],[17,40,17,43],[17,46,17,49],[17,51,17,54],[17,56,17,58],[20,30,20,33],[20,35,20,38],[20,40,20,43],[20,46,20,49],[20,51,20,54],[20,56,20,58],[20,0,20,3],[20,5,20,8],[20,10,20,12],[20,15,20,18],[20,20,20,23],[20,25,20,27],[19,30,19,33],[19,35,19,38],[19,40,19,43],[19,46,19,49],[19,51,19,54],[19,56,19,58],[19,0,19,3],[19,5,19,8],[19,10,19,12],[19,15,19,18],[19,20,19,23],[19,25,19,27],[22,30,22,33],[22,35,22,38],[22,40,22,43],[22,46,22,49],[22,51,22,54],[22,56,22,58],[22,0,22,3],[22,5,22,8],[22,10,22,12],[22,15,22,18],[22,20,22,23],[22,25,22,27],[21,30,21,33],[21,35,21,38],[21,40,21,43],[21,46,21,49],[21,51,21,54],[21,56,21,58],[21,0,21,3],[21,5,21,8],[21,10,21,12],[21,15,21,18],[21,20,21,23],[21,25,21,27],[24,30,24,33],[24,35,24,38],[24,40,24,43],[24,46,24,49],[24,51,24,54],[24,56,24,58],[24,0,24,3],[24,5,24,8],[24,10,24,12],[24,15,24,18],[24,20,24,23],[24,25,24,27],[23,30,23,33],[23,35,23,38],[23,40,23,43],[23,46,23,49],[23,51,23,54],[23,56,23,58],[23,0,23,3],[23,5,23,8],[23,10,23,12],[23,15,23,18],[23,20,23,23],[23,25,23,27],[26,30,26,33],[26,35,26,38],[26,40,26,43],[26,46,26,49],[26,51,26,54],[26,56,26,58],[26,0,26,3],[26,5,26,8],[26,10,26,12],[26,15,26,18],[26,20,26,23],[26,25,26,27],[25,30,25,33],[25,35,25,38],[25,40,25,43],[25,46,25,49],[25,51,25,54],[25,56,25,58],[25,0,25,3],[25,5,25,8],[25,10,25,12],[25,15,25,18],[25,20,25,23],[25,25,25,27],[28,30,28,33],[28,35,28,38],[28,40,28,43],[28,46,28,49],[28,51,28,54],[28,56,28,58],[28,0,28,3],[28,5,28,8],[28,10,28,12],[28,15,28,18],[28,20,28,23],[28,25,28,27],[27,30,27,33],[27,35,27,38],[27,40,27,43],[27,46,27,49],[27,51,27,54],[27,56,27,58],[27,0,27,3],[27,5,27,8],[27,10,27,12],[27,15,27,18],[27,20,27,23],[27,25,27,27],[30,30,30,33],[30,35,30,38],[30,40,30,43],[30,46,30,49],[30,51,30,54],[30,56,30,58],[30,0,30,3],[30,5,30,8],[30,10,30,12],[30,15,30,18],[30,20,30,23],[30,25,30,27],[29,30,29,33],[29,35,29,38],[29,40,29,43],[29,46,29,49],[29,51,29,54],[29,56,29,58],[29,0,29,3],[29,5,29,8],[29,10,29,12],[29,15,29,18],[29,20,29,23],[29,25,29,27],[32,30,32,33],[32,35,32,38],[32,40,32,43],[32,46,32,49],[32,51,32,54],[32,56,32,58],[32,0,32,3],[32,5,32,8],[32,10,32,12],[32,15,32,18],[32,20,32,23],[32,25,32,27],[31,30,31,33],[31,35,31,38],[31,40,31,43],[31,46,31,49],[31,51,31,54],[31,56,31,58],[31,0,31,3],[31,5,31,8],[31,10,31,12],[31,15,31,18],[31,20,31,23],[31,25,31,27],[34,30,34,33],[34,35,34,38],[34,40,34,43],[34,46,34,49],[34,51,34,54],[34,56,34,58],[34,0,34,3],[34,5,34,8],[34,10,34,12],[34,15,34,18],[34,20,34,23],[34,25,34,27],[33,30,33,33],[33,35,33,38],[33,40,33,43],[33,46,33,49],[33,51,33,54],[33,56,33,58],[33,0,33,3],[33,5,33,8],[33,10,33,12],[33,15,33,18],[33,20,33,23],[33,25,33,27],[36,30,36,33],[36,35,36,38],[36,40,36,43],[36,46,36,49],[36,51,36,54],[36,56,36,58],[36,0,36,3],[36,5,36,8],[36,10,36,12],[36,15,36,18],[36,20,36,23],[36,25,36,27],[35,30,35,33],[35,35,35,38],[35,40,35,43],[35,46,35,49],[35,51,35,54],[35,56,35,58],[35,0,35,3],[35,5,35,8],[35,10,35,12],[35,15,35,18],[35,20,35,23],[35,25,35,27],[38,30,38,33],[38,35,38,38],[38,40,38,43],[38,46,38,49],[38,51,38,54],[38,56,38,58],[38,0,38,3],[38,5,38,8],[38,10,38,12],[38,15,38,18],[38,20,38,23],[38,25,38,27],[37,30,37,33],[37,35,37,38],[37,40,37,43],[37,46,37,49],[37,51,37,54],[37,56,37,58],[37,0,37,3],[37,5,37,8],[37,10,37,12],[37,15,37,18],[37,20,37,23],[37,25,37,27],[40,30,40,33],[40,35,40,38],[40,40,40,43],[40,46,40,49],[40,51,40,54],[40,56,40,58],[40,0,40,3],[40,5,40,8],[40,10,40,12],[40,15,40,18],[40,20,40,23],[40,25,40,27],[39,30,39,33],[39,35,39,38],[39,40,39,43],[39,46,39,49],[39,51,39,54],[39,56,39,58],[39,0,39,3],[39,5,39,8],[39,10,39,12],[39,15,39,18],[39,20,39,23],[39,25,39,27],[42,30,42,33],[42,35,42,38],[42,40,42,43],[42,46,42,49],[42,51,42,54],[42,56,42,58],[42,0,42,3],[42,5,42,8],[42,10,42,12],[42,15,42,18],[42,20,42,23],[42,25,42,27],[41,30,41,33],[41,35,41,38],[41,40,41,43],[41,46,41,49],[41,51,41,54],[41,56,41,58],[41,0,41,3],[41,5,41,8],[41,10,41,12],[41,15,41,18],[41,20,41,23],[41,25,41,27],[44,0,44,58],[67,0,67,3],[67,5,67,8],[67,10,67,12],[67,15,67,18],[67,20,67,23],[67,25,67,27],[67,30,67,33],[67,35,67,38],[67,40,67,43],[43,30,43,33],[43,35,43,38],[43,40,43,43],[43,46,43,49],[43,51,43,54],[43,56,43,58],[43,0,43,3],[43,5,43,8],[43,10,43,12],[43,15,43,18],[43,20,43,23],[43,25,43,27],[68,35,68,38],[68,40,68,43],[68,46,68,49],[68,51,68,54],[68,56,68,58],[69,0,69,3],[69,5,69,8],[69,10,69,12],[69,15,69,18],[69,20,69,23],[67,46,67,49],[67,51,67,54],[67,56,67,58],[68,0,68,3],[68,5,68,8],[68,10,68,12],[68,15,68,18],[68,20,68,23],[68,25,68,27],[68,30,68,33],[70,46,70,49],[70,51,70,54],[70,56,70,58],[72,0,72,3],[72,5,72,8],[72,10,72,12],[72,15,72,18],[72,20,72,23],[72,25,72,27],[72,30,72,33],[69,56,69,58],[70,0,70,3],[70,5,70,8],[70,10,70,12],[70,15,70,18],[70,20,70,23],[70,25,70,27],[70,30,70,33],[70,35,70,38],[70,40,70,43],[69,25,69,27],[69,30,69,33],[69,35,69,38],[69,40,69,43],[69,46,69,49],[69,51,69,54],[73,56,73,58],[74,0,74,3],[74,5,74,8],[74,10,74,12],[74,15,74,18],[74,20,74,23],[74,25,74,27],[74,30,74,33],[74,35,74,38],[74,40,74,43],[73,25,73,27],[73,30,73,33],[73,35,73,38],[73,40,73,43],[73,46,73,49],[73,51,73,54],[72,35,72,38],[72,40,72,43],[72,46,72,49],[72,51,72,54],[72,56,72,58],[73,0,73,3],[73,5,73,8],[73,10,73,12],[73,15,73,18],[73,20,73,23],[91,0,91,40],[92,0,92,58],[93,0,93,40],[94,0,94,40],[96,22,96,39],[96,40,96,57],[75,35,75,38],[75,40,75,43],[75,46,75,49],[75,51,75,54],[75,56,75,58],[76,0,76,58],[74,46,74,49],[74,51,74,54],[74,56,74,58],[75,0,75,3],[75,5,75,8],[75,10,75,12],[75,15,75,18],[75,20,75,23],[75,25,75,27],[75,30,75,33],[103,7,103,58],[105,0,105,15],[105,16,105,19],[107,0,108,3],[107,5,108,8],[107,10,108,12],[107,15,108,18],[107,20,108,23],[107,25,108,27],[107,30,108,33],[97,22,97,39],[97,40,97,57],[98,22,98,39],[98,40,98,57],[99,0,99,58],[101,0,101,5],[101,6,101,27],[101,28,101,33],[101,34,101,40],[109,56,109,58],[110,0,110,3],[110,5,110,8],[110,10,110,12],[110,15,110,18],[110,20,110,23],[110,25,110,27],[110,30,110,33],[110,35,110,38],[110,40,110,43],[109,25,109,27],[109,30,109,33],[109,35,109,38],[109,40,109,43],[109,46,109,49],[109,51,109,54],[107,35,108,38],[107,40,108,43],[107,46,108,49],[107,51,108,54],[107,56,108,58],[109,0,109,3],[109,5,109,8],[109,10,109,12],[109,15,109,18],[109,20,109,23],[111,35,111,38],[111,40,111,43],[111,46,111,49],[111,51,111,54],[111,56,111,58],[112,0,112,3],[112,5,112,8],[112,10,112,12],[112,15,112,18],[112,20,112,23],[110,46,110,49],[110,51,110,54],[110,56,110,58],[111,0,111,3],[111,5,111,8],[111,10,111,12],[111,15,111,18],[111,20,111,23],[111,25,111,27],[111,30,111,33],[113,46,113,49],[113,51,113,54],[113,56,113,58],[114,0,114,3],[114,5,114,8],[114,10,114,12],[114,15,114,18],[114,20,114,23],[114,25,114,27],[114,30,114,33],[112,56,112,58],[113,0,113,3],[113,5,113,8],[113,10,113,12],[113,15,113,18],[113,20,113,23],[113,25,113,27],[113,30,113,33],[113,35,113,38],[113,40,113,43],[112,25,112,27],[112,30,112,33],[112,35,112,38],[112,40,112,43],[112,46,112,49],[112,51,112,54],[115,56,115,58],[116,0,116,3],[116,5,116,8],[116,10,116,12],[116,15,116,18],[116,20,116,23],[116,25,116,27],[116,30,116,33],[116,35,116,38],[116,40,116,43],[115,25,115,27],[115,30,115,33],[115,35,115,38],[115,40,115,43],[115,46,115,49],[115,51,115,54],[114,35,114,38],[114,40,114,43],[114,46,114,49],[114,51,114,54],[114,56,114,58],[115,0,115,3],[115,5,115,8],[115,10,115,12],[115,15,115,18],[115,20,115,23],[117,35,117,38],[117,40,117,43],[117,46,117,49],[117,51,117,54],[117,56,117,58],[118,0,118,3],[118,5,118,8],[118,10,118,12],[118,15,118,18],[118,20,118,23],[116,46,116,49],[116,51,116,54],[116,56,116,58],[117,0,117,3],[117,5,117,8],[117,10,117,12],[117,15,117,18],[117,20,117,23],[117,25,117,27],[117,30,117,33],[119,46,119,49],[119,51,119,54],[119,56,119,58],[120,0,120,3],[120,5,120,8],[120,10,120,12],[120,15,120,18],[120,20,120,23],[120,25,120,27],[120,30,120,33],[118,56,118,58],[119,0,119,3],[119,5,119,8],[119,10,119,12],[119,15,119,18],[119,20,119,23],[119,25,119,27],[119,30,119,33],[119,35,119,38],[119,40,119,43],[118,25,118,27],[118,30,118,33],[118,35,118,38],[118,40,118,43],[118,46,118,49],[118,51,118,54],[121,56,121,58],[122,0,122,3],[122,5,122,8],[122,10,122,12],[122,15,122,18],[122,20,122,23],[122,25,122,27],[122,30,122,33],[122,35,122,38],[122,40,122,43],[121,25,121,27],[121,30,121,33],[121,35,121,38],[121,40,121,43],[121,46,121,49],[121,51,121,54],[120,35,120,38],[120,40,120,43],[120,46,120,49],[120,51,120,54],[120,56,120,58],[121,0,121,3],[121,5,121,8],[121,10,121,12],[121,15,121,18],[121,20,121,23],[123,35,123,38],[123,40,123,43],[123,46,123,49],[123,51,123,54],[123,56,123,58],[124,0,124,3],[124,5,124,8],[124,10,124,12],[124,15,124,18],[124,20,124,23],[122,46,122,49],[122,51,122,54],[122,56,122,58],[123,0,123,3],[123,5,123,8],[123,10,123,12],[123,15,123,18],[123,20,123,23],[123,25,123,27],[123,30,123,33],[125,46,125,49],[125,51,125,54],[125,56,125,58],[126,0,126,3],[126,5,126,8],[126,10,126,12],[126,15,126,18],[126,20,126,23],[126,25,126,27],[126,30,126,33],[124,56,124,58],[125,0,125,3],[125,5,125,8],[125,10,125,12],[125,15,125,18],[125,20,125,23],[125,25,125,27],[125,30,125,33],[125,35,125,38],[125,40,125,43],[124,25,124,27],[124,30,124,33],[124,35,124,38],[124,40,124,43],[124,46,124,49],[124,51,124,54],[127,56,127,58],[128,0,128,3],[128,5,128,8],[128,10,128,12],[128,15,128,18],[128,20,128,23],[128,25,128,27],[128,30,128,33],[128,35,128,38],[128,40,128,43],[127,25,127,27],[127,30,127,33],[127,35,127,38],[127,40,127,43],[127,46,127,49],[127,51,127,54],[126,35,126,38],[126,40,126,43],[126,46,126,49],[126,51,126,54],[126,56,126,58],[127,0,127,3],[127,5,127,8],[127,10,127,12],[127,15,127,18],[127,20,127,23],[129,35,129,38],[129,40,129,43],[129,46,129,49],[129,51,129,54],[129,56,129,58],[130,0,130,3],[130,5,130,8],[130,10,130,12],[130,15,130,18],[130,20,130,23],[128,46,128,49],[128,51,128,54],[128,56,128,58],[129,0,129,3],[129,5,129,8],[129,10,129,12],[129,15,129,18],[129,20,129,23],[129,25,129,27],[129,30,129,33],[131,46,131,49],[131,51,131,54],[131,56,131,58],[132,0,132,3],[132,5,132,8],[132,10,132,12],[132,15,132,18],[132,20,132,23],[132,25,132,27],[132,30,132,33],[130,56,130,58],[131,0,131,3],[131,5,131,8],[131,10,131,12],[131,15,131,18],[131,20,131,23],[131,25,131,27],[131,30,131,33],[131,35,131,38],[131,40,131,43],[130,25,130,27],[130,30,130,33],[130,35,130,38],[130,40,130,43],[130,46,130,49],[130,51,130,54],[133,56,133,58],[134,0,134,3],[134,5,134,8],[134,10,134,12],[134,15,134,18],[134,20,134,23],[134,25,134,27],[134,30,134,33],[134,35,134,38],[134,40,134,43],[133,25,133,27],[133,30,133,33],[133,35,133,38],[133,40,133,43],[133,46,133,49],[133,51,133,54],[132,35,132,38],[132,40,132,43],[132,46,132,49],[132,51,132,54],[132,56,132,58],[133,0,133,3],[133,5,133,8],[133,10,133,12],[133,15,133,18],[133,20,133,23],[135,35,135,38],[135,40,135,43],[135,46,135,49],[135,51,135,54],[135,56,135,58],[136,0,136,3],[136,5,136,8],[136,10,136,12],[136,15,136,18],[136,20,136,23],[134,46,134,49],[134,51,134,54],[134,56,134,58],[135,0,135,3],[135,5,135,8],[135,10,135,12],[135,15,135,18],[135,20,135,23],[135,25,135,27],[135,30,135,33],[160,40,160,43],[160,46,160,49],[160,51,160,54],[160,56,160,58],[161,0,161,3],[161,5,161,8],[161,10,161,12],[161,15,161,18],[161,20,161,23],[161,25,161,27],[136,56,136,58],[137,0,137,58],[160,0,160,3],[160,5,160,8],[160,10,160,12],[160,15,160,18],[160,20,160,23],[160,25,160,27],[160,30,160,33],[160,35,160,38],[136,25,136,27],[136,30,136,33],[136,35,136,38],[136,40,136,43],[136,46,136,49],[136,51,136,54],[162,30,162,33],[162,35,162,38],[162,40,162,43],[162,46,162,49],[162,51,162,54],[162,56,162,58],[162,0,162,3],[162,5,162,8],[162,10,162,12],[162,15,162,18],[162,20,162,23],[162,25,162,27],[161,30,161,33],[161,35,161,38],[161,40,161,43],[161,46,161,49],[161,51,161,54],[161,56,161,58],[164,30,164,33],[164,35,164,38],[164,40,164,43],[164,46,164,49],[164,51,164,54],[164,56,164,58],[164,0,164,3],[164,5,164,8],[164,10,164,12],[164,15,164,18],[164,20,164,23],[164,25,164,27],[163,30,163,33],[163,35,163,38],[163,40,163,43],[163,46,163,49],[163,51,163,54],[163,56,163,58],[163,0,163,3],[163,5,163,8],[163,10,163,12],[163,15,163,18],[163,20,163,23],[163,25,163,27],[167,30,167,33],[167,35,167,38],[167,40,167,43],[167,46,167,49],[167,51,167,54],[167,56,167,58],[167,0,167,3],[167,5,167,8],[167,10,167,12],[167,15,167,18],[167,20,167,23],[167,25,167,27],[165,30,165,33],[165,35,165,38],[165,40,165,43],[165,46,165,49],[165,51,165,54],[165,56,165,58],[165,0,165,3],[165,5,165,8],[165,10,165,12],[165,15,165,18],[165,20,165,23],[165,25,165,27],[169,0,169,58],[184,0,184,40],[185,0,185,58],[186,0,186,40],[187,0,187,40],[189,22,189,39],[189,40,189,57],[168,30,168,33],[168,35,168,38],[168,40,168,43],[168,46,168,49],[168,51,168,54],[168,56,168,58],[168,0,168,3],[168,5,168,8],[168,10,168,12],[168,15,168,18],[168,20,168,23],[168,25,168,27],[196,7,196,58],[198,0,198,15],[198,16,198,19],[200,0,201,3],[200,5,201,8],[200,10,201,12],[200,15,201,18],[200,20,201,23],[200,25,201,27],[200,30,201,33],[190,22,190,39],[190,40,190,57],[191,22,191,39],[191,40,191,57],[192,0,192,58],[194,0,194,5],[194,6,194,27],[194,28,194,33],[194,34,194,40],[202,56,202,58],[203,0,203,3],[203,5,203,8],[203,10,203,12],[203,15,203,18],[203,20,203,23],[203,25,203,27],[203,30,203,33],[203,35,203,38],[203,40,203,43],[202,25,202,27],[202,30,202,33],[202,35,202,38],[202,40,202,43],[202,46,202,49],[202,51,202,54],[200,35,201,38],[200,40,201,43],[200,46,201,49],[200,51,201,54],[200,56,201,58],[202,0,202,3],[202,5,202,8],[202,10,202,12],[202,15,202,18],[202,20,202,23],[204,35,204,38],[204,40,204,43],[204,46,204,49],[204,51,204,54],[204,56,204,58],[205,0,205,3],[205,5,205,8],[205,10,205,12],[205,15,205,18],[205,20,205,23],[203,46,203,49],[203,51,203,54],[203,56,203,58],[204,0,204,3],[204,5,204,8],[204,10,204,12],[204,15,204,18],[204,20,204,23],[204,25,204,27],[204,30,204,33],[206,46,206,49],[206,51,206,54],[206,56,206,58],[207,0,207,3],[207,5,207,8],[207,10,207,12],[207,15,207,18],[207,20,207,23],[207,25,207,27],[207,30,207,33],[205,56,205,58]],"merged_total":1392,"flags":["merged_cut"]}
[]
[]
[]
[]
[]
[]
["IMÓVEL 1"]
[]
["PROPRIEDADE:",null,null,null,null,null,{"$f":"IF('INFORMAÇÕES GERAIS'!H31=\"\",\"-\",'INFORMAÇÕES GERAIS'!H31)","v":"-"},null,null,null,null,null,null,null,null,null,null,null,null,null,null,null,null,null,null,null,null,null,"MATRÍCULA:",null,null,null,null,null,{"$f":"IF('INFORMAÇÕES GERAIS'!AJ31=\"\",\"-\",'INFORMAÇÕES GERAIS'!AJ31)","v":"-"}]
[]
["ROTEIRO DE ACESSO:"]
[]
["COORDENADAS ENVIADAS PELO APLICATIVO:",null,null,null,null,null,null,null,null,null,null,null,null,null,null,null,"SIM"]
[]
["LATITUDE",null,null,null,null,"LONGITUDE",null,null,null,null,"ALT. (m)",null,null,null,null,"LATITUDE",null,null,null,null,"LONGITUDE",null,null,null,null,"ALT. (m)",null,null,null,null,"LATITUDE",null,null,null,null,"LONGITUDE",null,null,null,null,"ALT. (m)",null,null,null,null,null,"LATITUDE",null,null,null,null,"LONGITUDE",null,null,null,null,"ALT. (m)"]
[]
[]
[]
[]
[]
[]
[]
[]
[]
[]
[]
[]
[]
[]
[]
[]
[]
[]
[]
[]
[]
[]
[]
[]
[]
[]
[]
[]
[]
["IMAGEM DA PROPRIEDADE"]
[]
[]
[]
[]
[]
[]
[]
[]
[]
[]
[]
[]
[]
[]
[]
[]
[]
[]
[]
[]
[]
[]
[]
[]
[]
[]
[]
[]
[]
[]
[]
["CONSULTA GEOESPACIAL"]
[]
[]
[]
[]
[]
[]
[]
[]
[]
[]
[]
[]
[]
[]
["Declaro para os devidos fins que:"]
[{"$f":" \"- Realizei as consultas geoespaciais através da ferramenta IDE-SISEMA e não foram encontradas irregularidades que impeçam a utilização da área mencionada acima.\"","v":"- Realizei as consultas geoespaciais através da ferramenta IDE-SISEMA e não foram encontradas irregularidades que impeçam a utilização da área mencionada acima."}]
[{"$f":"\"- Conferi as documentações que atestam a Regularidade Ambiental e estão em conformidade com as exigências.\"","v":"- Conferi as documentações que atestam a Regularidade Ambiental e estão em conformidade com as exigências."}]
[{"$f":"\"- Conferi as documentações que atestam o uso legal dos Recursos Hídricos e estão em conformidade com as exigências.\"","v":"- Conferi as documentações que atestam o uso legal dos Recursos Hídricos e estão em conformidade com as exigências."}]
[]
[null,null,null,null,null,null,null,null,null,null,null,null,null,null,null,null,null,null,null,null,null,null,"________________________________________",null,null,null,null,null,null,null,null,null,null,null,null,null,null,null,null,null,"________________________________________"]
[null,null,null,null,null,null,null,null,null,null,null,null,null,null,null,null,null,null,null,null,null,null,{"$f":"UPPER(NOME_PROPONENTE)","v":""},null,null,null,null,null,null,null,null,null,null,null,null,null,null,null,null,null,{"$f":"UPPER(RESP_TECNICO)","v":""}]
[null,null,null,null,null,null,null,null,null,null,null,null,null,null,null,null,null,null,null,null,null,null,"Proponente",null,null,null,null,null,null,null,null,null,null,null,null,null,null,null,null,null,"Responsável Técnico"]
["IMÓVEL 2"]
[]
["PROPRIEDADE:",null,null,null,null,null,{"$f":"IF('INFORMAÇÕES GERAIS'!H39=\"\",\"-\",'INFORMAÇÕES GERAIS'!H39)","v":"-"},null,null,null,null,null,null,null,null,null,null,null,null,null,null,null,null,null,null,null,null,null,"MATRÍCULA:",null,null,null,null,null,{"$f":"IF('INFORMAÇÕES GERAIS'!AJ39=\"\",\"-\",'INFORMAÇÕES GERAIS'!AJ39)","v":"-"}]
[]
["ROTEIRO DE ACESSO:"]
[]
["COORDENADAS ENVIADAS PELO APLICATIVO:",null,null,null,null,null,null,null,null,null,null,null,null,null,null,null,"SIM"]
[]
["LATITUDE",null,null,null,null,"LONGITUDE",null,null,null,null,"ALT. (m)",null,null,null,null,"LATITUDE",null,null,null,null,"LONGITUDE",null,null,null,null,"ALT. (m)",null,null,null,null,"LATITUDE",null,null,null,null,"LONGITUDE",null,null,null,null,"ALT. (m)",null,null,null,null,null,"LATITUDE",null,null,null,null,"LONGITUDE",null,null,null,null,"ALT. (m)"]
[]
[]
[]
[]
[]
[]
[]
[]
[]
[]
[]
[]
[]
[]
[]
[]
[]
[]
[]
[]
[]
[]
[]
[]
[]
[]
[]
[]
[]
["IMAGEM DA PROPRIEDADE"]
[]
[]
[]
[]
[]
[]
[]
[]
[]
[]
[]
[]
[]
[]
[]
[]
[]
[]
[]
[]
[]
[]
[]
[]
[]
[]
[]
[]
[]
[]
[]
["CONSULTA GEOESPACIAL"]
[]
[]
[]
[]
[]
[]
[]
[]
[]
[]
[]
[]
[]
[]
["Declaro para os devidos fins que:"]
[{"$f":" \"- Realizei as consultas geoespaciais através da ferramenta IDE-SISEMA e não foram encontradas irregularidades que impeçam a utilização da área mencionada acima.\"","v":"- Realizei as consultas geoespaciais através da ferramenta IDE-SISEMA e não foram encontradas irregularidades que impeçam a utilização da área mencionada acima."}]
[{"$f":"\"- Conferi as documentações que atestam a Regularidade Ambiental e estão em conformidade com as exigências.\"","v":"- Conferi as documentações que atestam a Regularidade Ambiental e estão em conformidade com as exigências."}]
[{"$f":"\"- Conferi as documentações que atestam o uso legal dos Recursos Hídricos e estão em conformidade com as exigências.\"","v":"- Conferi as documentações que atestam o uso legal dos Recursos Hídricos e estão em conformidade com as exigências."}]
[]
[null,null,null,null,null,null,null,null,null,null,null,null,null,null,null,null,null,null,null,null,null,null,"________________________________________",null,null,null,null,null,null,null,null,null,null,null,null,null,null,null,null,null,"________________________________________"]
[null,null,null,null,null,null,null,null,null,null,null,null,null,null,null,null,null,null,null,null,null,null,{"$f":"UPPER(NOME_PROPONENTE)","v":""},null,null,null,null,null,null,null,null,null,null,null,null,null,null,null,null,null,{"$f":"UPPER(RESP_TECNICO)","v":""}]
[null,null,null,null,null,null,null,null,null,null,null,null,null,null,null,null,null,null,null,null,null,null,"Proponente",null,null,null,null,null,null,null,null,null,null,null,null,null,null,null,null,null,"Responsável Técnico"]
["IMÓVEL 3"]
[]
["PROPRIEDADE:",null,null,null,null,null,{"$f":"IF('INFORMAÇÕES GERAIS'!H47=\"\",\"-\",'INFORMAÇÕES GERAIS'!H47)","v":"-"},null,null,null,null,null,null,null,null,null,null,null,null,null,null,null,null,null,null,null,null,null,"MATRÍCULA:",null,null,null,null,null,{"$f":"IF('INFORMAÇÕES GERAIS'!AJ47=\"\",\"-\",'INFORMAÇÕES GERAIS'!AJ47)","v":"-"}]
[]
["ROTEIRO DE ACESSO:"]
[]
["COORDENADAS ENVIADAS PELO APLICATIVO:",null,null,null,null,null,null,null,null,null,null,null,null,null,null,null,"SIM"]
[]
["LATITUDE",null,null,null,null,"LONGITUDE",null,null,null,null,"ALT. (m)",null,null,null,null,"LATITUDE",null,null,null,null,"LONGITUDE",null,null,null,null,"ALT. (m)",null,null,null,null,"LATITUDE",null,null,null,null,"LONGITUDE",null,null,null,null,"ALT. (m)",null,null,null,null,null,"LATITUDE",null,null,null,null,"LONGITUDE",null,null,null,null,"ALT. (m)"]
[]
[]
[]
[]
[]
[]
[]
[]
[]
[]
[]
[]
[]
[]
[]
[]
[]
[]
[]
[]
[]
[]
[]
[]
[]
[]
[]
[]
[]
["IMAGEM DA PROPRIEDADE"]
[]
[]
[]
[]
[]
[]
[]
[]
[]
[]
[]
[]
[]
[]
[]
[]
[]
[]
[]
[]
[]
[]
[]
[]
[]
[]
[]
[]
[]
[]
[]
["CONSULTA GEOESPACIAL"]
[]
[]
[]
[]
[]
[]
[]
[]
[]
[]
[]
[]
[]
[]
["Declaro para os devidos fins que:"]
[{"$f":" \"- Realizei as consultas geoespaciais através da ferramenta IDE-SISEMA e não foram encontradas irregularidades que impeçam a utilização da área mencionada acima.\"","v":"- Realizei as consultas geoespaciais através da ferramenta IDE-SISEMA e não foram encontradas irregularidades que impeçam a utilização da área mencionada acima."}]
[{"$f":"\"- Conferi as documentações que atestam a Regularidade Ambiental e estão em conformidade com as exigências legais.\"","v":"- Conferi as documentações que atestam a Regularidade Ambiental e estão em conformidade com as exigências legais."}]
[{"$f":"\"- Conferi as documentações que atestam o uso legal dos Recursos Hídricos e estão em conformidade com as exigências legais.\"","v":"- Conferi as documentações que atestam o uso legal dos Recursos Hídricos e estão em conformidade com as exigências legais."}]
[]
[null,null,null,null,null,null,null,null,null,null,null,null,null,null,null,null,null,null,null,null,null,null,"________________________________________",null,null,null,null,null,null,null,null,null,null,null,null,null,null,null,null,null,"________________________________________"]
[null,null,null,null,null,null,null,null,null,null,null,null,null,null,null,null,null,null,null,null,null,null,{"$f":"UPPER(NOME_PROPONENTE)","v":""},null,null,null,null,null,null,null,null,null,null,null,null,null,null,null,null,null,{"$f":"UPPER(RESP_TECNICO)","v":""}]
[null,null,null,null,null,null,null,null,null,null,null,null,null,null,null,null,null,null,null,null,null,null,"Proponente",null,null,null,null,null,null,null,null,null,null,null,null,null,null,null,null,null,"Responsável Técnico"]

{"sheet":"ORÇAMENTO","index":6,"n_rows":53,"n_cols":10,"rows_kept":53,"cut":false,"hidden":true,"merged":[[52,4,52,8],[17,0,17,8],[12,0,12,8],[23,0,23,8],[28,0,28,8],[34,0,34,8],[39,0,39,8],[45,1,45,3],[40,1,40,8],[41,1,41,3],[42,1,42,3],[43,1,43,3],[44,1,44,3],[50,0,50,3],[51,0,51,3],[52,0,52,3],[50,4,50,8],[51,4,51,8],[6,0,6,6],[7,0,7,8],[8,0,8,8],[13,0,13,8],[18,0,18,8],[19,0,19,8],[24,0,24,8],[29,0,29,8],[30,0,30,8],[35,0,35,8]]}
[]
[]
[]
[]
[]
[" "]
[" "]
["I - PREPARO DO SOLO"]
["INSUMOS"]
[".","UN","QTD\n(POR HA)","QTD\n(TOTAL)","CUSTO UN.\n(R$)","CUSTO P/ HA\n(R$)","CUSTO TOTAL\n(R$)","FINANCIADO\n (R$)","INICIO DA\nUTILIZAÇÃO","EM BRANCO"]
[null,null,null,{"$f":"IF((Tabela1[[#This Row],[QTD\n(POR HA)]]*ÁREA_FINANCIADA)=0,\"-\",(Tabela1[[#This Row],[QTD\n(POR HA)]]*ÁREA_FINANCIADA))","v":"-"},null,{"$f":"IF((Tabela1[[#This Row],[CUSTO UN.\n(R$)]]*Tabela1[[#This Row],[QTD\n(POR HA)]])=0,\"-\",(Tabela1[[#This Row],[CUSTO UN.\n(R$)]]*Tabela1[[#This Row],[QTD\n(POR HA)]]))","v":"-"},{"$f":"IFERROR(Tabela1[[#This Row],[CUSTO UN.\n(R$)]]*Tabela1[[#This Row],[QTD\n(TOTAL)]],\"-\")","v":"-"},null,null,{"$f":"IF(AND(OR(Tabela1[[#This Row],[.]]=\"\",Tabela1[[#This Row],[UN]]=\"\",Tabela1[[#This Row],[QTD\n(POR HA)]]=\"\",Tabela1[[#This Row],[CUSTO UN.\n(R$)]]=\"\",Tabela1[[#This Row],[FINANCIADO\n (R$)]]=\"\",Tabela1[[#This Row],[INICIO DA\nUTILIZAÇÃO]]=\"\"),OR(Tabela1[[#This Row],[.]]<>\"\",Tabela1[[#This Row],[UN]]<>\"\",Tabela1[[#This Row],[QTD\n(POR HA)]]<>\"\",Tabela1[[#This Row],[CUSTO UN.\n(R$)]]<>\"\",Tabela1[[#This Row],[FINANCIADO\n (R$)]]<>\"\",Tabela1[[#This Row],[INICIO DA\nUTILIZAÇÃO]]<>\"\")),1,0)","v":0}]
["Total",null,null,null,null,{"$f":"IF(SUBTOTAL(109,Tabela1[CUSTO P/ HA\n(R$)])=0,0,SUBTOTAL(109,Tabela1[CUSTO P/ HA\n(R$)]))","v":0},{"$f":"IF(SUBTOTAL(109,Tabela1[CUSTO TOTAL\n(R$)])=0,0,SUBTOTAL(109,Tabela1[CUSTO TOTAL\n(R$)]))","v":0},{"$f":"IF(SUBTOTAL(109,Tabela1[FINANCIADO\n (R$)])=0,0,SUBTOTAL(109,Tabela1[FINANCIADO\n (R$)]))","v":0},null,{"$f":"SUBTOTAL(109,Tabela1[EM BRANCO])","v":0}]
["  "]
["SERVIÇOS"]
["ESPECIFICAÇÃO","UN","QTD\n(POR HA)","QTD\n(TOTAL)","CUSTO UN.\n(R$)","CUSTO P/ HA\n(R$)","CUSTO TOTAL\n(R$)","FINANCIADO\n (R$)","INICIO DA\nUTILIZAÇÃO","EM BRANCO"]
[null,null,null,{"$f":"IF((Tabela116[[#This Row],[QTD\n(POR HA)]]*ÁREA_FINANCIADA)=0,\"-\",(Tabela116[[#This Row],[QTD\n(POR HA)]]*ÁREA_FINANCIADA))","v":"-"},null,{"$f":"IF((Tabela116[[#This Row],[CUSTO UN.\n(R$)]]*Tabela116[[#This Row],[QTD\n(POR HA)]])=0,\"-\",(Tabela116[[#This Row],[CUSTO UN.\n(R$)]]*Tabela116[[#This Row],[QTD\n(POR HA)]]))","v":"-"},{"$f":"IFERROR(Tabela116[[#This Row],[CUSTO UN.\n(R$)]]*Tabela116[[#This Row],[QTD\n(TOTAL)]],\"-\")","v":"-"},null,null,{"$f":"IF(AND(OR(Tabela116[[#This Row],[ESPECIFICAÇÃO]]=\"\",Tabela116[[#This Row],[UN]]=\"\",Tabela116[[#This Row],[QTD\n(POR HA)]]=\"\",Tabela116[[#This Row],[CUSTO UN.\n(R$)]]=\"\",Tabela116[[#This Row],[FINANCIADO\n (R$)]]=\"\",Tabela116[[#This Row],[INICIO DA\nUTILIZAÇÃO]]=\"\"),OR(Tabela116[[#This Row],[ESPECIFICAÇÃO]]<>\"\",Tabela116[[#This Row],[UN]]<>\"\",Tabela116[[#This Row],[QTD\n(POR HA)]]<>\"\",Tabela116[[#This Row],[CUSTO UN.\n(R$)]]<>\"\",Tabela116[[#This Row],[FINANCIADO\n (R$)]]<>\"\",Tabela116[[#This Row],[INICIO DA\nUTILIZAÇÃO]]<>\"\")),1,0)","v":0}]
["Total",null,null,null,null,{"$f":"IF(SUBTOTAL(109,Tabela116[CUSTO P/ HA\n(R$)])=0,0,SUBTOTAL(109,Tabela116[CUSTO P/ HA\n(R$)]))","v":0},{"$f":"IF(SUBTOTAL(109,Tabela116[CUSTO TOTAL\n(R$)])=0,0,SUBTOTAL(109,Tabela116[CUSTO TOTAL\n(R$)]))","v":0},{"$f":"IF(SUBTOTAL(109,Tabela116[FINANCIADO\n (R$)])=0,0,SUBTOTAL(109,Tabela116[FINANCIADO\n (R$)]))","v":0},null,{"$f":"SUBTOTAL(109,Tabela116[EM BRANCO])","v":0}]
["   "]
["II - TRATOS CULTURAIS"]
["INSUMOS"]
["ESPECIFICAÇÃO","UN","QTD\n(POR HA)","QTD\n(TOTAL)","CUSTO UN.\n(R$)","CUSTO P/ HA\n(R$)","CUSTO TOTAL\n(R$)","FINANCIADO\n (R$)","INICIO DA\nUTILIZAÇÃO","EM BRANCO"]
[null,null,null,{"$f":"IF((Tabela11617[[#This Row],[QTD\n(POR HA)]]*ÁREA_FINANCIADA)=0,\"-\",(Tabela11617[[#This Row],[QTD\n(POR HA)]]*ÁREA_FINANCIADA))","v":"-"},null,{"$f":"IF((Tabela11617[[#This Row],[CUSTO UN.\n(R$)]]*Tabela11617[[#This Row],[QTD\n(POR HA)]])=0,\"-\",(Tabela11617[[#This Row],[CUSTO UN.\n(R$)]]*Tabela11617[[#This Row],[QTD\n(POR HA)]]))","v":"-"},{"$f":"IFERROR(Tabela11617[[#This Row],[CUSTO UN.\n(R$)]]*Tabela11617[[#This Row],[QTD\n(TOTAL)]],\"-\")","v":"-"},null,null,{"$f":"IF(AND(OR(Tabela11617[[#This Row],[ESPECIFICAÇÃO]]=\"\",Tabela11617[[#This Row],[UN]]=\"\",Tabela11617[[#This Row],[QTD\n(POR HA)]]=\"\",Tabela11617[[#This Row],[CUSTO UN.\n(R$)]]=\"\",Tabela11617[[#This Row],[FINANCIADO\n (R$)]]=\"\",Tabela11617[[#This Row],[INICIO DA\nUTILIZAÇÃO]]=\"\"),OR(Tabela11617[[#This Row],[ESPECIFICAÇÃO]]<>\"\",Tabela11617[[#This Row],[UN]]<>\"\",Tabela11617[[#This Row],[QTD\n(POR HA)]]<>\"\",Tabela11617[[#This Row],[CUSTO UN.\n(R$)]]<>\"\",Tabela11617[[#This Row],[FINANCIADO\n (R$)]]<>\"\",Tabela11617[[#This Row],[INICIO DA\nUTILIZAÇÃO]]<>\"\")),1,0)","v":0}]
["Total",null,null,null,null,{"$f":"IF(SUBTOTAL(109,Tabela11617[CUSTO P/ HA\n(R$)])=0,0,SUBTOTAL(109,Tabela11617[CUSTO P/ HA\n(R$)]))","v":0},{"$f":"IF(SUBTOTAL(109,Tabela11617[CUSTO TOTAL\n(R$)])=0,0,SUBTOTAL(109,Tabela11617[CUSTO TOTAL\n(R$)]))","v":0},{"$f":"IF(SUBTOTAL(109,Tabela11617[FINANCIADO\n (R$)])=0,0,SUBTOTAL(109,Tabela11617[FINANCIADO\n (R$)]))","v":0},null,{"$f":"SUBTOTAL(109,Tabela11617[EM BRANCO])","v":0}]
["   "]
["SERVIÇOS"]
["ESPECIFICAÇÃO","UN","QTD\n(POR HA)","QTD\n(TOTAL)","CUSTO UN.\n(R$)","CUSTO P/ HA\n(R$)","CUSTO TOTAL\n(R$)","FINANCIADO\n (R$)","INICIO DA\nUTILIZAÇÃO","EM BRANCO"]
[null,null,null,{"$f":"IF((Tabela1161718[[#This Row],[QTD\n(POR HA)]]*ÁREA_FINANCIADA)=0,\"-\",(Tabela1161718[[#This Row],[QTD\n(POR HA)]]*ÁREA_FINANCIADA))","v":"-"},null,{"$f":"IF((Tabela1161718[[#This Row],[CUSTO UN.\n(R$)]]*Tabela1161718[[#This Row],[QTD\n(POR HA)]])=0,\"-\",(Tabela1161718[[#This Row],[CUSTO UN.\n(R$)]]*Tabela1161718[[#This Row],[QTD\n(POR HA)]]))","v":"-"},{"$f":"IFERROR(Tabela1161718[[#This Row],[CUSTO UN.\n(R$)]]*Tabela1161718[[#This Row],[QTD\n(TOTAL)]],\"-\")","v":"-"},null,null,{"$f":"IF(AND(OR(Tabela1161718[[#This Row],[ESPECIFICAÇÃO]]=\"\",Tabela1161718[[#This Row],[UN]]=\"\",Tabela1161718[[#This Row],[QTD\n(POR HA)]]=\"\",Tabela1161718[[#This Row],[CUSTO UN.\n(R$)]]=\"\",Tabela1161718[[#This Row],[FINANCIADO\n (R$)]]=\"\",Tabela1161718[[#This Row],[INICIO DA\nUTILIZAÇÃO]]=\"\"),OR(Tabela1161718[[#This Row],[ESPECIFICAÇÃO]]<>\"\",Tabela1161718[[#This Row],[UN]]<>\"\",Tabela1161718[[#This Row],[QTD\n(POR HA)]]<>\"\",Tabela1161718[[#This Row],[CUSTO UN.\n(R$)]]<>\"\",Tabela1161718[[#This Row],[FINANCIADO\n (R$)]]<>\"\",Tabela1161718[[#This Row],[INICIO DA\nUTILIZAÇÃO]]<>\"\")),1,0)","v":0}]
["Total",null,null,null,null,{"$f":"IF(SUBTOTAL(109,Tabela1161718[CUSTO P/ HA\n(R$)])=0,0,SUBTOTAL(109,Tabela1161718[CUSTO P/ HA\n(R$)]))","v":0},{"$f":"IF(SUBTOTAL(109,Tabela1161718[CUSTO TOTAL\n(R$)])=0,0,SUBTOTAL(109,Tabela1161718[CUSTO TOTAL\n(R$)]))","v":0},{"$f":"IF(SUBTOTAL(109,Tabela1161718[FINANCIADO\n (R$)])=0,0,SUBTOTAL(109,Tabela1161718[FINANCIADO\n (R$)]))","v":0},null,{"$f":"SUBTOTAL(109,Tabela1161718[EM BRANCO])","v":0}]
["   "]
["III - COLHEITA"]
["INSUMOS"]
["ESPECIFICAÇÃO","UN","QTD\n(POR HA)","QTD\n(TOTAL)","CUSTO UN.\n(R$)","CUSTO P/ HA\n(R$)","CUSTO TOTAL\n(R$)","FINANCIADO\n (R$)","INICIO DA\nUTILIZAÇÃO","EM BRANCO"]
[null,null,null,{"$f":"IF((Tabela116171821[[#This Row],[QTD\n(POR HA)]]*ÁREA_FINANCIADA)=0,\"-\",(Tabela116171821[[#This Row],[QTD\n(POR HA)]]*ÁREA_FINANCIADA))","v":"-"},null,{"$f":"IF((Tabela116171821[[#This Row],[CUSTO UN.\n(R$)]]*Tabela116171821[[#This Row],[QTD\n(POR HA)]])=0,\"-\",(Tabela116171821[[#This Row],[CUSTO UN.\n(R$)]]*Tabela116171821[[#This Row],[QTD\n(POR HA)]]))","v":"-"},{"$f":"IFERROR(Tabela116171821[[#This Row],[CUSTO UN.\n(R$)]]*Tabela116171821[[#This Row],[QTD\n(TOTAL)]],\"-\")","v":"-"},null,null,{"$f":"IF(AND(OR(Tabela116171821[[#This Row],[ESPECIFICAÇÃO]]=\"\",Tabela116171821[[#This Row],[UN]]=\"\",Tabela116171821[[#This Row],[QTD\n(POR HA)]]=\"\",Tabela116171821[[#This Row],[CUSTO UN.\n(R$)]]=\"\",Tabela116171821[[#This Row],[FINANCIADO\n (R$)]]=\"\",Tabela116171821[[#This Row],[INICIO DA\nUTILIZAÇÃO]]=\"\"),OR(Tabela116171821[[#This Row],[ESPECIFICAÇÃO]]<>\"\",Tabela116171821[[#This Row],[UN]]<>\"\",Tabela116171821[[#This Row],[QTD\n(POR HA)]]<>\"\",Tabela116171821[[#This Row],[CUSTO UN.\n(R$)]]<>\"\",Tabela116171821[[#This Row],[FINANCIADO\n (R$)]]<>\"\",Tabela116171821[[#This Row],[INICIO DA\nUTILIZAÇÃO]]<>\"\")),1,0)","v":0}]
["Total",null,null,null,null,{"$f":"IF(SUBTOTAL(109,Tabela116171821[CUSTO P/ HA\n(R$)])=0,0,SUBTOTAL(109,Tabela116171821[CUSTO P/ HA\n(R$)]))","v":0},{"$f":"IF(SUBTOTAL(109,Tabela116171821[CUSTO TOTAL\n(R$)])=0,0,SUBTOTAL(109,Tabela116171821[CUSTO TOTAL\n(R$)]))","v":0},{"$f":"SUBTOTAL(109,Tabela116171821[FINANCIADO\n (R$)])","v":0},null,{"$f":"SUBTOTAL(109,Tabela116171821[EM BRANCO])","v":0}]
["   "]
["SERVIÇOS"]
["ESPECIFICAÇÃO","UN","QTD\n(POR HA)","QTD\n(TOTAL)","CUSTO UN.\n(R$)","CUSTO P/ HA\n(R$)","CUSTO TOTAL\n(R$)","FINANCIADO\n (R$)","INICIO DA\nUTILIZAÇÃO","EM BRANCO"]
[null,null,null,{"$f":"IF((Tabela11617182122[[#This Row],[QTD\n(POR HA)]]*ÁREA_FINANCIADA)=0,\"-\",(Tabela11617182122[[#This Row],[QTD\n(POR HA)]]*ÁREA_FINANCIADA))","v":"-"},null,{"$f":"IF((Tabela11617182122[[#This Row],[CUSTO UN.\n(R$)]]*Tabela11617182122[[#This Row],[QTD\n(POR HA)]])=0,\"-\",(Tabela11617182122[[#This Row],[CUSTO UN.\n(R$)]]*Tabela11617182122[[#This Row],[QTD\n(POR HA)]]))","v":"-"},{"$f":"IFERROR(Tabela11617182122[[#This Row],[CUSTO UN.\n(R$)]]*Tabela11617182122[[#This Row],[QTD\n(TOTAL)]],\"-\")","v":"-"},null,null,{"$f":"IF(AND(OR(Tabela11617182122[[#This Row],[ESPECIFICAÇÃO]]=\"\",Tabela11617182122[[#This Row],[UN]]=\"\",Tabela11617182122[[#This Row],[QTD\n(POR HA)]]=\"\",Tabela11617182122[[#This Row],[CUSTO UN.\n(R$)]]=\"\",Tabela11617182122[[#This Row],[FINANCIADO\n (R$)]]=\"\",Tabela11617182122[[#This Row],[INICIO DA\nUTILIZAÇÃO]]=\"\"),OR(Tabela11617182122[[#This Row],[ESPECIFICAÇÃO]]<>\"\",Tabela11617182122[[#This Row],[UN]]<>\"\",Tabela11617182122[[#This Row],[QTD\n(POR HA)]]<>\"\",Tabela11617182122[[#This Row],[CUSTO UN.\n(R$)]]<>\"\",Tabela11617182122[[#This Row],[FINANCIADO\n (R$)]]<>\"\",Tabela11617182122[[#This Row],[INICIO DA\nUTILIZAÇÃO]]<>\"\")),1,0)","v":0}]
["Total",null,null,null,null,{"$f":"IF(SUBTOTAL(109,Tabela11617182122[CUSTO P/ HA\n(R$)])=0,0,SUBTOTAL(109,Tabela11617182122[CUSTO P/ HA\n(R$)]))","v":0},{"$f":"IF(SUBTOTAL(109,Tabela11617182122[CUSTO TOTAL\n(R$)])=0,0,SUBTOTAL(109,Tabela11617182122[CUSTO TOTAL\n(R$)]))","v":0},{"$f":"IF(SUBTOTAL(109,Tabela11617182122[FINANCIADO\n (R$)])=0,0,SUBTOTAL(109,Tabela11617182122[FINANCIADO\n (R$)]))","v":0},null,{"$f":"SUBTOTAL(109,Tabela11617182122[EM BRANCO])","v":0}]
["   "]
[null,"TOTAL"]
[null,"ESPECIFICAÇÃO",null,null,"ORÇAMENTO\n(POR HA)","FINANCIADO\n(POR HA)","ORÇAMENTO\nTOTAL","FINANCIADO\nTOTAL","RECURSOS\nPRÓPRIOS"]
[null,"I - PREPARO DO SOLO",null,null,{"$f":"IFERROR(Tabela1[[#Totals],[CUSTO P/ HA\n(R$)]]+Tabela116[[#Totals],[CUSTO P/ HA\n(R$)]],0)","v":0},{"$f":"IFERROR((Tabela1[[#Totals],[FINANCIADO\n (R$)]]+Tabela116[[#Totals],[FINANCIADO\n (R$)]])/ÁREA_FINANCIADA,0)","v":0},{"$f":"IFERROR(Tabela1[[#Totals],[CUSTO TOTAL\n(R$)]]+Tabela116[[#Totals],[CUSTO TOTAL\n(R$)]],0)","v":0},{"$f":"IFERROR(Tabela1[[#Totals],[FINANCIADO\n (R$)]]+Tabela116[[#Totals],[FINANCIADO\n (R$)]],0)","v":0},{"$f":"IFERROR(G43-H43,0)","v":0}]
[null,"II - TRATOS CULTURAIS",null,null,{"$f":"IFERROR(Tabela11617[[#Totals],[CUSTO P/ HA\n(R$)]]+Tabela1161718[[#Totals],[CUSTO P/ HA\n(R$)]],0)","v":0},{"$f":"IFERROR((Tabela11617[[#Totals],[FINANCIADO\n (R$)]]+Tabela1161718[[#Totals],[FINANCIADO\n (R$)]])/ÁREA_FINANCIADA,0)","v":0},{"$f":"IFERROR(Tabela1161718[[#Totals],[CUSTO TOTAL\n(R$)]]+Tabela11617[[#Totals],[CUSTO TOTAL\n(R$)]],0)","v":0},{"$f":"IFERROR(Tabela11617[[#Totals],[FINANCIADO\n (R$)]]+Tabela1161718[[#Totals],[FINANCIADO\n (R$)]],0)","v":0},{"$f":"IFERROR(G44-H44,0)","v":0}]
[null,"III - COLHEITA",null,null,{"$f":"IFERROR(Tabela116171821[[#Totals],[CUSTO P/ HA\n(R$)]]+Tabela11617182122[[#Totals],[CUSTO P/ HA\n(R$)]],0)","v":0},{"$f":"IFERROR((Tabela11617182122[[#Totals],[FINANCIADO\n (R$)]]+Tabela116171821[[#Totals],[FINANCIADO\n (R$)]])/ÁREA_FINANCIADA,0)","v":0},{"$f":"IFERROR(Tabela116171821[[#Totals],[CUSTO TOTAL\n(R$)]]+Tabela11617182122[[#Totals],[CUSTO TOTAL\n(R$)]],0)","v":0},{"$f":"IFERROR(Tabela116171821[[#Totals],[FINANCIADO\n (R$)]]+Tabela11617182122[[#Totals],[FINANCIADO\n (R$)]],0)","v":0},{"$f":"IFERROR(G45-H45,0)","v":0}]
[null,"Total",null,null,{"$f":"IF(SUM(E43:E45)=0,0,SUM(E43:E45))","v":0},{"$f":"IFERROR(F45+F44+F43,0)","v":0},{"$f":"IFERROR(G45+G44+G43,0)","v":0},{"$f":"IF(SUM(H43:H45)=0,0,SUM(H43:H45))","v":0},{"$f":"IF(SUM(I43:I45)=0,0,SUM(I43:I45))","v":0}]
[]
[]
[]
[]
["________________________________________",null,null,null,"________________________________________"]
[{"$f":"UPPER('INFORMAÇÕES GERAIS'!F19)","v":""},null,null,null,{"$f":"UPPER('INFORMAÇÕES GERAIS'!H15)","v":""}]
["Proponente",null,null,null,"Responsável Técnico"]

{"sheet":"MANUAL IDE-SISEMA","index":7,"n_rows":159,"n_cols":1,"rows_kept":159,"cut":false,"hidden":true,"merged":[[158,0,158,17],[0,0,3,17],[5,0,5,17],[6,0,6,17],[8,0,8,17],[42,0,42,17],[76,0,76,17],[110,0,110,17],[123,0,123,17],[125,0,125,17],[156,0,156,17],[157,0,157,17]]}
[]
[]
[]
[]
[]
["Acessar a plataforma IDE-SISEMA pelo link abaixo:"]
["http://idesisema.meioambiente.mg.gov.br/"]
[]
["Abrir o site importar o KML do empreendimento, conforme indicação setas amarelas na imagem abaixo:"]
[]
[]
[]
[]
[]
[]
[]
[]
[]
[]
[]
[]
[]
[]
[]
[]
[]
[]
[]
[]
[]
[]
[]
[]
[]
[]
[]
[]
[]
[]
[]
[]
[]
["Abaixo, a imagem demonstra o processo de anexar o arquivo KML."]
[]
[]
[]
[]
[]
[]
[]
[]
[]
[]
[]
[]
[]
[]
[]
[]
[]
[]
[]
[]
[]
[]
[]
[]
[]
[]
[]
[]
[]
[]
[]
[]
[]
["Ao final da inclusão, a área do empreendimento deve ficar demarcada como a imagem a abaixo:"]
[]
[]
[]
[]
[]
[]
[]
[]
[]
[]
[]
[]
[]
[]
[]
[]
[]
[]
[]
[]
[]
[]
[]
[]
[]
[]
[]
[]
[]
[]
[]
[]
[]
["Em seguida, clicar em CAMADAS, e selecionar a lista de camadas abaixo:"]
[]
["Restrição Ambiental / Terras Indígenas (FUNAI) / Terras Indígenas"]
["Restrição Ambiental / Quilombolas (Fundação Palmares INCRA) / Quilombolas"]
["Restrição Ambiental / Áreas Protegidas (IEF/ICMbio) / Propriedades Cadastradas em Áreas de Conservação"]
["Restrição Ambiental / Áreas Protegidas (IEF/ICMbio) / Unidade de Conservação Federal"]
["Restrição Ambiental / Áreas Protegidas (IEF/ICMbio) / Unidade de Conservação Estadual"]
["Restrição Ambiental / Áreas Protegidas (IEF/ICMbio) / Unidade de Conservação Municipal"]
["Restrição Ambiental / Áreas Protegidas (IEF/ICMbio) / Reserva Particular do Patrimônio Natural"]
["Restrição Ambiental / Áreas Protegidas (IEF/ICMbio) / Áreas prioritárias para criação de Unidades de Conservação"]
["Restrição Ambiental / Corredores ecológicos legalmente instituídos / Corredores Ecológicos"]
[]
[]
["Nesse momento, há que se observar se a área não se sobrepões em nenhuma das camadas, o que inviabilizaria a utilização da área."]
[]
["A imagem abaixo ilustra o procedimento:"]
[]
[]
[]
[]
[]
[]
[]
[]
[]
[]
[]
[]
[]
[]
[]
[]
[]
[]
[]
[]
[]
[]
[]
[]
[]
[]
[]
[]
[]
[]
["Em seguida, colocar o mouse sobre a área do empreendimento, de forma que as coordenadas fiquem visíveis no canto inferior da tela."]
[]
["Capturar a parte da tela, indicada pelo quadro abaixo utilizando alguma ferramenta (Print Screen, Ferramenta de Captura, etc...) depois inserir o arquivo da imagem capturada no projeto."]

{"sheet":"DEMONSTRATIVO DE VIABILIDADE","index":8,"n_rows":24,"n_cols":7,"rows_kept":24,"cut":false,"hidden":true,"merged":[[6,1,6,2],[6,5,6,6],[11,5,11,6],[0,1,0,6],[21,1,21,2],[22,1,22,2],[23,1,23,2],[21,5,21,6],[22,5,22,6],[23,5,23,6]]}
[]
[]
[]
[]
[]
[]
[null,"CUSTOS DE PRODUÇÃO",null,null,null,"RECEITA PREVISTA"]
[null,"ESPECIFICAÇÃO","VALOR",null,null,"ESPECIFICAÇÃO","VALOR"]
[null,"ESTE FINANCIAMENTO",{"$f":"VALOR_FINANCIADO","v":0},null,null,"RECEITA ESTIMADA",{"$f":"RECEITA_ESTIMADA","v":"-"}]
[null,"RECURSOS PRÓPRIOS",{"$f":"IFERROR(VALOR_ORÇADO-VALOR_FINANCIADO,\"-\")","v":0},null,null,"Total",{"$f":"SUBTOTAL(109,Tabela1319[VALOR])","v":0}]
[null,"JUROS DESTE FINANCIAMENTO",{"$f":"IFERROR(((TAXA_JUROS)^1/12)*VLOOKUP(PRAZO_PROJETO,LISTAS!J1:K19,2,0)*C9,0)","v":0},null,null," "]
[null,"ARRENDAMENTO",{"$f":"IFERROR(CUSTO_ARRENDAMENTO*AREA_ARRENDADA*VLOOKUP(PRAZO_PROJETO,LISTAS!J1:K16,2,0),0)","v":0},null,null,"RENTABILIDADE"]
[null,"ASSISTÊNCIA TÉCNICA",0,null,null,"ESPECIFICAÇÃO","VALOR"]
[null,"OUTRAS DESPESAS:",null,null,null,"RECEITA - DESPESA",{"$f":"IFERROR(Tabela1319[[#Totals],[VALOR]]-Tabela13[[#Totals],[VALOR]],\"-\")","v":0}]
[null,null,null,null,null,"RENTABILIDADE ",{"$f":"IFERROR(Tabela1319[[#Totals],[VALOR]]/Tabela13[[#Totals],[VALOR]],1)-1","v":0}]
[]
[]
[null,"Total",{"$f":"SUBTOTAL(109,Tabela13[VALOR])","v":0}]
[]
[]
[]
[null,"________________________________________",null,null,null,"________________________________________"]
[null,{"$f":"UPPER('INFORMAÇÕES GERAIS'!F19)","v":""},null,null,null,{"$f":"UPPER('INFORMAÇÕES GERAIS'!H15)","v":""}]
[null,"Proponente",null,null,null,"Responsável Técnico"]

{"sheet":"CAPACIDADE DE PAGAMENTO","index":9,"n_rows":120,"n_cols":15,"rows_kept":120,"cut":false,"hidden":true,"merged":[[7,12,7,13],[107,1,107,3],[106,5,106,8],[53,1,53,8],[75,1,75,8],[7,1,7,8],[118,5,118,8],[112,5,112,7],[108,1,108,3],[109,1,109,3],[108,5,108,7],[109,5,109,7],[119,5,119,8],[118,1,118,4],[119,1,119,4],[100,5,100,7],[101,5,101,7],[105,5,105,7],[100,1,100,3],[101,1,101,3],[104,5,104,7],[104,1,104,3],[110,5,110,7],[110,1,110,3],[107,5,107,7],[117,5,117,8],[117,1,117,4],[112,1,112,3],[6,1,6,8],[0,1,0,8],[106,1,106,4],[105,1,105,3],[29,1,29,8],[98,1,98,8],[99,5,99,8],[99,1,99,4],[102,5,102,7],[103,5,103,7],[52,1,52,8]]}
[]
[]
[]
[]
[]
[]
[null,"ATIVIDADE AGRÍCOLAS"]
[null,"RECEITAS PREVISTAS"]
[0,"CULTURA","EMPRESA / GRUPO","PARTICIPAÇÃO\n(%)","ÁREA\n(ha)","PRODUTIVIDADE (kg/ha)","RECEITA\n(R$/kg)","RECEITA TOTAL\n(R$)","RECEITA PART. \n(R$)",null,{"$f":"SUM(L10:L29)","v":1},null,{"$f":"SUM(N10:N29)","v":0},null,"Os que estão em amarelo, são contadores. O primeiro é um controle de quantas linhas estão inseridas. O segundo é um controle de quantas linhas estão completamente preenchidas. Se eles estiverem diferente, significa que existe linha sem todos os dados preenchidos."]
[null,"ABÓBORA",null,null,null,null,null,{"$f":"IFERROR(IF(G10=\"\",\"\",G10*F10*E10),\"\")","v":""},{"$f":"IFERROR(IF(G10=\"\",\"\",D10*H10),\" \")","v":""},null,null,1,{"$f":"IF(AND(I10<>\"\",OR(H10<>\"\",G10<>\"\",F10<>\"\",E10<>\"\",D10<>\"\",C10<>\"\",B10<>\"\")),1,0)","v":0},{"$f":"M10*L10","v":0}]
[null,null,null,null,null,null,null,{"$f":"IFERROR(IF(G11=\"\",\"\",G11*F11*E11),\"\")","v":""},{"$f":"IFERROR(IF(G11=\"\",\"\",D11*H11),\"\")","v":""},null,null,null,0,{"$f":"M11*L11","v":0}]
[null,null,null,null,null,null,null,{"$f":"IFERROR(IF(G12=\"\",\"\",G12*F12*E12),\"\")","v":""},"",null,null,null,0,0]
[null,null,null,null,null,null,null,"","",null,null,null,0,0]
[null,null,null,null,null,null,null,"","",null,null,null,0,0]
[null,null,null,null,null,null,null,"","",null,null,null,0,0]
[null,null,null,null,null,null,null,"","",null,null,null,0,0]
[null,null,null,null,null,null,null,"","",null,null,null,0,0]
[null,null,null,null,null,null,null,"","",null,null,null,0,0]
[null,null,null,null,null,null,null,"","",null,null,null,0,0]
[null,null,null,null,null,null,null,"","",null,null,null,0,0]
[null,null,null,null,null,null,null,"","",null,null,null,0,0]
[null,null,null,null,null,null,null,"","",null,null,null,0,0]
[null,null,null,null,null,null,null,"","",null,null,null,0,0]
[null,null,null,null,null,null,null,"","",null,null,null,0,0]
[null,null,null,null,null,null,null,"","",null,null,null,0,0]
[null,null,null,null,null,null,null,"","",null,null,null,0,0]
[null,null,null,null,null,null,null,"","",null,null,null,0,0]
[null,null,null,null,null,null,null,"","",null,null,null,0,0]
[null,null,null,null,null,null,null,"","",null,null,null,0,0]
[null,"CUSTOS DE PRODUÇÃO"]
[null,"CULTURA","EMPRESA / GRUPO","PARTICIPAÇÃO\n(%)","ÁREA\n(ha)","PRODUTIVIDADE (kg/ha)","CUSTO\n(R$/kg)","CUSTO TOTAL\n (R$)","CUSTO PART.\n (R$)",null,{"$f":"SUM(L32:L51)","v":1},null,{"$f":"SUM(N32:N51)","v":0}]
[null,{"$f":"IF(B10=\"\",\"\",B10)","v":"ABÓBORA"},{"$f":"IF(C10=\"\",\"\",C10)","v":""},{"$f":"IF(D10=\"\",\"\",D10)","v":""},{"$f":"IF(E10=\"\",\"\",E10)","v":""},{"$f":"IF(F10=\"\",\"\",F10)","v":""},null,{"$f":"IFERROR(IF(G32=\"\",\"\",G32*F32*E32),\"\")","v":""},{"$f":"IFERROR(IF(G32=\"\",\"\",D32*H32),\"\")","v":""},null,null,1,{"$f":"IF(AND(I32<>\"\",OR(H32<>\"\",G32<>\"\",F32<>\"\",E32<>\"\",D32<>\"\",C32<>\"\",B32<>\"\")),1,0)","v":0},{"$f":"M32*L32","v":0}]
[null,{"$f":"IF(B11=\"\",\"\",B11)","v":""},{"$f":"IF(C11=\"\",\"\",C11)","v":""},"","","",null,{"$f":"IFERROR(IF(G33=\"\",\"\",G33*F33*E33),\"\")","v":""},{"$f":"IFERROR(IF(G33=\"\",\"\",D33*H33),\"\")","v":""},null,null,null,{"$f":"IF(AND(I33<>\"\",OR(H33<>\"\",G33<>\"\",F33<>\"\",E33<>\"\",D33<>\"\",C33<>\"\",B33<>\"\")),1,0)","v":0},{"$f":"M33*L33","v":0}]
[null,{"$f":"IF(B12=\"\",\"\",B12)","v":""},"","","","",null,"","",null,null,null,0,0]
[null,{"$f":"IF(B13=\"\",\"\",B13)","v":""},"","","","",null,"","",null,null,null,0,0]
[null,{"$f":"IF(B14=\"\",\"\",B14)","v":""},"","","","",null,"","",null,null,null,0,0]
[null,{"$f":"IF(B15=\"\",\"\",B15)","v":""},"","","","",null,"","",null,null,null,0,0]
[null,{"$f":"IF(B16=\"\",\"\",B16)","v":""},"","","","",null,"","",null,null,null,0,0]
[null,{"$f":"IF(B17=\"\",\"\",B17)","v":""},"","","","",null,"","",null,null,null,0,0]
[null,{"$f":"IF(B18=\"\",\"\",B18)","v":""},"","","","",null,"","",null,null,null,0,0]
[null,{"$f":"IF(B19=\"\",\"\",B19)","v":""},"","","","",null,"","",null,null,null,0,0]
[null,{"$f":"IF(B20=\"\",\"\",B20)","v":""},"","","","",null,"","",null,null,null,0,0]
[null,{"$f":"IF(B21=\"\",\"\",B21)","v":""},"","","","",null,"","",null,null,null,0,0]
[null,{"$f":"IF(B22=\"\",\"\",B22)","v":""},"","","","",null,"","",null,null,null,0,0]
[null,{"$f":"IF(B23=\"\",\"\",B23)","v":""},"","","","",null,"","",null,null,null,0,0]
[null,{"$f":"IF(B24=\"\",\"\",B24)","v":""},"","","","",null,"","",null,null,null,0,0]
[null,{"$f":"IF(B25=\"\",\"\",B25)","v":""},"","","","",null,"","",null,null,null,0,0]
[null,{"$f":"IF(B26=\"\",\"\",B26)","v":""},"","","","",null,"","",null,null,null,0,0]
[null,{"$f":"IF(B27=\"\",\"\",B27)","v":""},"","","","",null,"","",null,null,null,0,0]
[null,{"$f":"IF(B28=\"\",\"\",B28)","v":""},"","","","",null,"","",null,null,null,0,0]
[null,{"$f":"IF(B29=\"\",\"\",B29)","v":""},"","","","",null,{"$f":"IFERROR(IF(G51=\"\",\"\",G51*F51*E51),\"\")","v":""},{"$f":"IFERROR(IF(G51=\"\",\"\",D51*H51),\"\")","v":""},null,null,null,0,0]
[null," ",null,null," "]
[null,"ATIVIDADES PECUÁRIAS"]
[null,"RECEITAS PREVISTAS"]
[null,"ATIVIDADE","EMPRESA / GRUPO","PARTICIPAÇÃO\n(%)","UNIDADE DE PRODUÇÃO","PRODUTIVIDADE","RECEITA\n(R$/UN)","RECEITA TOTAL\n(R$)","RECEITA PART. \n(R$)",null,{"$f":"SUM(L56:L75)","v":1},null,{"$f":"SUM(N56:N75)","v":0}]
[null,null,null,null,{"$f":"IF(B56=\"LEITE\",\"LITROS\",IF(B56=\"\",\"\",\"CABEÇAS\"))","v":""},null,null,{"$f":"IF(G56=\"\",\"\",G56*F56)","v":""},{"$f":"IF(G56=\"\",\"\",H56*D56)","v":""},null,null,1,{"$f":"IF(AND(I56<>\"\",OR(H56<>\"\",G56<>\"\",F56<>\"\",E56<>\"\",D56<>\"\",C56<>\"\",B56<>\"\")),1,0)","v":0},{"$f":"M56*L56","v":0}]
[null,null,null,null,{"$f":"IF(B57=\"LEITE\",\"LITROS\",IF(B57=\"\",\"\",\"CABEÇAS\"))","v":""},null,null,{"$f":"IF(G57=\"\",\"\",G57*F57)","v":""},{"$f":"IF(G57=\"\",\"\",H57*D57)","v":""},null,null,null,{"$f":"IF(AND(I57<>\"\",OR(H57<>\"\",G57<>\"\",F57<>\"\",E57<>\"\",D57<>\"\",C57<>\"\",B57<>\"\")),1,0)","v":0},{"$f":"M57*L57","v":0}]
[null,null,null,null,"",null,null,{"$f":"IF(G58=\"\",\"\",G58*F58)","v":""},{"$f":"IF(G58=\"\",\"\",H58*D58)","v":""},null,null,null,0,0]
[null,null,null,null,{"$f":"IF(B59=\"LEITE\",\"LITROS\",IF(B59=\"\",\"\",\"CABEÇAS\"))","v":""},null,null,{"$f":"IF(G59=\"\",\"\",G59*F59)","v":""},{"$f":"IF(G59=\"\",\"\",H59*D59)","v":""},null,null,null,0,0]
[null,null,null,null,"",null,null,"","",null,null,null,0,0]
[null,null,null,null,"",null,null,"","",null,null,null,0,0]
[null,null,null,null,"",null,null,"","",null,null,null,0,0]
[null,null,null,null,"",null,null,"","",null,null,null,0,0]
[null,null,null,null,"",null,null,"","",null,null,null,0,0]
[null,null,null,null,"",null,null,"","",null,null,null,0,0]
[null,null,null,null,"",null,null,"","",null,null,null,0,0]
[null,null,null,null,"",null,null,"","",null,null,null,0,0]
[null,null,null,null,"",null,null,"","",null,null,null,0,0]
[null,null,null,null,"",null,null,"","",null,null,null,0,0]
[null,null,null,null,{"$f":"IF(B70=\"LEITE\",\"LITROS\",IF(B70=\"\",\"\",\"CABEÇAS\"))","v":""},null,null,{"$f":"IF(G70=\"\",\"\",G70*F70)","v":""},{"$f":"IF(G70=\"\",\"\",H70*D70)","v":""},null,null,null,0,0]
[null,null,null,null,"",null,null,"","",null,null,null,0,0]
[null,null,null,null,"",null,null,"","",null,null,null,0,0]
[null,null,null,null,"",null,null,"","",null,null,null,0,0]
[null,null,null,null,"",null,null,"","",null,null,null,0,0]
[null,null,null,null,"",null,null,"","",null,null,null,0,0]
[null,"CUSTOS DE PRODUÇÃO"]
[null,"ATIVIDADE","EMPRESA / GRUPO","PARTICIPAÇÃO\n(%)","UNIDADE DE PRODUÇÃO","PRODUTIVIDADE","CUSTO \n(R$/U.A)","CUSTO TOTAL\n (R$)","CUSTO PART.\n (R$)",null,{"$f":"SUM(L78:L97)","v":1},null,{"$f":"SUM(N78:N97)","v":0}]
[null,{"$f":"IF(B56=\"\",\"\",B56)","v":""},"","","","",null,{"$f":"IF(G78=\"\",\"\",G78*F78)","v":""},{"$f":"IF(G78=\"\",\"\",H78*D78)","v":""},null,null,1,{"$f":"IF(AND(I78<>\"\",OR(H78<>\"\",G78<>\"\",F78<>\"\",E78<>\"\",D78<>\"\",C78<>\"\",B78<>\"\")),1,0)","v":0},{"$f":"M78*L78","v":0}]
[null,"","","","","",null,{"$f":"IF(G79=\"\",\"\",G79*F79)","v":""},{"$f":"IF(G79=\"\",\"\",H79*D79)","v":""},null,null,null,{"$f":"IF(AND(I79<>\"\",OR(H79<>\"\",G79<>\"\",F79<>\"\",E79<>\"\",D79<>\"\",C79<>\"\",B79<>\"\")),1,0)","v":0},{"$f":"M79*L79","v":0}]
[null,"","","","","",null,{"$f":"IF(G80=\"\",\"\",G80*F80)","v":""},{"$f":"IF(G80=\"\",\"\",H80*D80)","v":""},null,null,null,0,0]
[null,{"$f":"IF(B59=\"\",\"\",B59)","v":""},"","","","",null,{"$f":"IF(G81=\"\",\"\",G81*F81)","v":""},{"$f":"IF(G81=\"\",\"\",H81*D81)","v":""},null,null,null,0,0]
[null,"","","","","",null,"","",null,null,null,0,0]
[null,"","","","","",null,"","",null,null,null,0,0]
[null,"","","","","",null,"","",null,null,null,0,0]
[null,"","","","","",null,"","",null,null,null,0,0]
[null,"","","","","",null,"","",null,null,null,0,0]
[null,"","","","","",null,"","",null,null,null,0,0]
[null,"","","","","",null,"","",null,null,null,0,0]
[null,"","","","","",null,"","",null,null,null,0,0]
[null,"","","","","",null,"","",null,null,null,0,0]
[null,"","","","","",null,"","",null,null,null,0,0]
[null,"","","","","",null,"","",null,null,null,0,0]
[null,"","","","","",null,"","",null,null,null,0,0]
[null,"","","","","",null,"","",null,null,null,0,0]
[null,"","","","","",null,"","",null,null,null,0,0]
[null,"","","","","",null,"","",null,null,null,0,0]
[null,"","","","","",null,"","",null,null,null,0,0]
[]
[null,"CAPACIDADE DE PAGAMENTO"]
[null,"RECEITAS",null,null,null,"DESPESAS"]
[null,"RECEITA PREVISTA ATIVIDADES AGRÍCOLAS",null,null,{"$f":"SUM(I10:I29)","v":0},"CUSTO PREVISTO ATIVIDADES AGRÍCOLAS",null,null,{"$f":"SUM(I32:I51)","v":0}]
[null,"RECEITA PREVISTA ATIVIDADES PECUÁRIAS",null,null,{"$f":"SUM(I56:I75)","v":0},"CUSTO PREVISTO ATIVIDADES PECUÁRIAS",null,null,{"$f":"SUM(I78:I97)","v":0}]
[null,null,null,null,null,"OUTROS ARRENDAMENTOS"]
[null,null,null,null,null,"JUROS DE OUTROS FINANCIAMENTOS"]
[null,null,null,null,null,"MANUTENÇÃO DE MAQUINÁRIO"]
[null,null,null,null,null,"MANUTENÇÃO FAMILIAR MENSAL"]
[null,"OUTRAS RECEITAS PREVISTAS:",null,null,null,"OUTRAS DESPESAS PREVISTAS:"]
[]
[]
[]
[null,"TOTAL RECEITAS:",null,null,{"$f":"IF(SUM(E101:E104,E108:E110)=0,\"-\",SUM(E101:E104,E108:E110))","v":"-"},"TOTAL DESPESAS:",null,null,{"$f":"IF((SUM(I101:I110)+(I106*11))=0,\"-\",(SUM(I101:I110)+(I106*(VLOOKUP(PRAZO_PROJETO,LISTAS!J:K,2,0)-1))))","v":"-"}]
[]
[null,"RESULTADO (RECEITAS - DESPESAS): ",null,null,{"$f":"IFERROR(E111-I111,\"-\")","v":"-"},"RENTABILIDADE (RESULTADO/DESPESAS):",null,null,{"$f":"IFERROR(((E111-I111)/I111),\"-\")","v":"-"}]
[]
[]
[]
[]
[null,"________________________________________",null,null,null,"________________________________________"]
[null,{"$f":"UPPER('INFORMAÇÕES GERAIS'!F19)","v":""},null,null,null,{"$f":"UPPER('INFORMAÇÕES GERAIS'!H15)","v":""}]
[null,"Proponente",null,null,null,"Responsável Técnico"]

{"sheet":"PATRIMÔNIO","index":10,"n_rows":496,"n_cols":58,"rows_kept":496,"cut":false,"hidden":true,"merged":[[109,33,109,35],[162,0,162,28],[162,29,162,32],[367,0,367,29],[367,30,367,32],[422,0,422,25],[422,26,422,32],[475,0,475,29],[475,30,475,32],[108,33,108,35],[162,33,162,38],[162,39,162,44],[367,33,367,38],[367,39,367,44],[422,33,422,38],[422,39,422,44],[475,33,475,38],[475,39,475,44],[423,0,423,44],[442,0,442,6],[442,7,442,29],[442,30,442,32],[442,33,442,38],[442,39,442,44],[139,5,139,28],[139,29,139,32],[139,33,139,38],[139,39,139,44],[140,5,140,28],[140,29,140,32],[140,33,140,38],[142,5,142,28],[142,29,142,32],[142,33,142,38],[142,39,142,44],[143,5,143,28],[143,29,143,32],[143,33,143,38],[440,0,440,6],[440,7,440,29],[440,30,440,32],[440,33,440,38],[440,39,440,44],[434,0,434,6],[434,7,434,29],[434,30,434,32],[434,33,434,38],[434,39,434,44],[435,0,435,6],[435,7,435,29],[435,30,435,32],[435,33,435,38],[435,39,435,44],[432,0,432,6],[432,7,432,29],[432,30,432,32],[432,33,432,38],[432,39,432,44],[433,0,433,6],[433,7,433,29],[433,30,433,32],[433,33,433,38],[433,39,433,44],[430,30,430,32],[441,0,441,6],[441,7,441,29],[441,30,441,32],[441,33,441,38],[441,39,441,44],[438,0,438,6],[438,7,438,29],[438,30,438,32],[438,33,438,38],[438,39,438,44],[439,0,439,6],[439,7,439,29],[439,30,439,32],[439,33,439,38],[439,39,439,44],[436,0,436,6],[436,7,436,29],[436,30,436,32],[436,33,436,38],[436,39,436,44],[437,0,437,6],[437,7,437,29],[437,30,437,32],[437,33,437,38],[437,39,437,44],[430,33,430,38],[430,39,430,44],[431,0,431,6],[431,7,431,29],[431,30,431,32],[431,33,431,38],[431,39,431,44],[428,0,428,6],[428,7,428,29],[428,30,428,32],[428,33,428,38],[428,39,428,44],[429,0,429,6],[429,7,429,29],[429,30,429,32],[429,33,429,38],[429,39,429,44],[397,19,397,25],[397,26,397,32],[397,33,397,38],[397,39,397,44],[402,0,402,6],[402,7,402,12],[402,13,402,18],[402,19,402,25],[402,26,402,32],[402,33,402,38],[402,39,402,44],[403,0,403,6],[403,7,403,12],[403,13,403,18],[403,19,403,25],[403,26,403,32],[403,33,403,38],[403,39,403,44],[400,0,400,6],[400,7,400,12],[400,13,400,18],[400,19,400,25],[400,26,400,32],[400,33,400,38],[400,39,400,44],[401,0,401,6],[401,7,401,12],[401,13,401,18],[401,19,401,25],[401,26,401,32],[401,33,401,38],[401,39,401,44],[267,0,267,5],[267,6,267,29],[267,30,267,32],[267,33,267,38],[267,39,267,44],[268,0,268,5],[268,6,268,29],[268,30,268,32],[268,33,268,38],[268,39,268,44],[340,6,340,29],[340,30,340,32],[340,33,340,38],[340,39,340,44],[341,0,341,5],[341,6,341,29],[341,30,341,32],[341,33,341,38],[341,39,341,44],[338,0,338,5],[338,6,338,29],[338,30,338,32],[338,33,338,38],[338,39,338,44],[339,0,339,5],[339,6,339,29],[339,30,339,32],[339,33,339,38],[339,39,339,44],[318,0,318,5],[315,0,315,5],[316,0,316,5],[265,0,265,5],[265,6,265,29],[265,30,265,32],[265,33,265,38],[265,39,265,44],[266,0,266,5],[266,6,266,29],[266,30,266,32],[266,33,266,38],[266,39,266,44],[263,0,263,5],[263,6,263,29],[263,30,263,32],[263,33,263,38],[263,39,263,44],[264,0,264,5],[264,6,264,29],[264,30,264,32],[264,33,264,38],[264,39,264,44],[261,0,261,5],[261,6,261,29],[261,30,261,32],[261,33,261,38],[261,39,261,44],[262,0,262,5],[262,6,262,29],[262,30,262,32],[262,33,262,38],[262,39,262,44],[259,0,259,5],[259,6,259,29],[259,30,259,32],[259,33,259,38],[259,39,259,44],[260,0,260,5],[260,6,260,29],[260,30,260,32],[260,33,260,38],[260,39,260,44],[257,0,257,5],[257,6,257,29],[257,30,257,32],[257,33,257,38],[257,39,257,44],[258,0,258,5],[258,6,258,29],[258,30,258,32],[258,33,258,38],[258,39,258,44],[255,0,255,5],[255,6,255,29],[255,30,255,32],[255,33,255,38],[255,39,255,44],[256,0,256,5],[256,6,256,29],[256,30,256,32],[256,33,256,38],[256,39,256,44],[253,0,253,5],[253,6,253,29],[253,30,253,32],[253,33,253,38],[253,39,253,44],[254,0,254,5],[254,6,254,29],[254,30,254,32],[254,33,254,38],[254,39,254,44],[251,0,251,5],[251,6,251,29],[251,30,251,32],[251,33,251,38],[251,39,251,44],[252,0,252,5],[252,6,252,29],[252,30,252,32],[252,33,252,38],[252,39,252,44],[218,6,218,29],[218,30,218,32],[218,33,218,38],[218,39,218,44],[208,39,208,44],[205,0,205,5],[205,6,205,29],[205,30,205,32],[205,33,205,38],[205,39,205,44],[206,0,206,5],[249,0,249,5],[249,6,249,29],[249,30,249,32],[249,33,249,38],[249,39,249,44],[250,0,250,5],[250,6,250,29],[250,30,250,32],[250,33,250,38],[250,39,250,44],[247,0,247,5],[247,6,247,29],[247,30,247,32],[247,33,247,38],[247,39,247,44],[248,0,248,5],[248,6,248,29],[248,30,248,32],[248,33,248,38],[248,39,248,44],[245,6,245,29],[245,30,245,32],[245,33,245,38],[245,39,245,44],[246,0,246,5],[246,6,246,29],[246,30,246,32],[246,33,246,38],[246,39,246,44],[243,0,243,5],[243,6,243,29],[243,30,243,32],[243,33,243,38],[243,39,243,44],[244,0,244,5],[244,6,244,29],[244,30,244,32],[244,33,244,38],[244,39,244,44],[206,6,206,29],[206,30,206,32],[206,33,206,38],[206,39,206,44],[202,39,202,44],[203,0,203,5],[197,0,197,5],[197,6,197,29],[197,30,197,32],[197,33,197,38],[197,39,197,44],[194,0,194,5],[194,6,194,29],[194,30,194,32],[194,33,194,38],[194,39,194,44],[195,0,195,5],[195,6,195,29],[195,30,195,32],[195,33,195,38],[195,39,195,44],[198,0,198,5],[198,6,198,29],[198,30,198,32],[198,33,198,38],[198,39,198,44],[201,30,201,32],[201,33,201,38],[201,39,201,44],[202,0,202,5],[202,6,202,29],[202,30,202,32],[193,6,193,29],[193,30,193,32],[193,33,193,38],[193,39,193,44],[190,0,190,5],[190,6,190,29],[190,30,190,32],[190,33,190,38],[190,39,190,44],[191,0,191,5],[191,6,191,29],[191,30,191,32],[191,33,191,38],[191,39,191,44],[196,0,196,5],[196,6,196,29],[196,30,196,32],[196,33,196,38],[196,39,196,44],[189,0,189,5],[189,6,189,29],[189,30,189,32],[189,33,189,38],[189,39,189,44],[213,0,213,5],[213,6,213,29],[213,30,213,32],[213,33,213,38],[213,39,213,44],[184,0,184,5],[184,6,184,29],[184,30,184,32],[184,33,184,38],[184,39,184,44],[185,0,185,5],[185,6,185,29],[185,30,185,32],[185,33,185,38],[185,39,185,44],[186,0,186,5],[186,6,186,29],[186,30,186,32],[186,33,186,38],[186,39,186,44],[187,0,187,5],[192,0,192,5],[192,6,192,29],[192,30,192,32],[192,33,192,38],[192,39,192,44],[193,0,193,5],[187,6,187,29],[187,30,187,32],[187,33,187,38],[211,0,211,5],[211,6,211,29],[211,30,211,32],[211,33,211,38],[211,39,211,44],[212,0,212,5],[212,6,212,29],[212,30,212,32],[212,33,212,38],[212,39,212,44],[209,0,209,5],[209,6,209,29],[209,30,209,32],[209,33,209,38],[209,39,209,44],[210,0,210,5],[210,6,210,29],[210,30,210,32],[210,33,210,38],[210,39,210,44],[207,0,207,5],[207,6,207,29],[207,30,207,32],[187,39,187,44],[188,0,188,5],[188,6,188,29],[188,30,188,32],[188,33,188,38],[188,39,188,44],[343,33,343,38],[343,39,343,44],[340,0,340,5],[203,6,203,29],[203,30,203,32],[203,33,203,38],[203,39,203,44],[204,0,204,5],[204,6,204,29],[204,30,204,32],[204,33,204,38],[204,39,204,44],[348,0,348,5],[348,6,348,29],[348,30,348,32],[348,33,348,38],[348,39,348,44],[207,33,207,38],[207,39,207,44],[208,0,208,5],[208,6,208,29],[208,30,208,32],[208,33,208,38],[241,0,241,5],[241,6,241,29],[241,30,241,32],[241,33,241,38],[241,39,241,44],[242,0,242,5],[242,6,242,29],[242,30,242,32],[242,33,242,38],[319,0,319,5],[320,0,320,5],[317,0,317,5],[202,33,202,38],[346,0,346,5],[346,6,346,29],[346,30,346,32],[346,33,346,38],[346,39,346,44],[347,0,347,5],[347,6,347,29],[347,30,347,32],[347,33,347,38],[347,39,347,44],[344,0,344,5],[344,6,344,29],[344,30,344,32],[344,33,344,38],[344,39,344,44],[345,0,345,5],[345,6,345,29],[345,30,345,32],[345,33,345,38],[345,39,345,44],[342,0,342,5],[342,6,342,29],[342,30,342,32],[342,33,342,38],[342,39,342,44],[343,0,343,5],[343,6,343,29],[343,30,343,32],[337,0,337,5],[335,0,335,5],[336,0,336,5],[333,0,333,5],[334,0,334,5],[331,0,331,5],[332,0,332,5],[329,0,329,5],[330,0,330,5],[327,0,327,5],[328,0,328,5],[325,0,325,5],[326,0,326,5],[323,0,323,5],[324,0,324,5],[321,0,321,5],[322,0,322,5],[102,0,102,1],[102,2,102,4],[102,40,102,44],[99,0,99,1],[99,2,99,4],[99,5,99,32],[99,33,99,35],[99,36,99,39],[215,33,215,38],[215,39,215,44],[216,0,216,5],[216,6,216,29],[216,30,216,32],[216,33,216,38],[216,39,216,44],[217,0,217,5],[217,6,217,29],[217,30,217,32],[217,33,217,38],[217,39,217,44],[199,0,199,5],[199,6,199,29],[199,30,199,32],[199,33,199,38],[199,39,199,44],[200,0,200,5],[200,6,200,29],[200,30,200,32],[200,33,200,38],[200,39,200,44],[201,0,201,5],[201,6,201,29],[104,0,104,1],[104,2,104,4],[118,33,118,38],[118,39,118,44],[119,0,119,4],[119,5,119,28],[119,29,119,32],[119,33,119,38],[119,39,119,44],[120,0,120,4],[120,5,120,28],[120,29,120,32],[120,33,120,38],[120,39,120,44],[104,40,104,44],[116,5,116,28],[116,29,116,32],[116,33,116,38],[116,39,116,44],[117,0,117,4],[117,5,117,28],[117,29,117,32],[117,33,117,38],[117,39,117,44],[118,0,118,4],[118,5,118,28],[109,36,109,39],[109,40,109,44],[107,36,107,39],[108,36,108,39],[107,33,107,35],[109,0,109,32],[25,5,25,32],[25,33,25,35],[25,36,25,39],[25,40,25,44],[26,0,26,1],[26,2,26,4],[26,5,26,32],[26,33,26,35],[26,36,26,39],[26,40,26,44],[27,5,27,32],[27,40,27,44],[28,0,28,1],[28,2,28,4],[28,5,28,32],[28,33,28,35],[28,36,28,39],[28,40,28,44],[25,0,25,1],[25,2,25,4],[27,0,27,1],[27,2,27,4],[24,0,24,1],[24,2,24,4],[24,5,24,32],[24,33,24,35],[24,36,24,39],[24,40,24,44],[21,5,21,32],[21,33,21,35],[21,36,21,39],[21,40,21,44],[22,0,22,1],[22,2,22,4],[22,5,22,32],[22,33,22,35],[22,36,22,39],[22,40,22,44],[21,2,21,4],[23,0,23,1],[23,2,23,4],[19,5,19,32],[19,33,19,35],[19,36,19,39],[19,40,19,44],[20,0,20,1],[20,2,20,4],[20,5,20,32],[20,33,20,35],[20,36,20,39],[20,40,20,44],[17,5,17,32],[18,2,18,4],[18,5,18,32],[18,33,18,35],[18,36,18,39],[18,40,18,44],[23,5,23,32],[23,33,23,35],[23,36,23,39],[23,40,23,44],[13,0,13,1],[13,2,13,4],[13,5,13,32],[13,33,13,35],[13,36,13,39],[13,40,13,44],[14,0,14,1],[14,2,14,4],[14,5,14,32],[14,33,14,35],[14,36,14,39],[14,40,14,44],[15,0,15,1],[15,2,15,4],[15,5,15,32],[15,33,15,35],[15,36,15,39],[15,40,15,44],[16,0,16,1],[16,2,16,4],[16,5,16,32],[472,39,472,44],[473,39,473,44],[470,39,470,44],[471,39,471,44],[468,39,468,44],[469,39,469,44],[466,39,466,44],[467,39,467,44],[464,39,464,44],[465,39,465,44],[462,39,462,44],[463,39,463,44],[460,39,460,44],[461,39,461,44],[458,39,458,44],[459,39,459,44],[456,39,456,44],[457,39,457,44],[454,39,454,44],[455,39,455,44],[452,39,452,44],[453,39,453,44],[450,39,450,44],[451,39,451,44],[448,39,448,44],[449,39,449,44],[446,39,446,44],[447,39,447,44],[444,39,444,44],[445,39,445,44],[443,39,443,44],[455,0,455,6],[455,7,455,29],[455,30,455,32],[455,33,455,38],[456,0,456,6],[456,7,456,29],[456,30,456,32],[456,33,456,38],[457,0,457,6],[457,7,457,29],[457,30,457,32],[457,33,457,38],[453,0,453,6],[453,33,453,38],[454,0,454,6],[454,33,454,38],[453,7,453,29],[453,30,453,32],[454,7,454,29],[454,30,454,32],[451,0,451,6],[451,33,451,38],[452,0,452,6],[452,33,452,38],[451,7,451,29],[451,30,451,32],[452,7,452,29],[452,30,452,32],[449,0,449,6],[449,33,449,38],[426,39,426,44],[427,39,427,44],[421,39,421,44],[419,39,419,44],[420,39,420,44],[417,39,417,44],[418,39,418,44],[415,39,415,44],[416,39,416,44],[415,0,415,6],[425,39,425,44],[424,39,424,44],[417,26,417,32],[417,33,417,38],[450,0,450,6],[450,33,450,38],[449,7,449,29],[449,30,449,32],[450,7,450,29],[450,30,450,32],[447,0,447,6],[447,33,447,38],[448,0,448,6],[448,33,448,38],[447,7,447,29],[447,30,447,32],[448,7,448,29],[448,30,448,32],[445,0,445,6],[445,33,445,38],[446,0,446,6],[446,33,446,38],[413,39,413,44],[414,39,414,44],[411,39,411,44],[412,39,412,44],[409,39,409,44],[410,39,410,44],[407,39,407,44],[408,39,408,44],[405,39,405,44],[406,39,406,44],[413,0,413,6],[413,7,413,12],[413,13,413,18],[413,19,413,25],[413,26,413,32],[413,33,413,38],[414,0,414,6],[414,7,414,12],[414,13,414,18],[414,19,414,25],[414,26,414,32],[414,33,414,38],[411,0,411,6],[411,7,411,12],[411,13,411,18],[411,19,411,25],[411,26,411,32],[411,33,411,38],[412,0,412,6],[412,7,412,12],[412,13,412,18],[412,19,412,25],[412,26,412,32],[412,33,412,38],[409,0,409,6],[409,7,409,12],[409,13,409,18],[409,19,409,25],[409,26,409,32],[409,33,409,38],[410,0,410,6],[410,7,410,12],[410,13,410,18],[410,19,410,25],[410,26,410,32],[410,33,410,38],[407,0,407,6],[407,7,407,12],[407,13,407,18],[407,19,407,25],[407,26,407,32],[407,33,407,38],[408,0,408,6],[408,7,408,12],[408,13,408,18],[408,19,408,25],[408,26,408,32],[408,33,408,38],[405,0,405,6],[405,7,405,12],[405,13,405,18],[405,19,405,25],[405,26,405,32],[405,33,405,38],[406,0,406,6],[406,7,406,12],[406,13,406,18],[406,19,406,25],[406,26,406,32],[406,33,406,38],[393,0,393,6],[393,7,393,12],[393,13,393,18],[393,19,393,25],[393,26,393,32],[393,33,393,38],[394,0,394,6],[394,7,394,12],[394,13,394,18],[394,19,394,25],[394,26,394,32],[394,33,394,38],[398,0,398,6],[398,7,398,12],[398,13,398,18],[398,19,398,25],[398,26,398,32],[398,33,398,38],[399,0,399,6],[399,7,399,12],[393,39,393,44],[404,0,404,6],[404,7,404,12],[404,13,404,18],[404,19,404,25],[404,26,404,32],[404,33,404,38],[404,39,404,44],[395,0,395,6],[395,7,395,12],[395,13,395,18],[395,19,395,25],[395,26,395,32],[395,33,395,38],[395,39,395,44],[396,0,396,6],[396,7,396,12],[396,13,396,18],[394,39,394,44],[398,39,398,44],[399,13,399,18],[399,19,399,25],[399,26,399,32],[399,33,399,38],[399,39,399,44],[396,19,396,25],[396,26,396,32],[396,33,396,38],[396,39,396,44],[397,0,397,6],[397,7,397,12],[397,13,397,18],[391,0,391,6],[391,7,391,12],[391,13,391,18],[391,19,391,25],[391,26,391,32],[391,33,391,38],[391,39,391,44],[392,0,392,6],[392,7,392,12],[392,13,392,18],[392,19,392,25],[392,26,392,32],[392,33,392,38],[392,39,392,44],[389,0,389,6],[389,7,389,12],[389,13,389,18],[389,19,389,25],[389,26,389,32],[389,33,389,38],[389,39,389,44],[390,0,390,6],[390,7,390,12],[390,13,390,18],[390,19,390,25],[390,26,390,32],[390,33,390,38],[390,39,390,44],[388,0,388,6],[388,7,388,12],[388,13,388,18],[388,19,388,25],[388,26,388,32],[388,33,388,38],[388,39,388,44],[385,0,385,6],[385,7,385,12],[385,13,385,18],[385,19,385,25],[385,26,385,32],[385,33,385,38],[385,39,385,44],[386,0,386,6],[386,7,386,12],[386,13,386,18],[386,19,386,25],[386,26,386,32],[386,33,386,38],[386,39,386,44],[387,0,387,6],[387,7,387,12],[387,13,387,18],[387,19,387,25],[387,26,387,32],[387,33,387,38],[387,39,387,44],[365,0,365,5],[366,0,366,5],[363,0,363,5],[364,0,364,5],[361,0,361,5],[362,0,362,5],[359,0,359,5],[360,0,360,5],[357,0,357,5],[358,0,358,5],[355,0,355,5],[356,0,356,5],[353,0,353,5],[354,0,354,5],[351,0,351,5],[352,0,352,5],[349,0,349,5],[350,0,350,5],[313,0,313,5],[314,0,314,5],[311,0,311,5],[312,0,312,5],[309,0,309,5],[310,0,310,5],[309,6,309,29],[309,30,309,32],[309,33,309,38],[309,39,309,44],[310,6,310,29],[310,30,310,32],[310,33,310,38],[310,39,310,44],[307,0,307,5],[308,0,308,5],[307,6,307,29],[307,30,307,32],[307,33,307,38],[307,39,307,44],[308,6,308,29],[308,30,308,32],[308,33,308,38],[308,39,308,44],[311,6,311,29],[311,30,311,32],[311,33,311,38],[311,39,311,44],[312,6,312,29],[312,30,312,32],[312,33,312,38],[312,39,312,44],[305,0,305,5],[306,0,306,5],[305,6,305,29],[305,30,305,32],[305,33,305,38],[305,39,305,44],[306,6,306,29],[306,30,306,32],[306,33,306,38],[306,39,306,44],[303,0,303,5],[304,0,304,5],[303,6,303,29],[303,30,303,32],[303,33,303,38],[303,39,303,44],[304,6,304,29],[304,30,304,32],[304,33,304,38],[304,39,304,44],[301,0,301,5],[302,0,302,5],[301,6,301,29],[301,30,301,32],[301,33,301,38],[301,39,301,44],[302,6,302,29],[302,30,302,32],[302,33,302,38],[302,39,302,44],[299,0,299,5],[300,0,300,5],[299,6,299,29],[299,30,299,32],[299,33,299,38],[299,39,299,44],[300,6,300,29]],"merged_total":2532,"flags":["merged_cut"]}
[null,null,null,null,null,null,null,null,null,null,null,null,null,null,null,null,null,null,null,null,null,null,null,null,null,null,null,null,null,null,null,null,null,null,null,null,null,null,null,null,null,null,null,null,null,null,"SINALIZADORES DE INCLUSÃO E EXCLUSÃO (IMPORTANTES)!!!!"]
[]
[]
[]
[]
[]
["I - BENS IMÓVEIS"]
["IMÓVEIS RURAIS E URBANOS"]
["REF",null,"TIPO",null,null,"DESCRIÇÃO",null,null,null,null,null,null,null,null,null,null,null,null,null,null,null,null,null,null,null,null,null,null,null,null,null,null,null,"PART.\n%",null,null,"VALOR BEM\n (R$)",null,null,null,"VALOR %\n(R$)"]
[{"$f":"IF(C10<>\"\",1,\"\")","v":""},null,null,null,null,null,null,null,null,null,null,null,null,null,null,null,null,null,null,null,null,null,null,null,null,null,null,null,null,null,null,null,null,null,null,null,null,null,null,null,{"$f":"IF(OR(AH10=\"\",AK10=\"\"),\"\",AK10*AH10)","v":""},null,null,null,null,null,{"$f":"SUM(AV10:AV109)","v":1},1,null,null,null,null,null,null,null,null,{"$f":"_xlfn.CONCAT(\"IMÓVEL \",A10)","v":"IMÓVEL "},{"$f":"_xlfn.CONCAT(\"Be10:Be\"&(9+LARGE(A10:C109,1)))","v":{"$error":"#NUM!"}}]
[{"$f":"IF(C11<>\"\",1+A10,\"\")","v":""},null,null,null,null,null,null,null,null,null,null,null,null,null,null,null,null,null,null,null,null,null,null,null,null,null,null,null,null,null,null,null,null,null,null,null,null,null,null,null,{"$f":"IF(OR(AH11=\"\",AK11=\"\"),\"\",AK11*AH11)","v":""},null,null,null,null,null,null,null,null,null,null,null,null,null,null,null,{"$f":"_xlfn.CONCAT(\"IMÓVEL \",A11)","v":"IMÓVEL "}]
[{"$f":"IF(C12<>\"\",1+A11,\"\")","v":""},null,null,null,null,null,null,null,null,null,null,null,null,null,null,null,null,null,null,null,null,null,null,null,null,null,null,null,null,null,null,null,null,null,null,null,null,null,null,null,"",null,null,null,null,null,null,null,null,null,null,null,null,null,null,null,"IMÓVEL "]
["",null,null,null,null,null,null,null,null,null,null,null,null,null,null,null,null,null,null,null,null,null,null,null,null,null,null,null,null,null,null,null,null,null,null,null,null,null,null,null,{"$f":"IF(OR(AH13=\"\",AK13=\"\"),\"\",AK13*AH13)","v":""},null,null,null,null,null,null,null,null,null,null,null,null,null,null,null,"IMÓVEL "]
["",null,null,null,null,null,null,null,null,null,null,null,null,null,null,null,null,null,null,null,null,null,null,null,null,null,null,null,null,null,null,null,null,null,null,null,null,null,null,null,"",null,null,null,null,null,null,null,null,null,null,null,null,null,null,null,"IMÓVEL "]
["",null,null,null,null,null,null,null,null,null,null,null,null,null,null,null,null,null,null,null,null,null,null,null,null,null,null,null,null,null,null,null,null,null,null,null,null,null,null,null,"",null,null,null,null,null,null,null,null,null,null,null,null,null,null,null,"IMÓVEL "]
["",null,null,null,null,null,null,null,null,null,null,null,null,null,null,null,null,null,null,null,null,null,null,null,null,null,null,null,null,null,null,null,null,null,null,null,null,null,null,null,"",null,null,null,null,null,null,null,null,null,null,null,null,null,null,null,"IMÓVEL "]
["",null,null,null,null,null,null,null,null,null,null,null,null,null,null,null,null,null,null,null,null,null,null,null,null,null,null,null,null,null,null,null,null,null,null,null,null,null,null,null,"",null,null,null,null,null,null,null,null,null,null,null,null,null,null,null,"IMÓVEL "]
["",null,null,null,null,null,null,null,null,null,null,null,null,null,null,null,null,null,null,null,null,null,null,null,null,null,null,null,null,null,null,null,null,null,null,null,null,null,null,null,"",null,null,null,null,null,null,null,null,null,null,null,null,null,null,null,"IMÓVEL "]
["",null,null,null,null,null,null,null,null,null,null,null,null,null,null,null,null,null,null,null,null,null,null,null,null,null,null,null,null,null,null,null,null,null,null,null,null,null,null,null,"",null,null,null,null,null,null,null,null,null,null,null,null,null,null,null,"IMÓVEL "]
["",null,null,null,null,null,null,null,null,null,null,null,null,null,null,null,null,null,null,null,null,null,null,null,null,null,null,null,null,null,null,null,null,null,null,null,null,null,null,null,"",null,null,null,null,null,null,null,null,null,null,null,null,null,null,null,"IMÓVEL "]
["",null,null,null,null,null,null,null,null,null,null,null,null,null,null,null,null,null,null,null,null,null,null,null,null,null,null,null,null,null,null,null,null,null,null,null,null,null,null,null,"",null,null,null,null,null,null,null,null,null,null,null,null,null,null,null,"IMÓVEL "]
["",null,null,null,null,null,null,null,null,null,null,null,null,null,null,null,null,null,null,null,null,null,null,null,null,null,null,null,null,null,null,null,null,null,null,null,null,null,null,null,"",null,null,null,null,null,null,null,null,null,null,null,null,null,null,null,"IMÓVEL "]
["",null,null,null,null,null,null,null,null,null,null,null,null,null,null,null,null,null,null,null,null,null,null,null,null,null,null,null,null,null,null,null,null,null,null,null,null,null,null,null,"",null,null,null,null,null,null,null,null,null,null,null,null,null,null,null,"IMÓVEL "]
["",null,null,null,null,null,null,null,null,null,null,null,null,null,null,null,null,null,null,null,null,null,null,null,null,null,null,null,null,null,null,null,null,null,null,null,null,null,null,null,"",null,null,null,null,null,null,null,null,null,null,null,null,null,null,null,"IMÓVEL "]
["",null,null,null,null,null,null,null,null,null,null,null,null,null,null,null,null,null,null,null,null,null,null,null,null,null,null,null,null,null,null,null,null,null,null,null,null,null,null,null,"",null,null,null,null,null,null,null,null,null,null,null,null,null,null,null,"IMÓVEL "]
["",null,null,null,null,null,null,null,null,null,null,null,null,null,null,null,null,null,null,null,null,null,null,null,null,null,null,null,null,null,null,null,null,null,null,null,null,null,null,null,"",null,null,null,null,null,null,null,null,null,null,null,null,null,null,null,"IMÓVEL "]
["",null,null,null,null,null,null,null,null,null,null,null,null,null,null,null,null,null,null,null,null,null,null,null,null,null,null,null,null,null,null,null,null,null,null,null,null,null,null,null,"",null,null,null,null,null,null,null,null,null,null,null,null,null,null,null,"IMÓVEL "]
["",null,null,null,null,null,null,null,null,null,null,null,null,null,null,null,null,null,null,null,null,null,null,null,null,null,null,null,null,null,null,null,null,null,null,null,null,null,null,null,"",null,null,null,null,null,null,null,null,null,null,null,null,null,null,null,"IMÓVEL "]
["",null,null,null,null,null,null,null,null,null,null,null,null,null,null,null,null,null,null,null,null,null,null,null,null,null,null,null,null,null,null,null,null,null,null,null,null,null,null,null,"",null,null,null,null,null,null,null,null,null,null,null,null,null,null,null,"IMÓVEL "]
["",null,null,null,null,null,null,null,null,null,null,null,null,null,null,null,null,null,null,null,null,null,null,null,null,null,null,null,null,null,null,null,null,null,null,null,null,null,null,null,"",null,null,null,null,null,null,null,null,null,null,null,null,null,null,null,"IMÓVEL "]
["",null,null,null,null,null,null,null,null,null,null,null,null,null,null,null,null,null,null,null,null,null,null,null,null,null,null,null,null,null,null,null,null,null,null,null,null,null,null,null,"",null,null,null,null,null,null,null,null,null,null,null,null,null,null,null,"IMÓVEL "]
["",null,null,null,null,null,null,null,null,null,null,null,null,null,null,null,null,null,null,null,null,null,null,null,null,null,null,null,null,null,null,null,null,null,null,null,null,null,null,null,"",null,null,null,null,null,null,null,null,null,null,null,null,null,null,null,"IMÓVEL "]
["",null,null,null,null,null,null,null,null,null,null,null,null,null,null,null,null,null,null,null,null,null,null,null,null,null,null,null,null,null,null,null,null,null,null,null,null,null,null,null,"",null,null,null,null,null,null,null,null,null,null,null,null,null,null,null,"IMÓVEL "]
["",null,null,null,null,null,null,null,null,null,null,null,null,null,null,null,null,null,null,null,null,null,null,null,null,null,null,null,null,null,null,null,null,null,null,null,null,null,null,null,"",null,null,null,null,null,null,null,null,null,null,null,null,null,null,null,{"$f":"_xlfn.CONCAT(\"IMÓVEL \",A34)","v":"IMÓVEL "}]
["",null,null,null,null,null,null,null,null,null,null,null,null,null,null,null,null,null,null,null,null,null,null,null,null,null,null,null,null,null,null,null,null,null,null,null,null,null,null,null,"",null,null,null,null,null,null,null,null,null,null,null,null,null,null,null,"IMÓVEL "]
["",null,null,null,null,null,null,null,null,null,null,null,null,null,null,null,null,null,null,null,null,null,null,null,null,null,null,null,null,null,null,null,null,null,null,null,null,null,null,null,"",null,null,null,null,null,null,null,null,null,null,null,null,null,null,null,"IMÓVEL "]
["",null,null,null,null,null,null,null,null,null,null,null,null,null,null,null,null,null,null,null,null,null,null,null,null,null,null,null,null,null,null,null,null,null,null,null,null,null,null,null,"",null,null,null,null,null,null,null,null,null,null,null,null,null,null,null,"IMÓVEL "]
["",null,null,null,null,null,null,null,null,null,null,null,null,null,null,null,null,null,null,null,null,null,null,null,null,null,null,null,null,null,null,null,null,null,null,null,null,null,null,null,"",null,null,null,null,null,null,null,null,null,null,null,null,null,null,null,"IMÓVEL "]
["",null,null,null,null,null,null,null,null,null,null,null,null,null,null,null,null,null,null,null,null,null,null,null,null,null,null,null,null,null,null,null,null,null,null,null,null,null,null,null,"",null,null,null,null,null,null,null,null,null,null,null,null,null,null,null,"IMÓVEL "]
["",null,null,null,null,null,null,null,null,null,null,null,null,null,null,null,null,null,null,null,null,null,null,null,null,null,null,null,null,null,null,null,null,null,null,null,null,null,null,null,"",null,null,null,null,null,null,null,null,null,null,null,null,null,null,null,"IMÓVEL "]
["",null,null,null,null,null,null,null,null,null,null,null,null,null,null,null,null,null,null,null,null,null,null,null,null,null,null,null,null,null,null,null,null,null,null,null,null,null,null,null,"",null,null,null,null,null,null,null,null,null,null,null,null,null,null,null,"IMÓVEL "]
["",null,null,null,null,null,null,null,null,null,null,null,null,null,null,null,null,null,null,null,null,null,null,null,null,null,null,null,null,null,null,null,null,null,null,null,null,null,null,null,"",null,null,null,null,null,null,null,null,null,null,null,null,null,null,null,"IMÓVEL "]
["",null,null,null,null,null,null,null,null,null,null,null,null,null,null,null,null,null,null,null,null,null,null,null,null,null,null,null,null,null,null,null,null,null,null,null,null,null,null,null,"",null,null,null,null,null,null,null,null,null,null,null,null,null,null,null,"IMÓVEL "]
["",null,null,null,null,null,null,null,null,null,null,null,null,null,null,null,null,null,null,null,null,null,null,null,null,null,null,null,null,null,null,null,null,null,null,null,null,null,null,null,"",null,null,null,null,null,null,null,null,null,null,null,null,null,null,null,"IMÓVEL "]
["",null,null,null,null,null,null,null,null,null,null,null,null,null,null,null,null,null,null,null,null,null,null,null,null,null,null,null,null,null,null,null,null,null,null,null,null,null,null,null,"",null,null,null,null,null,null,null,null,null,null,null,null,null,null,null,"IMÓVEL "]
["",null,null,null,null,null,null,null,null,null,null,null,null,null,null,null,null,null,null,null,null,null,null,null,null,null,null,null,null,null,null,null,null,null,null,null,null,null,null,null,"",null,null,null,null,null,null,null,null,null,null,null,null,null,null,null,"IMÓVEL "]
["",null,null,null,null,null,null,null,null,null,null,null,null,null,null,null,null,null,null,null,null,null,null,null,null,null,null,null,null,null,null,null,null,null,null,null,null,null,null,null,"",null,null,null,null,null,null,null,null,null,null,null,null,null,null,null,"IMÓVEL "]
["",null,null,null,null,null,null,null,null,null,null,null,null,null,null,null,null,null,null,null,null,null,null,null,null,null,null,null,null,null,null,null,null,null,null,null,null,null,null,null,"",null,null,null,null,null,null,null,null,null,null,null,null,null,null,null,"IMÓVEL "]
["",null,null,null,null,null,null,null,null,null,null,null,null,null,null,null,null,null,null,null,null,null,null,null,null,null,null,null,null,null,null,null,null,null,null,null,null,null,null,null,"",null,null,null,null,null,null,null,null,null,null,null,null,null,null,null,"IMÓVEL "]
["",null,null,null,null,null,null,null,null,null,null,null,null,null,null,null,null,null,null,null,null,null,null,null,null,null,null,null,null,null,null,null,null,null,null,null,null,null,null,null,"",null,null,null,null,null,null,null,null,null,null,null,null,null,null,null,{"$f":"_xlfn.CONCAT(\"IMÓVEL \",A50)","v":"IMÓVEL "}]
["",null,null,null,null,null,null,null,null,null,null,null,null,null,null,null,null,null,null,null,null,null,null,null,null,null,null,null,null,null,null,null,null,null,null,null,null,null,null,null,"",null,null,null,null,null,null,null,null,null,null,null,null,null,null,null,"IMÓVEL "]
["",null,null,null,null,null,null,null,null,null,null,null,null,null,null,null,null,null,null,null,null,null,null,null,null,null,null,null,null,null,null,null,null,null,null,null,null,null,null,null,"",null,null,null,null,null,null,null,null,null,null,null,null,null,null,null,"IMÓVEL "]
["",null,null,null,null,null,null,null,null,null,null,null,null,null,null,null,null,null,null,null,null,null,null,null,null,null,null,null,null,null,null,null,null,null,null,null,null,null,null,null,"",null,null,null,null,null,null,null,null,null,null,null,null,null,null,null,"IMÓVEL "]
["",null,null,null,null,null,null,null,null,null,null,null,null,null,null,null,null,null,null,null,null,null,null,null,null,null,null,null,null,null,null,null,null,null,null,null,null,null,null,null,"",null,null,null,null,null,null,null,null,null,null,null,null,null,null,null,"IMÓVEL "]
["",null,null,null,null,null,null,null,null,null,null,null,null,null,null,null,null,null,null,null,null,null,null,null,null,null,null,null,null,null,null,null,null,null,null,null,null,null,null,null,"",null,null,null,null,null,null,null,null,null,null,null,null,null,null,null,"IMÓVEL "]
["",null,null,null,null,null,null,null,null,null,null,null,null,null,null,null,null,null,null,null,null,null,null,null,null,null,null,null,null,null,null,null,null,null,null,null,null,null,null,null,"",null,null,null,null,null,null,null,null,null,null,null,null,null,null,null,"IMÓVEL "]
["",null,null,null,null,null,null,null,null,null,null,null,null,null,null,null,null,null,null,null,null,null,null,null,null,null,null,null,null,null,null,null,null,null,null,null,null,null,null,null,"",null,null,null,null,null,null,null,null,null,null,null,null,null,null,null,"IMÓVEL "]
["",null,null,null,null,null,null,null,null,null,null,null,null,null,null,null,null,null,null,null,null,null,null,null,null,null,null,null,null,null,null,null,null,null,null,null,null,null,null,null,"",null,null,null,null,null,null,null,null,null,null,null,null,null,null,null,"IMÓVEL "]
["",null,null,null,null,null,null,null,null,null,null,null,null,null,null,null,null,null,null,null,null,null,null,null,null,null,null,null,null,null,null,null,null,null,null,null,null,null,null,null,"",null,null,null,null,null,null,null,null,null,null,null,null,null,null,null,"IMÓVEL "]
["",null,null,null,null,null,null,null,null,null,null,null,null,null,null,null,null,null,null,null,null,null,null,null,null,null,null,null,null,null,null,null,null,null,null,null,null,null,null,null,"",null,null,null,null,null,null,null,null,null,null,null,null,null,null,null,"IMÓVEL "]
["",null,null,null,null,null,null,null,null,null,null,null,null,null,null,null,null,null,null,null,null,null,null,null,null,null,null,null,null,null,null,null,null,null,null,null,null,null,null,null,"",null,null,null,null,null,null,null,null,null,null,null,null,null,null,null,"IMÓVEL "]
["",null,null,null,null,null,null,null,null,null,null,null,null,null,null,null,null,null,null,null,null,null,null,null,null,null,null,null,null,null,null,null,null,null,null,null,null,null,null,null,"",null,null,null,null,null,null,null,null,null,null,null,null,null,null,null,"IMÓVEL "]
["",null,null,null,null,null,null,null,null,null,null,null,null,null,null,null,null,null,null,null,null,null,null,null,null,null,null,null,null,null,null,null,null,null,null,null,null,null,null,null,"",null,null,null,null,null,null,null,null,null,null,null,null,null,null,null,"IMÓVEL "]
["",null,null,null,null,null,null,null,null,null,null,null,null,null,null,null,null,null,null,null,null,null,null,null,null,null,null,null,null,null,null,null,null,null,null,null,null,null,null,null,"",null,null,null,null,null,null,null,null,null,null,null,null,null,null,null,"IMÓVEL "]
["",null,null,null,null,null,null,null,null,null,null,null,null,null,null,null,null,null,null,null,null,null,null,null,null,null,null,null,null,null,null,null,null,null,null,null,null,null,null,null,"",null,null,null,null,null,null,null,null,null,null,null,null,null,null,null,"IMÓVEL "]
["",null,null,null,null,null,null,null,null,null,null,null,null,null,null,null,null,null,null,null,null,null,null,null,null,null,null,null,null,null,null,null,null,null,null,null,null,null,null,null,"",null,null,null,null,null,null,null,null,null,null,null,null,null,null,null,"IMÓVEL "]
["",null,null,null,null,null,null,null,null,null,null,null,null,null,null,null,null,null,null,null,null,null,null,null,null,null,null,null,null,null,null,null,null,null,null,null,null,null,null,null,"",null,null,null,null,null,null,null,null,null,null,null,null,null,null,null,"IMÓVEL "]
["",null,null,null,null,null,null,null,null,null,null,null,null,null,null,null,null,null,null,null,null,null,null,null,null,null,null,null,null,null,null,null,null,null,null,null,null,null,null,null,"",null,null,null,null,null,null,null,null,null,null,null,null,null,null,null,"IMÓVEL "]
["",null,null,null,null,null,null,null,null,null,null,null,null,null,null,null,null,null,null,null,null,null,null,null,null,null,null,null,null,null,null,null,null,null,null,null,null,null,null,null,"",null,null,null,null,null,null,null,null,null,null,null,null,null,null,null,"IMÓVEL "]
["",null,null,null,null,null,null,null,null,null,null,null,null,null,null,null,null,null,null,null,null,null,null,null,null,null,null,null,null,null,null,null,null,null,null,null,null,null,null,null,"",null,null,null,null,null,null,null,null,null,null,null,null,null,null,null,{"$f":"_xlfn.CONCAT(\"IMÓVEL \",A70)","v":"IMÓVEL "}]
["",null,null,null,null,null,null,null,null,null,null,null,null,null,null,null,null,null,null,null,null,null,null,null,null,null,null,null,null,null,null,null,null,null,null,null,null,null,null,null,"",null,null,null,null,null,null,null,null,null,null,null,null,null,null,null,"IMÓVEL "]
["",null,null,null,null,null,null,null,null,null,null,null,null,null,null,null,null,null,null,null,null,null,null,null,null,null,null,null,null,null,null,null,null,null,null,null,null,null,null,null,"",null,null,null,null,null,null,null,null,null,null,null,null,null,null,null,"IMÓVEL "]
["",null,null,null,null,null,null,null,null,null,null,null,null,null,null,null,null,null,null,null,null,null,null,null,null,null,null,null,null,null,null,null,null,null,null,null,null,null,null,null,"",null,null,null,null,null,null,null,null,null,null,null,null,null,null,null,"IMÓVEL "]
["",null,null,null,null,null,null,null,null,null,null,null,null,null,null,null,null,null,null,null,null,null,null,null,null,null,null,null,null,null,null,null,null,null,null,null,null,null,null,null,"",null,null,null,null,null,null,null,null,null,null,null,null,null,null,null,"IMÓVEL "]
["",null,null,null,null,null,null,null,null,null,null,null,null,null,null,null,null,null,null,null,null,null,null,null,null,null,null,null,null,null,null,null,null,null,null,null,null,null,null,null,"",null,null,null,null,null,null,null,null,null,null,null,null,null,null,null,"IMÓVEL "]
[{"$f":"IF(C76<>\"\",1+A75,\"\")","v":""},null,null,null,null,null,null,null,null,null,null,null,null,null,null,null,null,null,null,null,null,null,null,null,null,null,null,null,null,null,null,null,null,null,null,null,null,null,null,null,"",null,null,null,null,null,null,null,null,null,null,null,null,null,null,null,"IMÓVEL "]
["",null,null,null,null,null,null,null,null,null,null,null,null,null,null,null,null,null,null,null,null,null,null,null,null,null,null,null,null,null,null,null,null,null,null,null,null,null,null,null,{"$f":"IF(OR(AH77=\"\",AK77=\"\"),\"\",AK77*AH77)","v":""},null,null,null,null,null,null,null,null,null,null,null,null,null,null,null,"IMÓVEL "]
["",null,null,null,null,null,null,null,null,null,null,null,null,null,null,null,null,null,null,null,null,null,null,null,null,null,null,null,null,null,null,null,null,null,null,null,null,null,null,null,"",null,null,null,null,null,null,null,null,null,null,null,null,null,null,null,"IMÓVEL "]
["",null,null,null,null,null,null,null,null,null,null,null,null,null,null,null,null,null,null,null,null,null,null,null,null,null,null,null,null,null,null,null,null,null,null,null,null,null,null,null,"",null,null,null,null,null,null,null,null,null,null,null,null,null,null,null,"IMÓVEL "]
["",null,null,null,null,null,null,null,null,null,null,null,null,null,null,null,null,null,null,null,null,null,null,null,null,null,null,null,null,null,null,null,null,null,null,null,null,null,null,null,"",null,null,null,null,null,null,null,null,null,null,null,null,null,null,null,"IMÓVEL "]
["",null,null,null,null,null,null,null,null,null,null,null,null,null,null,null,null,null,null,null,null,null,null,null,null,null,null,null,null,null,null,null,null,null,null,null,null,null,null,null,"",null,null,null,null,null,null,null,null,null,null,null,null,null,null,null,"IMÓVEL "]
["",null,null,null,null,null,null,null,null,null,null,null,null,null,null,null,null,null,null,null,null,null,null,null,null,null,null,null,null,null,null,null,null,null,null,null,null,null,null,null,"",null,null,null,null,null,null,null,null,null,null,null,null,null,null,null,"IMÓVEL "]
["",null,null,null,null,null,null,null,null,null,null,null,null,null,null,null,null,null,null,null,null,null,null,null,null,null,null,null,null,null,null,null,null,null,null,null,null,null,null,null,"",null,null,null,null,null,null,null,null,null,null,null,null,null,null,null,"IMÓVEL "]
["",null,null,null,null,null,null,null,null,null,null,null,null,null,null,null,null,null,null,null,null,null,null,null,null,null,null,null,null,null,null,null,null,null,null,null,null,null,null,null,"",null,null,null,null,null,null,null,null,null,null,null,null,null,null,null,"IMÓVEL "]
["",null,null,null,null,null,null,null,null,null,null,null,null,null,null,null,null,null,null,null,null,null,null,null,null,null,null,null,null,null,null,null,null,null,null,null,null,null,null,null,"",null,null,null,null,null,null,null,null,null,null,null,null,null,null,null,"IMÓVEL "]
["",null,null,null,null,null,null,null,null,null,null,null,null,null,null,null,null,null,null,null,null,null,null,null,null,null,null,null,null,null,null,null,null,null,null,null,null,null,null,null,"",null,null,null,null,null,null,null,null,null,null,null,null,null,null,null,"IMÓVEL "]
["",null,null,null,null,null,null,null,null,null,null,null,null,null,null,null,null,null,null,null,null,null,null,null,null,null,null,null,null,null,null,null,null,null,null,null,null,null,null,null,"",null,null,null,null,null,null,null,null,null,null,null,null,null,null,null,"IMÓVEL "]
["",null,null,null,null,null,null,null,null,null,null,null,null,null,null,null,null,null,null,null,null,null,null,null,null,null,null,null,null,null,null,null,null,null,null,null,null,null,null,null,"",null,null,null,null,null,null,null,null,null,null,null,null,null,null,null,"IMÓVEL "]
["",null,null,null,null,null,null,null,null,null,null,null,null,null,null,null,null,null,null,null,null,null,null,null,null,null,null,null,null,null,null,null,null,null,null,null,null,null,null,null,"",null,null,null,null,null,null,null,null,null,null,null,null,null,null,null,"IMÓVEL "]
["",null,null,null,null,null,null,null,null,null,null,null,null,null,null,null,null,null,null,null,null,null,null,null,null,null,null,null,null,null,null,null,null,null,null,null,null,null,null,null,"",null,null,null,null,null,null,null,null,null,null,null,null,null,null,null,"IMÓVEL "]
["",null,null,null,null,null,null,null,null,null,null,null,null,null,null,null,null,null,null,null,null,null,null,null,null,null,null,null,null,null,null,null,null,null,null,null,null,null,null,null,"",null,null,null,null,null,null,null,null,null,null,null,null,null,null,null,"IMÓVEL "]
["",null,null,null,null,null,null,null,null,null,null,null,null,null,null,null,null,null,null,null,null,null,null,null,null,null,null,null,null,null,null,null,null,null,null,null,null,null,null,null,"",null,null,null,null,null,null,null,null,null,null,null,null,null,null,null,"IMÓVEL "]
["",null,null,null,null,null,null,null,null,null,null,null,null,null,null,null,null,null,null,null,null,null,null,null,null,null,null,null,null,null,null,null,null,null,null,null,null,null,null,null,"",null,null,null,null,null,null,null,null,null,null,null,null,null,null,null,"IMÓVEL "]
["",null,null,null,null,null,null,null,null,null,null,null,null,null,null,null,null,null,null,null,null,null,null,null,null,null,null,null,null,null,null,null,null,null,null,null,null,null,null,null,"",null,null,null,null,null,null,null,null,null,null,null,null,null,null,null,"IMÓVEL "]
["",null,null,null,null,null,null,null,null,null,null,null,null,null,null,null,null,null,null,null,null,null,null,null,null,null,null,null,null,null,null,null,null,null,null,null,null,null,null,null,"",null,null,null,null,null,null,null,null,null,null,null,null,null,null,null,"IMÓVEL "]
["",null,null,null,null,null,null,null,null,null,null,null,null,null,null,null,null,null,null,null,null,null,null,null,null,null,null,null,null,null,null,null,null,null,null,null,null,null,null,null,"",null,null,null,null,null,null,null,null,null,null,null,null,null,null,null,{"$f":"_xlfn.CONCAT(\"IMÓVEL \",A96)","v":"IMÓVEL "}]
["",null,null,null,null,null,null,null,null,null,null,null,null,null,null,null,null,null,null,null,null,null,null,null,null,null,null,null,null,null,null,null,null,null,null,null,null,null,null,null,"",null,null,null,null,null,null,null,null,null,null,null,null,null,null,null,"IMÓVEL "]
["",null,null,null,null,null,null,null,null,null,null,null,null,null,null,null,null,null,null,null,null,null,null,null,null,null,null,null,null,null,null,null,null,null,null,null,null,null,null,null,"",null,null,null,null,null,null,null,null,null,null,null,null,null,null,null,"IMÓVEL "]
["",null,null,null,null,null,null,null,null,null,null,null,null,null,null,null,null,null,null,null,null,null,null,null,null,null,null,null,null,null,null,null,null,null,null,null,null,null,null,null,"",null,null,null,null,null,null,null,null,null,null,null,null,null,null,null,"IMÓVEL "]
["",null,null,null,null,null,null,null,null,null,null,null,null,null,null,null,null,null,null,null,null,null,null,null,null,null,null,null,null,null,null,null,null,null,null,null,null,null,null,null,"",null,null,null,null,null,null,null,null,null,null,null,null,null,null,null,"IMÓVEL "]
["",null,null,null,null,null,null,null,null,null,null,null,null,null,null,null,null,null,null,null,null,null,null,null,null,null,null,null,null,null,null,null,null,null,null,null,null,null,null,null,"",null,null,null,null,null,null,null,null,null,null,null,null,null,null,null,"IMÓVEL "]
["",null,null,null,null,null,null,null,null,null,null,null,null,null,null,null,null,null,null,null,null,null,null,null,null,null,null,null,null,null,null,null,null,null,null,null,null,null,null,null,"",null,null,null,null,null,null,null,null,null,null,null,null,null,null,null,"IMÓVEL "]
["",null,null,null,null,null,null,null,null,null,null,null,null,null,null,null,null,null,null,null,null,null,null,null,null,null,null,null,null,null,null,null,null,null,null,null,null,null,null,null,"",null,null,null,null,null,null,null,null,null,null,null,null,null,null,null,"IMÓVEL "]
["",null,null,null,null,null,null,null,null,null,null,null,null,null,null,null,null,null,null,null,null,null,null,null,null,null,null,null,null,null,null,null,null,null,null,null,null,null,null,null,"",null,null,null,null,null,null,null,null,null,null,null,null,null,null,null,"IMÓVEL "]
["",null,null,null,null,null,null,null,null,null,null,null,null,null,null,null,null,null,null,null,null,null,null,null,null,null,null,null,null,null,null,null,null,null,null,null,null,null,null,null,"",null,null,null,null,null,null,null,null,null,null,null,null,null,null,null,"IMÓVEL "]
["",null,null,null,null,null,null,null,null,null,null,null,null,null,null,null,null,null,null,null,null,null,null,null,null,null,null,null,null,null,null,null,null,null,null,null,null,null,null,null,"",null,null,null,null,null,null,null,null,null,null,null,null,null,null,null,"IMÓVEL "]
["",null,null,null,null,null,null,null,null,null,null,null,null,null,null,null,null,null,null,null,null,null,null,null,null,null,null,null,null,null,null,null,null,null,null,null,null,null,null,null,"",null,null,null,null,null,null,null,null,null,null,null,null,null,null,null,"IMÓVEL "]
["",null,null,null,null,null,null,null,null,null,null,null,null,null,null,null,null,null,null,null,null,null,null,null,null,null,null,null,null,null,null,null,null,null,null,null,null,null,null,null,"",null,null,null,null,null,null,null,null,null,null,null,null,null,null,null,"IMÓVEL "]
["",null,null,null,null,null,null,null,null,null,null,null,null,null,null,null,null,null,null,null,null,null,null,null,null,null,null,null,null,null,null,null,null,null,null,null,null,null,null,null,"",null,null,null,null,null,null,null,null,null,null,null,null,null,null,null,"IMÓVEL "]
["TOTAL",null,null,null,null,null,null,null,null,null,null,null,null,null,null,null,null,null,null,null,null,null,null,null,null,null,null,null,null,null,null,null,null,null,null,null,{"$f":"IF(SUM(AK10:AN109)=0,\"-\",SUM(AK10:AN109))","v":"-"},null,null,null,{"$f":"IF(SUM(AO10:AS109)=0,\"-\",SUM(AO10:AS109))","v":"-"}]
["BENFEITORIAS"]
["IMÓVEL REF",null,null,null,null,"DESCRIÇÃO",null,null,null,null,null,null,null,null,null,null,null,null,null,null,null,null,null,null,null,null,null,null,null,"QTDE",null,null,null,"VALOR UNITÁRIO (R$)",null,null,null,null,null,"VALOR TOTAL\n(R$)"]
[null,null,null,null,null,null,null,null,null,null,null,null,null,null,null,null,null,null,null,null,null,null,null,null,null,null,null,null,null,null,null,null,null,null,null,null,null,null,null,{"$f":"IF(OR(AD113=\"\",AH113=\"\"),\"\",AH113*AD113)","v":""},null,null,null,null,null,null,{"$f":"SUM(AV113:AV162)","v":1},1]
[null,null,null,null,null,null,null,null,null,null,null,null,null,null,null,null,null,null,null,null,null,null,null,null,null,null,null,null,null,null,null,null,null,null,null,null,null,null,null,{"$f":"IF(OR(AD114=\"\",AH114=\"\"),\"\",AH114*AD114)","v":""}]
[null,null,null,null,null,null,null,null,null,null,null,null,null,null,null,null,null,null,null,null,null,null,null,null,null,null,null,null,null,null,null,null,null,null,null,null,null,null,null,""]
[null,null,null,null,null,null,null,null,null,null,null,null,null,null,null,null,null,null,null,null,null,null,null,null,null,null,null,null,null,null,null,null,null,null,null,null,null,null,null,{"$f":"IF(OR(AD116=\"\",AH116=\"\"),\"\",AH116*AD116)","v":""}]
[null,null,null,null,null,null,null,null,null,null,null,null,null,null,null,null,null,null,null,null,null,null,null,null,null,null,null,null,null,null,null,null,null,null,null,null,null,null,null,""]
[null,null,null,null,null,null,null,null,null,null,null,null,null,null,null,null,null,null,null,null,null,null,null,null,null,null,null,null,null,null,null,null,null,null,null,null,null,null,null,""]
[null,null,null,null,null,null,null,null,null,null,null,null,null,null,null,null,null,null,null,null,null,null,null,null,null,null,null,null,null,null,null,null,null,null,null,null,null,null,null,""]
[null,null,null,null,null,null,null,null,null,null,null,null,null,null,null,null,null,null,null,null,null,null,null,null,null,null,null,null,null,null,null,null,null,null,null,null,null,null,null,""]
[null,null,null,null,null,null,null,null,null,null,null,null,null,null,null,null,null,null,null,null,null,null,null,null,null,null,null,null,null,null,null,null,null,null,null,null,null,null,null,""]
[null,null,null,null,null,null,null,null,null,null,null,null,null,null,null,null,null,null,null,null,null,null,null,null,null,null,null,null,null,null,null,null,null,null,null,null,null,null,null,""]
[null,null,null,null,null,null,null,null,null,null,null,null,null,null,null,null,null,null,null,null,null,null,null,null,null,null,null,null,null,null,null,null,null,null,null,null,null,null,null,""]
[null,null,null,null,null,null,null,null,null,null,null,null,null,null,null,null,null,null,null,null,null,null,null,null,null,null,null,null,null,null,null,null,null,null,null,null,null,null,null,""]
[null,null,null,null,null,null,null,null,null,null,null,null,null,null,null,null,null,null,null,null,null,null,null,null,null,null,null,null,null,null,null,null,null,null,null,null,null,null,null,""]
[null,null,null,null,null,null,null,null,null,null,null,null,null,null,null,null,null,null,null,null,null,null,null,null,null,null,null,null,null,null,null,null,null,null,null,null,null,null,null,""]
[null,null,null,null,null,null,null,null,null,null,null,null,null,null,null,null,null,null,null,null,null,null,null,null,null,null,null,null,null,null,null,null,null,null,null,null,null,null,null,""]
[null,null,null,null,null,null,null,null,null,null,null,null,null,null,null,null,null,null,null,null,null,null,null,null,null,null,null,null,null,null,null,null,null,null,null,null,null,null,null,""]
[null,null,null,null,null,null,null,null,null,null,null,null,null,null,null,null,null,null,null,null,null,null,null,null,null,null,null,null,null,null,null,null,null,null,null,null,null,null,null,""]
[null,null,null,null,null,null,null,null,null,null,null,null,null,null,null,null,null,null,null,null,null,null,null,null,null,null,null,null,null,null,null,null,null,null,null,null,null,null,null,""]
[null,null,null,null,null,null,null,null,null,null,null,null,null,null,null,null,null,null,null,null,null,null,null,null,null,null,null,null,null,null,null,null,null,null,null,null,null,null,null,""]
[null,null,null,null,null,null,null,null,null,null,null,null,null,null,null,null,null,null,null,null,null,null,null,null,null,null,null,null,null,null,null,null,null,null,null,null,null,null,null,""]
[null,null,null,null,null,null,null,null,null,null,null,null,null,null,null,null,null,null,null,null,null,null,null,null,null,null,null,null,null,null,null,null,null,null,null,null,null,null,null,""]
[null,null,null,null,null,null,null,null,null,null,null,null,null,null,null,null,null,null,null,null,null,null,null,null,null,null,null,null,null,null,null,null,null,null,null,null,null,null,null,""]
[null,null,null,null,null,null,null,null,null,null,null,null,null,null,null,null,null,null,null,null,null,null,null,null,null,null,null,null,null,null,null,null,null,null,null,null,null,null,null,""]
[null,null,null,null,null,null,null,null,null,null,null,null,null,null,null,null,null,null,null,null,null,null,null,null,null,null,null,null,null,null,null,null,null,null,null,null,null,null,null,""]
[null,null,null,null,null,null,null,null,null,null,null,null,null,null,null,null,null,null,null,null,null,null,null,null,null,null,null,null,null,null,null,null,null,null,null,null,null,null,null,""]
[null,null,null,null,null,null,null,null,null,null,null,null,null,null,null,null,null,null,null,null,null,null,null,null,null,null,null,null,null,null,null,null,null,null,null,null,null,null,null,""]
[null,null,null,null,null,null,null,null,null,null,null,null,null,null,null,null,null,null,null,null,null,null,null,null,null,null,null,null,null,null,null,null,null,null,null,null,null,null,null,""]
[null,null,null,null,null,null,null,null,null,null,null,null,null,null,null,null,null,null,null,null,null,null,null,null,null,null,null,null,null,null,null,null,null,null,null,null,null,null,null,{"$f":"IF(OR(AD140=\"\",AH140=\"\"),\"\",AH140*AD140)","v":""}]
[null,null,null,null,null,null,null,null,null,null,null,null,null,null,null,null,null,null,null,null,null,null,null,null,null,null,null,null,null,null,null,null,null,null,null,null,null,null,null,""]
[null,null,null,null,null,null,null,null,null,null,null,null,null,null,null,null,null,null,null,null,null,null,null,null,null,null,null,null,null,null,null,null,null,null,null,null,null,null,null,""]
[null,null,null,null,null,null,null,null,null,null,null,null,null,null,null,null,null,null,null,null,null,null,null,null,null,null,null,null,null,null,null,null,null,null,null,null,null,null,null,""]
[null,null,null,null,null,null,null,null,null,null,null,null,null,null,null,null,null,null,null,null,null,null,null,null,null,null,null,null,null,null,null,null,null,null,null,null,null,null,null,""]
[null,null,null,null,null,null,null,null,null,null,null,null,null,null,null,null,null,null,null,null,null,null,null,null,null,null,null,null,null,null,null,null,null,null,null,null,null,null,null,""]
[null,null,null,null,null,null,null,null,null,null,null,null,null,null,null,null,null,null,null,null,null,null,null,null,null,null,null,null,null,null,null,null,null,null,null,null,null,null,null,""]
[null,null,null,null,null,null,null,null,null,null,null,null,null,null,null,null,null,null,null,null,null,null,null,null,null,null,null,null,null,null,null,null,null,null,null,null,null,null,null,""]
[null,null,null,null,null,null,null,null,null,null,null,null,null,null,null,null,null,null,null,null,null,null,null,null,null,null,null,null,null,null,null,null,null,null,null,null,null,null,null,""]
[null,null,null,null,null,null,null,null,null,null,null,null,null,null,null,null,null,null,null,null,null,null,null,null,null,null,null,null,null,null,null,null,null,null,null,null,null,null,null,""]
[null,null,null,null,null,null,null,null,null,null,null,null,null,null,null,null,null,null,null,null,null,null,null,null,null,null,null,null,null,null,null,null,null,null,null,null,null,null,null,""]
[null,null,null,null,null,null,null,null,null,null,null,null,null,null,null,null,null,null,null,null,null,null,null,null,null,null,null,null,null,null,null,null,null,null,null,null,null,null,null,""]
[null,null,null,null,null,null,null,null,null,null,null,null,null,null,null,null,null,null,null,null,null,null,null,null,null,null,null,null,null,null,null,null,null,null,null,null,null,null,null,""]
[null,null,null,null,null,null,null,null,null,null,null,null,null,null,null,null,null,null,null,null,null,null,null,null,null,null,null,null,null,null,null,null,null,null,null,null,null,null,null,""]
[null,null,null,null,null,null,null,null,null,null,null,null,null,null,null,null,null,null,null,null,null,null,null,null,null,null,null,null,null,null,null,null,null,null,null,null,null,null,null,""]
[null,null,null,null,null,null,null,null,null,null,null,null,null,null,null,null,null,null,null,null,null,null,null,null,null,null,null,null,null,null,null,null,null,null,null,null,null,null,null,""]
[null,null,null,null,null,null,null,null,null,null,null,null,null,null,null,null,null,null,null,null,null,null,null,null,null,null,null,null,null,null,null,null,null,null,null,null,null,null,null,""]
[null,null,null,null,null,null,null,null,null,null,null,null,null,null,null,null,null,null,null,null,null,null,null,null,null,null,null,null,null,null,null,null,null,null,null,null,null,null,null,""]
[null,null,null,null,null,null,null,null,null,null,null,null,null,null,null,null,null,null,null,null,null,null,null,null,null,null,null,null,null,null,null,null,null,null,null,null,null,null,null,""]
[null,null,null,null,null,null,null,null,null,null,null,null,null,null,null,null,null,null,null,null,null,null,null,null,null,null,null,null,null,null,null,null,null,null,null,null,null,null,null,""]
[null,null,null,null,null,null,null,null,null,null,null,null,null,null,null,null,null,null,null,null,null,null,null,null,null,null,null,null,null,null,null,null,null,null,null,null,null,null,null,""]
[null,null,null,null,null,null,null,null,null,null,null,null,null,null,null,null,null,null,null,null,null,null,null,null,null,null,null,null,null,null,null,null,null,null,null,null,null,null,null,""]
[null,null,null,null,null,null,null,null,null,null,null,null,null,null,null,null,null,null,null,null,null,null,null,null,null,null,null,null,null,null,null,null,null,null,null,null,null,null,null,""]
["TOTAL",null,null,null,null,null,null,null,null,null,null,null,null,null,null,null,null,null,null,null,null,null,null,null,null,null,null,null,null,{"$f":"IF(SUM(AD113:AG162)=0,\"-\",SUM(AD113:AG162))","v":"-"},null,null,null,{"$f":"IF(SUM(AH113:AM162)=0,\"-\",SUM(AH113:AM162))","v":"-"},null,null,null,null,null,{"$f":"IF(SUM(AN113:AS162)=0,\"-\",SUM(AN113:AS162))","v":"-"}]
[]
["II - BENS MÓVEIS"]
[" VEÍCULOS, MÁQUINAS E EQUIPAMENTOS"]
["TIPO",null,null,null,null,null,"DESCRIÇÃO",null,null,null,null,null,null,null,null,null,null,null,null,null,null,null,null,null,null,null,null,null,null,null,"QTD",null,null,"VALOR UNITÁRIO (R$)",null,null,null,null,null,"VALOR TOTAL\n(R$)"]
[null,null,null,null,null,null,null,null,null,null,null,null,null,null,null,null,null,null,null,null,null,null,null,null,null,null,null,null,null,null,null,null,null,null,null,null,null,null,null,{"$f":"IF(AH168=\"\",\"\",AE168*AH168)","v":""},null,null,null,null,null,null,{"$f":"SUM(AV168:AV367)","v":1},1]
[null,null,null,null,null,null,null,null,null,null,null,null,null,null,null,null,null,null,null,null,null,null,null,null,null,null,null,null,null,null,null,null,null,null,null,null,null,null,null,{"$f":"IF(AH169=\"\",\"\",AE169*AH169)","v":""}]
[null,null,null,null,null,null,null,null,null,null,null,null,null,null,null,null,null,null,null,null,null,null,null,null,null,null,null,null,null,null,null,null,null,null,null,null,null,null,null,""]
[null,null,null,null,null,null,null,null,null,null,null,null,null,null,null,null,null,null,null,null,null,null,null,null,null,null,null,null,null,null,null,null,null,null,null,null,null,null,null,{"$f":"IF(AH171=\"\",\"\",AE171*AH171)","v":""}]
[null,null,null,null,null,null,null,null,null,null,null,null,null,null,null,null,null,null,null,null,null,null,null,null,null,null,null,null,null,null,null,null,null,null,null,null,null,null,null,""]
[null,null,null,null,null,null,null,null,null,null,null,null,null,null,null,null,null,null,null,null,null,null,null,null,null,null,null,null,null,null,null,null,null,null,null,null,null,null,null,""]
[null,null,null,null,null,null,null,null,null,null,null,null,null,null,null,null,null,null,null,null,null,null,null,null,null,null,null,null,null,null,null,null,null,null,null,null,null,null,null,""]
[null,null,null,null,null,null,null,null,null,null,null,null,null,null,null,null,null,null,null,null,null,null,null,null,null,null,null,null,null,null,null,null,null,null,null,null,null,null,null,""]
[null,null,null,null,null,null,null,null,null,null,null,null,null,null,null,null,null,null,null,null,null,null,null,null,null,null,null,null,null,null,null,null,null,null,null,null,null,null,null,""]
[null,null,null,null,null,null,null,null,null,null,null,null,null,null,null,null,null,null,null,null,null,null,null,null,null,null,null,null,null,null,null,null,null,null,null,null,null,null,null,""]
[null,null,null,null,null,null,null,null,null,null,null,null,null,null,null,null,null,null,null,null,null,null,null,null,null,null,null,null,null,null,null,null,null,null,null,null,null,null,null,""]
[null,null,null,null,null,null,null,null,null,null,null,null,null,null,null,null,null,null,null,null,null,null,null,null,null,null,null,null,null,null,null,null,null,null,null,null,null,null,null,""]
[null,null,null,null,null,null,null,null,null,null,null,null,null,null,null,null,null,null,null,null,null,null,null,null,null,null,null,null,null,null,null,null,null,null,null,null,null,null,null,""]
[null,null,null,null,null,null,null,null,null,null,null,null,null,null,null,null,null,null,null,null,null,null,null,null,null,null,null,null,null,null,null,null,null,null,null,null,null,null,null,""]
[null,null,null,null,null,null,null,null,null,null,null,null,null,null,null,null,null,null,null,null,null,null,null,null,null,null,null,null,null,null,null,null,null,null,null,null,null,null,null,""]
[null,null,null,null,null,null,null,null,null,null,null,null,null,null,null,null,null,null,null,null,null,null,null,null,null,null,null,null,null,null,null,null,null,null,null,null,null,null,null,""]
[null,null,null,null,null,null,null,null,null,null,null,null,null,null,null,null,null,null,null,null,null,null,null,null,null,null,null,null,null,null,null,null,null,null,null,null,null,null,null,""]
[null,null,null,null,null,null,null,null,null,null,null,null,null,null,null,null,null,null,null,null,null,null,null,null,null,null,null,null,null,null,null,null,null,null,null,null,null,null,null,""]
[null,null,null,null,null,null,null,null,null,null,null,null,null,null,null,null,null,null,null,null,null,null,null,null,null,null,null,null,null,null,null,null,null,null,null,null,null,null,null,""]
[null,null,null,null,null,null,null,null,null,null,null,null,null,null,null,null,null,null,null,null,null,null,null,null,null,null,null,null,null,null,null,null,null,null,null,null,null,null,null,""]
[null,null,null,null,null,null,null,null,null,null,null,null,null,null,null,null,null,null,null,null,null,null,null,null,null,null,null,null,null,null,null,null,null,null,null,null,null,null,null,""]
[null,null,null,null,null,null,null,null,null,null,null,null,null,null,null,null,null,null,null,null,null,null,null,null,null,null,null,null,null,null,null,null,null,null,null,null,null,null,null,""]
[null,null,null,null,null,null,null,null,null,null,null,null,null,null,null,null,null,null,null,null,null,null,null,null,null,null,null,null,null,null,null,null,null,null,null,null,null,null,null,""]
[null,null,null,null,null,null,null,null,null,null,null,null,null,null,null,null,null,null,null,null,null,null,null,null,null,null,null,null,null,null,null,null,null,null,null,null,null,null,null,""]
[null,null,null,null,null,null,null,null,null,null,null,null,null,null,null,null,null,null,null,null,null,null,null,null,null,null,null,null,null,null,null,null,null,null,null,null,null,null,null,""]
[null,null,null,null,null,null,null,null,null,null,null,null,null,null,null,null,null,null,null,null,null,null,null,null,null,null,null,null,null,null,null,null,null,null,null,null,null,null,null,""]
[null,null,null,null,null,null,null,null,null,null,null,null,null,null,null,null,null,null,null,null,null,null,null,null,null,null,null,null,null,null,null,null,null,null,null,null,null,null,null,""]
[null,null,null,null,null,null,null,null,null,null,null,null,null,null,null,null,null,null,null,null,null,null,null,null,null,null,null,null,null,null,null,null,null,null,null,null,null,null,null,""]
[null,null,null,null,null,null,null,null,null,null,null,null,null,null,null,null,null,null,null,null,null,null,null,null,null,null,null,null,null,null,null,null,null,null,null,null,null,null,null,""]
[null,null,null,null,null,null,null,null,null,null,null,null,null,null,null,null,null,null,null,null,null,null,null,null,null,null,null,null,null,null,null,null,null,null,null,null,null,null,null,""]
[null,null,null,null,null,null,null,null,null,null,null,null,null,null,null,null,null,null,null,null,null,null,null,null,null,null,null,null,null,null,null,null,null,null,null,null,null,null,null,""]
[null,null,null,null,null,null,null,null,null,null,null,null,null,null,null,null,null,null,null,null,null,null,null,null,null,null,null,null,null,null,null,null,null,null,null,null,null,null,null,""]
[null,null,null,null,null,null,null,null,null,null,null,null,null,null,null,null,null,null,null,null,null,null,null,null,null,null,null,null,null,null,null,null,null,null,null,null,null,null,null,""]
[null,null,null,null,null,null,null,null,null,null,null,null,null,null,null,null,null,null,null,null,null,null,null,null,null,null,null,null,null,null,null,null,null,null,null,null,null,null,null,""]
[null,null,null,null,null,null,null,null,null,null,null,null,null,null,null,null,null,null,null,null,null,null,null,null,null,null,null,null,null,null,null,null,null,null,null,null,null,null,null,""]
[null,null,null,null,null,null,null,null,null,null,null,null,null,null,null,null,null,null,null,null,null,null,null,null,null,null,null,null,null,null,null,null,null,null,null,null,null,null,null,""]
[null,null,null,null,null,null,null,null,null,null,null,null,null,null,null,null,null,null,null,null,null,null,null,null,null,null,null,null,null,null,null,null,null,null,null,null,null,null,null,""]
[null,null,null,null,null,null,null,null,null,null,null,null,null,null,null,null,null,null,null,null,null,null,null,null,null,null,null,null,null,null,null,null,null,null,null,null,null,null,null,""]
[null,null,null,null,null,null,null,null,null,null,null,null,null,null,null,null,null,null,null,null,null,null,null,null,null,null,null,null,null,null,null,null,null,null,null,null,null,null,null,""]
[null,null,null,null,null,null,null,null,null,null,null,null,null,null,null,null,null,null,null,null,null,null,null,null,null,null,null,null,null,null,null,null,null,null,null,null,null,null,null,""]
[null,null,null,null,null,null,null,null,null,null,null,null,null,null,null,null,null,null,null,null,null,null,null,null,null,null,null,null,null,null,null,null,null,null,null,null,null,null,null,""]
[null,null,null,null,null,null,null,null,null,null,null,null,null,null,null,null,null,null,null,null,null,null,null,null,null,null,null,null,null,null,null,null,null,null,null,null,null,null,null,""]
[null,null,null,null,null,null,null,null,null,null,null,null,null,null,null,null,null,null,null,null,null,null,null,null,null,null,null,null,null,null,null,null,null,null,null,null,null,null,null,""]
[null,null,null,null,null,null,null,null,null,null,null,null,null,null,null,null,null,null,null,null,null,null,null,null,null,null,null,null,null,null,null,null,null,null,null,null,null,null,null,""]
[null,null,null,null,null,null,null,null,null,null,null,null,null,null,null,null,null,null,null,null,null,null,null,null,null,null,null,null,null,null,null,null,null,null,null,null,null,null,null,""]
[null,null,null,null,null,null,null,null,null,null,null,null,null,null,null,null,null,null,null,null,null,null,null,null,null,null,null,null,null,null,null,null,null,null,null,null,null,null,null,""]
[null,null,null,null,null,null,null,null,null,null,null,null,null,null,null,null,null,null,null,null,null,null,null,null,null,null,null,null,null,null,null,null,null,null,null,null,null,null,null,""]
[null,null,null,null,null,null,null,null,null,null,null,null,null,null,null,null,null,null,null,null,null,null,null,null,null,null,null,null,null,null,null,null,null,null,null,null,null,null,null,""]
[null,null,null,null,null,null,null,null,null,null,null,null,null,null,null,null,null,null,null,null,null,null,null,null,null,null,null,null,null,null,null,null,null,null,null,null,null,null,null,""]
[null,null,null,null,null,null,null,null,null,null,null,null,null,null,null,null,null,null,null,null,null,null,null,null,null,null,null,null,null,null,null,null,null,null,null,null,null,null,null,""]
[null,null,null,null,null,null,null,null,null,null,null,null,null,null,null,null,null,null,null,null,null,null,null,null,null,null,null,null,null,null,null,null,null,null,null,null,null,null,null,""]
[null,null,null,null,null,null,null,null,null,null,null,null,null,null,null,null,null,null,null,null,null,null,null,null,null,null,null,null,null,null,null,null,null,null,null,null,null,null,null,""]
[null,null,null,null,null,null,null,null,null,null,null,null,null,null,null,null,null,null,null,null,null,null,null,null,null,null,null,null,null,null,null,null,null,null,null,null,null,null,null,""]
[null,null,null,null,null,null,null,null,null,null,null,null,null,null,null,null,null,null,null,null,null,null,null,null,null,null,null,null,null,null,null,null,null,null,null,null,null,null,null,""]
[null,null,null,null,null,null,null,null,null,null,null,null,null,null,null,null,null,null,null,null,null,null,null,null,null,null,null,null,null,null,null,null,null,null,null,null,null,null,null,""]
[null,null,null,null,null,null,null,null,null,null,null,null,null,null,null,null,null,null,null,null,null,null,null,null,null,null,null,null,null,null,null,null,null,null,null,null,null,null,null,""]
[null,null,null,null,null,null,null,null,null,null,null,null,null,null,null,null,null,null,null,null,null,null,null,null,null,null,null,null,null,null,null,null,null,null,null,null,null,null,null,""]
[null,null,null,null,null,null,null,null,null,null,null,null,null,null,null,null,null,null,null,null,null,null,null,null,null,null,null,null,null,null,null,null,null,null,null,null,null,null,null,""]
[null,null,null,null,null,null,null,null,null,null,null,null,null,null,null,null,null,null,null,null,null,null,null,null,null,null,null,null,null,null,null,null,null,null,null,null,null,null,null,""]
[null,null,null,null,null,null,null,null,null,null,null,null,null,null,null,null,null,null,null,null,null,null,null,null,null,null,null,null,null,null,null,null,null,null,null,null,null,null,null,""]
[null,null,null,null,null,null,null,null,null,null,null,null,null,null,null,null,null,null,null,null,null,null,null,null,null,null,null,null,null,null,null,null,null,null,null,null,null,null,null,""]
[null,null,null,null,null,null,null,null,null,null,null,null,null,null,null,null,null,null,null,null,null,null,null,null,null,null,null,null,null,null,null,null,null,null,null,null,null,null,null,""]
[null,null,null,null,null,null,null,null,null,null,null,null,null,null,null,null,null,null,null,null,null,null,null,null,null,null,null,null,null,null,null,null,null,null,null,null,null,null,null,""]
[null,null,null,null,null,null,null,null,null,null,null,null,null,null,null,null,null,null,null,null,null,null,null,null,null,null,null,null,null,null,null,null,null,null,null,null,null,null,null,""]
[null,null,null,null,null,null,null,null,null,null,null,null,null,null,null,null,null,null,null,null,null,null,null,null,null,null,null,null,null,null,null,null,null,null,null,null,null,null,null,""]
[null,null,null,null,null,null,null,null,null,null,null,null,null,null,null,null,null,null,null,null,null,null,null,null,null,null,null,null,null,null,null,null,null,null,null,null,null,null,null,""]
[null,null,null,null,null,null,null,null,null,null,null,null,null,null,null,null,null,null,null,null,null,null,null,null,null,null,null,null,null,null,null,null,null,null,null,null,null,null,null,""]
[null,null,null,null,null,null,null,null,null,null,null,null,null,null,null,null,null,null,null,null,null,null,null,null,null,null,null,null,null,null,null,null,null,null,null,null,null,null,null,{"$f":"IF(AH235=\"\",\"\",AE235*AH235)","v":""}]
[null,null,null,null,null,null,null,null,null,null,null,null,null,null,null,null,null,null,null,null,null,null,null,null,null,null,null,null,null,null,null,null,null,null,null,null,null,null,null,""]
[null,null,null,null,null,null,null,null,null,null,null,null,null,null,null,null,null,null,null,null,null,null,null,null,null,null,null,null,null,null,null,null,null,null,null,null,null,null,null,""]
[null,null,null,null,null,null,null,null,null,null,null,null,null,null,null,null,null,null,null,null,null,null,null,null,null,null,null,null,null,null,null,null,null,null,null,null,null,null,null,""]
[null,null,null,null,null,null,null,null,null,null,null,null,null,null,null,null,null,null,null,null,null,null,null,null,null,null,null,null,null,null,null,null,null,null,null,null,null,null,null,""]
[null,null,null,null,null,null,null,null,null,null,null,null,null,null,null,null,null,null,null,null,null,null,null,null,null,null,null,null,null,null,null,null,null,null,null,null,null,null,null,""]
[null,null,null,null,null,null,null,null,null,null,null,null,null,null,null,null,null,null,null,null,null,null,null,null,null,null,null,null,null,null,null,null,null,null,null,null,null,null,null,""]
[null,null,null,null,null,null,null,null,null,null,null,null,null,null,null,null,null,null,null,null,null,null,null,null,null,null,null,null,null,null,null,null,null,null,null,null,null,null,null,""]
[null,null,null,null,null,null,null,null,null,null,null,null,null,null,null,null,null,null,null,null,null,null,null,null,null,null,null,null,null,null,null,null,null,null,null,null,null,null,null,""]
[null,null,null,null,null,null,null,null,null,null,null,null,null,null,null,null,null,null,null,null,null,null,null,null,null,null,null,null,null,null,null,null,null,null,null,null,null,null,null,""]
[null,null,null,null,null,null,null,null,null,null,null,null,null,null,null,null,null,null,null,null,null,null,null,null,null,null,null,null,null,null,null,null,null,null,null,null,null,null,null,""]
[null,null,null,null,null,null,null,null,null,null,null,null,null,null,null,null,null,null,null,null,null,null,null,null,null,null,null,null,null,null,null,null,null,null,null,null,null,null,null,""]
[null,null,null,null,null,null,null,null,null,null,null,null,null,null,null,null,null,null,null,null,null,null,null,null,null,null,null,null,null,null,null,null,null,null,null,null,null,null,null,""]
[null,null,null,null,null,null,null,null,null,null,null,null,null,null,null,null,null,null,null,null,null,null,null,null,null,null,null,null,null,null,null,null,null,null,null,null,null,null,null,""]
[null,null,null,null,null,null,null,null,null,null,null,null,null,null,null,null,null,null,null,null,null,null,null,null,null,null,null,null,null,null,null,null,null,null,null,null,null,null,null,""]
[null,null,null,null,null,null,null,null,null,null,null,null,null,null,null,null,null,null,null,null,null,null,null,null,null,null,null,null,null,null,null,null,null,null,null,null,null,null,null,""]
[null,null,null,null,null,null,null,null,null,null,null,null,null,null,null,null,null,null,null,null,null,null,null,null,null,null,null,null,null,null,null,null,null,null,null,null,null,null,null,""]
[null,null,null,null,null,null,null,null,null,null,null,null,null,null,null,null,null,null,null,null,null,null,null,null,null,null,null,null,null,null,null,null,null,null,null,null,null,null,null,""]
[null,null,null,null,null,null,null,null,null,null,null,null,null,null,null,null,null,null,null,null,null,null,null,null,null,null,null,null,null,null,null,null,null,null,null,null,null,null,null,""]
[null,null,null,null,null,null,null,null,null,null,null,null,null,null,null,null,null,null,null,null,null,null,null,null,null,null,null,null,null,null,null,null,null,null,null,null,null,null,null,""]
[null,null,null,null,null,null,null,null,null,null,null,null,null,null,null,null,null,null,null,null,null,null,null,null,null,null,null,null,null,null,null,null,null,null,null,null,null,null,null,""]
[null,null,null,null,null,null,null,null,null,null,null,null,null,null,null,null,null,null,null,null,null,null,null,null,null,null,null,null,null,null,null,null,null,null,null,null,null,null,null,""]
[null,null,null,null,null,null,null,null,null,null,null,null,null,null,null,null,null,null,null,null,null,null,null,null,null,null,null,null,null,null,null,null,null,null,null,null,null,null,null,""]
[null,null,null,null,null,null,null,null,null,null,null,null,null,null,null,null,null,null,null,null,null,null,null,null,null,null,null,null,null,null,null,null,null,null,null,null,null,null,null,""]
[null,null,null,null,null,null,null,null,null,null,null,null,null,null,null,null,null,null,null,null,null,null,null,null,null,null,null,null,null,null,null,null,null,null,null,null,null,null,null,""]
[null,null,null,null,null,null,null,null,null,null,null,null,null,null,null,null,null,null,null,null,null,null,null,null,null,null,null,null,null,null,null,null,null,null,null,null,null,null,null,""]
[null,null,null,null,null,null,null,null,null,null,null,null,null,null,null,null,null,null,null,null,null,null,null,null,null,null,null,null,null,null,null,null,null,null,null,null,null,null,null,""]
[null,null,null,null,null,null,null,null,null,null,null,null,null,null,null,null,null,null,null,null,null,null,null,null,null,null,null,null,null,null,null,null,null,null,null,null,null,null,null,""]
[null,null,null,null,null,null,null,null,null,null,null,null,null,null,null,null,null,null,null,null,null,null,null,null,null,null,null,null,null,null,null,null,null,null,null,null,null,null,null,""]
[null,null,null,null,null,null,null,null,null,null,null,null,null,null,null,null,null,null,null,null,null,null,null,null,null,null,null,null,null,null,null,null,null,null,null,null,null,null,null,""]
[null,null,null,null,null,null,null,null,null,null,null,null,null,null,null,null,null,null,null,null,null,null,null,null,null,null,null,null,null,null,null,null,null,null,null,null,null,null,null,""]
[null,null,null,null,null,null,null,null,null,null,null,null,null,null,null,null,null,null,null,null,null,null,null,null,null,null,null,null,null,null,null,null,null,null,null,null,null,null,null,""]
[null,null,null,null,null,null,null,null,null,null,null,null,null,null,null,null,null,null,null,null,null,null,null,null,null,null,null,null,null,null,null,null,null,null,null,null,null,null,null,""]
[null,null,null,null,null,null,null,null,null,null,null,null,null,null,null,null,null,null,null,null,null,null,null,null,null,null,null,null,null,null,null,null,null,null,null,null,null,null,null,""]
[null,null,null,null,null,null,null,null,null,null,null,null,null,null,null,null,null,null,null,null,null,null,null,null,null,null,null,null,null,null,null,null,null,null,null,null,null,null,null,""]
[null,null,null,null,null,null,null,null,null,null,null,null,null,null,null,null,null,null,null,null,null,null,null,null,null,null,null,null,null,null,null,null,null,null,null,null,null,null,null,""]
[null,null,null,null,null,null,null,null,null,null,null,null,null,null,null,null,null,null,null,null,null,null,null,null,null,null,null,null,null,null,null,null,null,null,null,null,null,null,null,""]
[null,null,null,null,null,null,null,null,null,null,null,null,null,null,null,null,null,null,null,null,null,null,null,null,null,null,null,null,null,null,null,null,null,null,null,null,null,null,null,""]
[null,null,null,null,null,null,null,null,null,null,null,null,null,null,null,null,null,null,null,null,null,null,null,null,null,null,null,null,null,null,null,null,null,null,null,null,null,null,null,""]
[null,null,null,null,null,null,null,null,null,null,null,null,null,null,null,null,null,null,null,null,null,null,null,null,null,null,null,null,null,null,null,null,null,null,null,null,null,null,null,""]
[null,null,null,null,null,null,null,null,null,null,null,null,null,null,null,null,null,null,null,null,null,null,null,null,null,null,null,null,null,null,null,null,null,null,null,null,null,null,null,""]
[null,null,null,null,null,null,null,null,null,null,null,null,null,null,null,null,null,null,null,null,null,null,null,null,null,null,null,null,null,null,null,null,null,null,null,null,null,null,null,""]
[null,null,null,null,null,null,null,null,null,null,null,null,null,null,null,null,null,null,null,null,null,null,null,null,null,null,null,null,null,null,null,null,null,null,null,null,null,null,null,""]
[null,null,null,null,null,null,null,null,null,null,null,null,null,null,null,null,null,null,null,null,null,null,null,null,null,null,null,null,null,null,null,null,null,null,null,null,null,null,null,""]
[null,null,null,null,null,null,null,null,null,null,null,null,null,null,null,null,null,null,null,null,null,null,null,null,null,null,null,null,null,null,null,null,null,null,null,null,null,null,null,""]
[null,null,null,null,null,null,null,null,null,null,null,null,null,null,null,null,null,null,null,null,null,null,null,null,null,null,null,null,null,null,null,null,null,null,null,null,null,null,null,""]
[null,null,null,null,null,null,null,null,null,null,null,null,null,null,null,null,null,null,null,null,null,null,null,null,null,null,null,null,null,null,null,null,null,null,null,null,null,null,null,""]
[null,null,null,null,null,null,null,null,null,null,null,null,null,null,null,null,null,null,null,null,null,null,null,null,null,null,null,null,null,null,null,null,null,null,null,null,null,null,null,""]
[null,null,null,null,null,null,null,null,null,null,null,null,null,null,null,null,null,null,null,null,null,null,null,null,null,null,null,null,null,null,null,null,null,null,null,null,null,null,null,""]
[null,null,null,null,null,null,null,null,null,null,null,null,null,null,null,null,null,null,null,null,null,null,null,null,null,null,null,null,null,null,null,null,null,null,null,null,null,null,null,""]
[null,null,null,null,null,null,null,null,null,null,null,null,null,null,null,null,null,null,null,null,null,null,null,null,null,null,null,null,null,null,null,null,null,null,null,null,null,null,null,""]
[null,null,null,null,null,null,null,null,null,null,null,null,null,null,null,null,null,null,null,null,null,null,null,null,null,null,null,null,null,null,null,null,null,null,null,null,null,null,null,""]
[null,null,null,null,null,null,null,null,null,null,null,null,null,null,null,null,null,null,null,null,null,null,null,null,null,null,null,null,null,null,null,null,null,null,null,null,null,null,null,""]
[null,null,null,null,null,null,null,null,null,null,null,null,null,null,null,null,null,null,null,null,null,null,null,null,null,null,null,null,null,null,null,null,null,null,null,null,null,null,null,""]
[null,null,null,null,null,null,null,null,null,null,null,null,null,null,null,null,null,null,null,null,null,null,null,null,null,null,null,null,null,null,null,null,null,null,null,null,null,null,null,""]
[null,null,null,null,null,null,null,null,null,null,null,null,null,null,null,null,null,null,null,null,null,null,null,null,null,null,null,null,null,null,null,null,null,null,null,null,null,null,null,""]
[null,null,null,null,null,null,null,null,null,null,null,null,null,null,null,null,null,null,null,null,null,null,null,null,null,null,null,null,null,null,null,null,null,null,null,null,null,null,null,""]
[null,null,null,null,null,null,null,null,null,null,null,null,null,null,null,null,null,null,null,null,null,null,null,null,null,null,null,null,null,null,null,null,null,null,null,null,null,null,null,""]
[null,null,null,null,null,null,null,null,null,null,null,null,null,null,null,null,null,null,null,null,null,null,null,null,null,null,null,null,null,null,null,null,null,null,null,null,null,null,null,""]
[null,null,null,null,null,null,null,null,null,null,null,null,null,null,null,null,null,null,null,null,null,null,null,null,null,null,null,null,null,null,null,null,null,null,null,null,null,null,null,""]
[null,null,null,null,null,null,null,null,null,null,null,null,null,null,null,null,null,null,null,null,null,null,null,null,null,null,null,null,null,null,null,null,null,null,null,null,null,null,null,""]
[null,null,null,null,null,null,null,null,null,null,null,null,null,null,null,null,null,null,null,null,null,null,null,null,null,null,null,null,null,null,null,null,null,null,null,null,null,null,null,""]
[null,null,null,null,null,null,null,null,null,null,null,null,null,null,null,null,null,null,null,null,null,null,null,null,null,null,null,null,null,null,null,null,null,null,null,null,null,null,null,""]
[null,null,null,null,null,null,null,null,null,null,null,null,null,null,null,null,null,null,null,null,null,null,null,null,null,null,null,null,null,null,null,null,null,null,null,null,null,null,null,""]
[null,null,null,null,null,null,null,null,null,null,null,null,null,null,null,null,null,null,null,null,null,null,null,null,null,null,null,null,null,null,null,null,null,null,null,null,null,null,null,{"$f":"IF(AH299=\"\",\"\",AE299*AH299)","v":""}]
[null,null,null,null,null,null,null,null,null,null,null,null,null,null,null,null,null,null,null,null,null,null,null,null,null,null,null,null,null,null,null,null,null,null,null,null,null,null,null,""]
[null,null,null,null,null,null,null,null,null,null,null,null,null,null,null,null,null,null,null,null,null,null,null,null,null,null,null,null,null,null,null,null,null,null,null,null,null,null,null,""]
[null,null,null,null,null,null,null,null,null,null,null,null,null,null,null,null,null,null,null,null,null,null,null,null,null,null,null,null,null,null,null,null,null,null,null,null,null,null,null,""]
[null,null,null,null,null,null,null,null,null,null,null,null,null,null,null,null,null,null,null,null,null,null,null,null,null,null,null,null,null,null,null,null,null,null,null,null,null,null,null,""]
[null,null,null,null,null,null,null,null,null,null,null,null,null,null,null,null,null,null,null,null,null,null,null,null,null,null,null,null,null,null,null,null,null,null,null,null,null,null,null,""]
[null,null,null,null,null,null,null,null,null,null,null,null,null,null,null,null,null,null,null,null,null,null,null,null,null,null,null,null,null,null,null,null,null,null,null,null,null,null,null,""]
[null,null,null,null,null,null,null,null,null,null,null,null,null,null,null,null,null,null,null,null,null,null,null,null,null,null,null,null,null,null,null,null,null,null,null,null,null,null,null,""]
[null,null,null,null,null,null,null,null,null,null,null,null,null,null,null,null,null,null,null,null,null,null,null,null,null,null,null,null,null,null,null,null,null,null,null,null,null,null,null,""]
[null,null,null,null,null,null,null,null,null,null,null,null,null,null,null,null,null,null,null,null,null,null,null,null,null,null,null,null,null,null,null,null,null,null,null,null,null,null,null,""]
[null,null,null,null,null,null,null,null,null,null,null,null,null,null,null,null,null,null,null,null,null,null,null,null,null,null,null,null,null,null,null,null,null,null,null,null,null,null,null,""]
[null,null,null,null,null,null,null,null,null,null,null,null,null,null,null,null,null,null,null,null,null,null,null,null,null,null,null,null,null,null,null,null,null,null,null,null,null,null,null,""]
[null,null,null,null,null,null,null,null,null,null,null,null,null,null,null,null,null,null,null,null,null,null,null,null,null,null,null,null,null,null,null,null,null,null,null,null,null,null,null,""]
[null,null,null,null,null,null,null,null,null,null,null,null,null,null,null,null,null,null,null,null,null,null,null,null,null,null,null,null,null,null,null,null,null,null,null,null,null,null,null,""]
[null,null,null,null,null,null,null,null,null,null,null,null,null,null,null,null,null,null,null,null,null,null,null,null,null,null,null,null,null,null,null,null,null,null,null,null,null,null,null,""]
[null,null,null,null,null,null,null,null,null,null,null,null,null,null,null,null,null,null,null,null,null,null,null,null,null,null,null,null,null,null,null,null,null,null,null,null,null,null,null,""]
[null,null,null,null,null,null,null,null,null,null,null,null,null,null,null,null,null,null,null,null,null,null,null,null,null,null,null,null,null,null,null,null,null,null,null,null,null,null,null,""]
[null,null,null,null,null,null,null,null,null,null,null,null,null,null,null,null,null,null,null,null,null,null,null,null,null,null,null,null,null,null,null,null,null,null,null,null,null,null,null,""]
[null,null,null,null,null,null,null,null,null,null,null,null,null,null,null,null,null,null,null,null,null,null,null,null,null,null,null,null,null,null,null,null,null,null,null,null,null,null,null,""]
[null,null,null,null,null,null,null,null,null,null,null,null,null,null,null,null,null,null,null,null,null,null,null,null,null,null,null,null,null,null,null,null,null,null,null,null,null,null,null,""]
[null,null,null,null,null,null,null,null,null,null,null,null,null,null,null,null,null,null,null,null,null,null,null,null,null,null,null,null,null,null,null,null,null,null,null,null,null,null,null,""]
[null,null,null,null,null,null,null,null,null,null,null,null,null,null,null,null,null,null,null,null,null,null,null,null,null,null,null,null,null,null,null,null,null,null,null,null,null,null,null,""]
[null,null,null,null,null,null,null,null,null,null,null,null,null,null,null,null,null,null,null,null,null,null,null,null,null,null,null,null,null,null,null,null,null,null,null,null,null,null,null,""]
[null,null,null,null,null,null,null,null,null,null,null,null,null,null,null,null,null,null,null,null,null,null,null,null,null,null,null,null,null,null,null,null,null,null,null,null,null,null,null,""]
[null,null,null,null,null,null,null,null,null,null,null,null,null,null,null,null,null,null,null,null,null,null,null,null,null,null,null,null,null,null,null,null,null,null,null,null,null,null,null,""]
[null,null,null,null,null,null,null,null,null,null,null,null,null,null,null,null,null,null,null,null,null,null,null,null,null,null,null,null,null,null,null,null,null,null,null,null,null,null,null,""]
[null,null,null,null,null,null,null,null,null,null,null,null,null,null,null,null,null,null,null,null,null,null,null,null,null,null,null,null,null,null,null,null,null,null,null,null,null,null,null,""]
[null,null,null,null,null,null,null,null,null,null,null,null,null,null,null,null,null,null,null,null,null,null,null,null,null,null,null,null,null,null,null,null,null,null,null,null,null,null,null,""]
[null,null,null,null,null,null,null,null,null,null,null,null,null,null,null,null,null,null,null,null,null,null,null,null,null,null,null,null,null,null,null,null,null,null,null,null,null,null,null,""]
[null,null,null,null,null,null,null,null,null,null,null,null,null,null,null,null,null,null,null,null,null,null,null,null,null,null,null,null,null,null,null,null,null,null,null,null,null,null,null,""]
[null,null,null,null,null,null,null,null,null,null,null,null,null,null,null,null,null,null,null,null,null,null,null,null,null,null,null,null,null,null,null,null,null,null,null,null,null,null,null,""]
[null,null,null,null,null,null,null,null,null,null,null,null,null,null,null,null,null,null,null,null,null,null,null,null,null,null,null,null,null,null,null,null,null,null,null,null,null,null,null,""]
[null,null,null,null,null,null,null,null,null,null,null,null,null,null,null,null,null,null,null,null,null,null,null,null,null,null,null,null,null,null,null,null,null,null,null,null,null,null,null,""]
[null,null,null,null,null,null,null,null,null,null,null,null,null,null,null,null,null,null,null,null,null,null,null,null,null,null,null,null,null,null,null,null,null,null,null,null,null,null,null,""]
[null,null,null,null,null,null,null,null,null,null,null,null,null,null,null,null,null,null,null,null,null,null,null,null,null,null,null,null,null,null,null,null,null,null,null,null,null,null,null,""]
[null,null,null,null,null,null,null,null,null,null,null,null,null,null,null,null,null,null,null,null,null,null,null,null,null,null,null,null,null,null,null,null,null,null,null,null,null,null,null,""]
[null,null,null,null,null,null,null,null,null,null,null,null,null,null,null,null,null,null,null,null,null,null,null,null,null,null,null,null,null,null,null,null,null,null,null,null,null,null,null,""]
[null,null,null,null,null,null,null,null,null,null,null,null,null,null,null,null,null,null,null,null,null,null,null,null,null,null,null,null,null,null,null,null,null,null,null,null,null,null,null,""]
[null,null,null,null,null,null,null,null,null,null,null,null,null,null,null,null,null,null,null,null,null,null,null,null,null,null,null,null,null,null,null,null,null,null,null,null,null,null,null,""]
[null,null,null,null,null,null,null,null,null,null,null,null,null,null,null,null,null,null,null,null,null,null,null,null,null,null,null,null,null,null,null,null,null,null,null,null,null,null,null,""]
[null,null,null,null,null,null,null,null,null,null,null,null,null,null,null,null,null,null,null,null,null,null,null,null,null,null,null,null,null,null,null,null,null,null,null,null,null,null,null,""]
[null,null,null,null,null,null,null,null,null,null,null,null,null,null,null,null,null,null,null,null,null,null,null,null,null,null,null,null,null,null,null,null,null,null,null,null,null,null,null,""]
[null,null,null,null,null,null,null,null,null,null,null,null,null,null,null,null,null,null,null,null,null,null,null,null,null,null,null,null,null,null,null,null,null,null,null,null,null,null,null,""]
[null,null,null,null,null,null,null,null,null,null,null,null,null,null,null,null,null,null,null,null,null,null,null,null,null,null,null,null,null,null,null,null,null,null,null,null,null,null,null,""]
[null,null,null,null,null,null,null,null,null,null,null,null,null,null,null,null,null,null,null,null,null,null,null,null,null,null,null,null,null,null,null,null,null,null,null,null,null,null,null,""]
[null,null,null,null,null,null,null,null,null,null,null,null,null,null,null,null,null,null,null,null,null,null,null,null,null,null,null,null,null,null,null,null,null,null,null,null,null,null,null,""]
[null,null,null,null,null,null,null,null,null,null,null,null,null,null,null,null,null,null,null,null,null,null,null,null,null,null,null,null,null,null,null,null,null,null,null,null,null,null,null,""]
[null,null,null,null,null,null,null,null,null,null,null,null,null,null,null,null,null,null,null,null,null,null,null,null,null,null,null,null,null,null,null,null,null,null,null,null,null,null,null,""]
[null,null,null,null,null,null,null,null,null,null,null,null,null,null,null,null,null,null,null,null,null,null,null,null,null,null,null,null,null,null,null,null,null,null,null,null,null,null,null,""]
[null,null,null,null,null,null,null,null,null,null,null,null,null,null,null,null,null,null,null,null,null,null,null,null,null,null,null,null,null,null,null,null,null,null,null,null,null,null,null,""]
[null,null,null,null,null,null,null,null,null,null,null,null,null,null,null,null,null,null,null,null,null,null,null,null,null,null,null,null,null,null,null,null,null,null,null,null,null,null,null,""]
[null,null,null,null,null,null,null,null,null,null,null,null,null,null,null,null,null,null,null,null,null,null,null,null,null,null,null,null,null,null,null,null,null,null,null,null,null,null,null,""]
[null,null,null,null,null,null,null,null,null,null,null,null,null,null,null,null,null,null,null,null,null,null,null,null,null,null,null,null,null,null,null,null,null,null,null,null,null,null,null,""]
[null,null,null,null,null,null,null,null,null,null,null,null,null,null,null,null,null,null,null,null,null,null,null,null,null,null,null,null,null,null,null,null,null,null,null,null,null,null,null,""]
[null,null,null,null,null,null,null,null,null,null,null,null,null,null,null,null,null,null,null,null,null,null,null,null,null,null,null,null,null,null,null,null,null,null,null,null,null,null,null,""]
[null,null,null,null,null,null,null,null,null,null,null,null,null,null,null,null,null,null,null,null,null,null,null,null,null,null,null,null,null,null,null,null,null,null,null,null,null,null,null,""]
[null,null,null,null,null,null,null,null,null,null,null,null,null,null,null,null,null,null,null,null,null,null,null,null,null,null,null,null,null,null,null,null,null,null,null,null,null,null,null,""]
[null,null,null,null,null,null,null,null,null,null,null,null,null,null,null,null,null,null,null,null,null,null,null,null,null,null,null,null,null,null,null,null,null,null,null,null,null,null,null,""]
[null,null,null,null,null,null,null,null,null,null,null,null,null,null,null,null,null,null,null,null,null,null,null,null,null,null,null,null,null,null,null,null,null,null,null,null,null,null,null,""]
[null,null,null,null,null,null,null,null,null,null,null,null,null,null,null,null,null,null,null,null,null,null,null,null,null,null,null,null,null,null,null,null,null,null,null,null,null,null,null,""]
[null,null,null,null,null,null,null,null,null,null,null,null,null,null,null,null,null,null,null,null,null,null,null,null,null,null,null,null,null,null,null,null,null,null,null,null,null,null,null,""]
[null,null,null,null,null,null,null,null,null,null,null,null,null,null,null,null,null,null,null,null,null,null,null,null,null,null,null,null,null,null,null,null,null,null,null,null,null,null,null,""]
[null,null,null,null,null,null,null,null,null,null,null,null,null,null,null,null,null,null,null,null,null,null,null,null,null,null,null,null,null,null,null,null,null,null,null,null,null,null,null,""]
[null,null,null,null,null,null,null,null,null,null,null,null,null,null,null,null,null,null,null,null,null,null,null,null,null,null,null,null,null,null,null,null,null,null,null,null,null,null,null,""]
[null,null,null,null,null,null,null,null,null,null,null,null,null,null,null,null,null,null,null,null,null,null,null,null,null,null,null,null,null,null,null,null,null,null,null,null,null,null,null,{"$f":"IF(AH363=\"\",\"\",AE363*AH363)","v":""}]
[null,null,null,null,null,null,null,null,null,null,null,null,null,null,null,null,null,null,null,null,null,null,null,null,null,null,null,null,null,null,null,null,null,null,null,null,null,null,null,""]
[null,null,null,null,null,null,null,null,null,null,null,null,null,null,null,null,null,null,null,null,null,null,null,null,null,null,null,null,null,null,null,null,null,null,null,null,null,null,null,""]
[null,null,null,null,null,null,null,null,null,null,null,null,null,null,null,null,null,null,null,null,null,null,null,null,null,null,null,null,null,null,null,null,null,null,null,null,null,null,null,""]
[null,null,null,null,null,null,null,null,null,null,null,null,null,null,null,null,null,null,null,null,null,null,null,null,null,null,null,null,null,null,null,null,null,null,null,null,null,null,null,""]
["TOTAL",null,null,null,null,null,null,null,null,null,null,null,null,null,null,null,null,null,null,null,null,null,null,null,null,null,null,null,null,null,{"$f":"IF(SUM(AE168:AG367)=0,\"-\",SUM(AE168:AG367))","v":"-"},null,null,{"$f":"IF(SUM(AH168:AM367)=0,\"-\",SUM(AH168:AM367))","v":"-"},null,null,null,null,null,{"$f":"IF(SUM(AN168:AS367)=0,\"-\",SUM(AN168:AS367))","v":"-"}]
[]
["III - SEMOVENTES"]
["BOVINOS"]
["TIPO DE ANIMAL",null,null,null,null,null,null,"IDADE MÉDIA\n(MESES)",null,null,null,null,null,"RAÇA:",null,null,null,null,null,"COR PREDOMINANTE",null,null,null,null,null,null,"QUANTIDADE \n(Nº CABEÇAS)",null,null,null,null,null,null,"VALOR  UN.\n (R$)",null,null,null,null,null,"VALOR \nTOTAL (R$)"]
[null,null,null,null,null,null,null,null,null,null,null,null,null,null,null,null,null,null,null,null,null,null,null,null,null,null,null,null,null,null,null,null,null,null,null,null,null,null,null,{"$f":"IF(OR(AH373=\"\",AA373=\"\"),\"\",AH373*AA373)","v":""},null,null,null,null,null,null,{"$f":"SUM(AV373:AV422)","v":1},1]
[null,null,null,null,null,null,null,null,null,null,null,null,null,null,null,null,null,null,null,null,null,null,null,null,null,null,null,null,null,null,null,null,null,null,null,null,null,null,null,{"$f":"IF(OR(AH374=\"\",AA374=\"\"),\"\",AH374*AA374)","v":""}]
[null,null,null,null,null,null,null,null,null,null,null,null,null,null,null,null,null,null,null,null,null,null,null,null,null,null,null,null,null,null,null,null,null,null,null,null,null,null,null,{"$f":"IF(OR(AH375=\"\",AA375=\"\"),\"\",AH375*AA375)","v":""}]
[null,null,null,null,null,null,null,null,null,null,null,null,null,null,null,null,null,null,null,null,null,null,null,null,null,null,null,null,null,null,null,null,null,null,null,null,null,null,null,""]
[null,null,null,null,null,null,null,null,null,null,null,null,null,null,null,null,null,null,null,null,null,null,null,null,null,null,null,null,null,null,null,null,null,null,null,null,null,null,null,""]
[null,null,null,null,null,null,null,null,null,null,null,null,null,null,null,null,null,null,null,null,null,null,null,null,null,null,null,null,null,null,null,null,null,null,null,null,null,null,null,""]
[null,null,null,null,null,null,null,null,null,null,null,null,null,null,null,null,null,null,null,null,null,null,null,null,null,null,null,null,null,null,null,null,null,null,null,null,null,null,null,""]
[null,null,null,null,null,null,null,null,null,null,null,null,null,null,null,null,null,null,null,null,null,null,null,null,null,null,null,null,null,null,null,null,null,null,null,null,null,null,null,""]
[null,null,null,null,null,null,null,null,null,null,null,null,null,null,null,null,null,null,null,null,null,null,null,null,null,null,null,null,null,null,null,null,null,null,null,null,null,null,null,""]
[null,null,null,null,null,null,null,null,null,null,null,null,null,null,null,null,null,null,null,null,null,null,null,null,null,null,null,null,null,null,null,null,null,null,null,null,null,null,null,""]
[null,null,null,null,null,null,null,null,null,null,null,null,null,null,null,null,null,null,null,null,null,null,null,null,null,null,null,null,null,null,null,null,null,null,null,null,null,null,null,""]
[null,null,null,null,null,null,null,null,null,null,null,null,null,null,null,null,null,null,null,null,null,null,null,null,null,null,null,null,null,null,null,null,null,null,null,null,null,null,null,""]
[null,null,null,null,null,null,null,null,null,null,null,null,null,null,null,null,null,null,null,null,null,null,null,null,null,null,null,null,null,null,null,null,null,null,null,null,null,null,null,""]
[null,null,null,null,null,null,null,null,null,null,null,null,null,null,null,null,null,null,null,null,null,null,null,null,null,null,null,null,null,null,null,null,null,null,null,null,null,null,null,""]
[null,null,null,null,null,null,null,null,null,null,null,null,null,null,null,null,null,null,null,null,null,null,null,null,null,null,null,null,null,null,null,null,null,null,null,null,null,null,null,""]
[null,null,null,null,null,null,null,null,null,null,null,null,null,null,null,null,null,null,null,null,null,null,null,null,null,null,null,null,null,null,null,null,null,null,null,null,null,null,null,""]
[null,null,null,null,null,null,null,null,null,null,null,null,null,null,null,null,null,null,null,null,null,null,null,null,null,null,null,null,null,null,null,null,null,null,null,null,null,null,null,""]
[null,null,null,null,null,null,null,null,null,null,null,null,null,null,null,null,null,null,null,null,null,null,null,null,null,null,null,null,null,null,null,null,null,null,null,null,null,null,null,""]
[null,null,null,null,null,null,null,null,null,null,null,null,null,null,null,null,null,null,null,null,null,null,null,null,null,null,null,null,null,null,null,null,null,null,null,null,null,null,null,""]
[null,null,null,null,null,null,null,null,null,null,null,null,null,null,null,null,null,null,null,null,null,null,null,null,null,null,null,null,null,null,null,null,null,null,null,null,null,null,null,""]
[null,null,null,null,null,null,null,null,null,null,null,null,null,null,null,null,null,null,null,null,null,null,null,null,null,null,null,null,null,null,null,null,null,null,null,null,null,null,null,""]
[null,null,null,null,null,null,null,null,null,null,null,null,null,null,null,null,null,null,null,null,null,null,null,null,null,null,null,null,null,null,null,null,null,null,null,null,null,null,null,""]
[null,null,null,null,null,null,null,null,null,null,null,null,null,null,null,null,null,null,null,null,null,null,null,null,null,null,null,null,null,null,null,null,null,null,null,null,null,null,null,""]
[null,null,null,null,null,null,null,null,null,null,null,null,null,null,null,null,null,null,null,null,null,null,null,null,null,null,null,null,null,null,null,null,null,null,null,null,null,null,null,""]
[null,null,null,null,null,null,null,null,null,null,null,null,null,null,null,null,null,null,null,null,null,null,null,null,null,null,null,null,null,null,null,null,null,null,null,null,null,null,null,""]
[null,null,null,null,null,null,null,null,null,null,null,null,null,null,null,null,null,null,null,null,null,null,null,null,null,null,null,null,null,null,null,null,null,null,null,null,null,null,null,""]
[null,null,null,null,null,null,null,null,null,null,null,null,null,null,null,null,null,null,null,null,null,null,null,null,null,null,null,null,null,null,null,null,null,null,null,null,null,null,null,""]
[null,null,null,null,null,null,null,null,null,null,null,null,null,null,null,null,null,null,null,null,null,null,null,null,null,null,null,null,null,null,null,null,null,null,null,null,null,null,null,""]
[null,null,null,null,null,null,null,null,null,null,null,null,null,null,null,null,null,null,null,null,null,null,null,null,null,null,null,null,null,null,null,null,null,null,null,null,null,null,null,""]
[null,null,null,null,null,null,null,null,null,null,null,null,null,null,null,null,null,null,null,null,null,null,null,null,null,null,null,null,null,null,null,null,null,null,null,null,null,null,null,""]
[null,null,null,null,null,null,null,null,null,null,null,null,null,null,null,null,null,null,null,null,null,null,null,null,null,null,null,null,null,null,null,null,null,null,null,null,null,null,null,""]
[null,null,null,null,null,null,null,null,null,null,null,null,null,null,null,null,null,null,null,null,null,null,null,null,null,null,null,null,null,null,null,null,null,null,null,null,null,null,null,""]
[null,null,null,null,null,null,null,null,null,null,null,null,null,null,null,null,null,null,null,null,null,null,null,null,null,null,null,null,null,null,null,null,null,null,null,null,null,null,null,""]
[null,null,null,null,null,null,null,null,null,null,null,null,null,null,null,null,null,null,null,null,null,null,null,null,null,null,null,null,null,null,null,null,null,null,null,null,null,null,null,""]
[null,null,null,null,null,null,null,null,null,null,null,null,null,null,null,null,null,null,null,null,null,null,null,null,null,null,null,null,null,null,null,null,null,null,null,null,null,null,null,""]
[null,null,null,null,null,null,null,null,null,null,null,null,null,null,null,null,null,null,null,null,null,null,null,null,null,null,null,null,null,null,null,null,null,null,null,null,null,null,null,""]
[null,null,null,null,null,null,null,null,null,null,null,null,null,null,null,null,null,null,null,null,null,null,null,null,null,null,null,null,null,null,null,null,null,null,null,null,null,null,null,""]
[null,null,null,null,null,null,null,null,null,null,null,null,null,null,null,null,null,null,null,null,null,null,null,null,null,null,null,null,null,null,null,null,null,null,null,null,null,null,null,""]
[null,null,null,null,null,null,null,null,null,null,null,null,null,null,null,null,null,null,null,null,null,null,null,null,null,null,null,null,null,null,null,null,null,null,null,null,null,null,null,""]
[null,null,null,null,null,null,null,null,null,null,null,null,null,null,null,null,null,null,null,null,null,null,null,null,null,null,null,null,null,null,null,null,null,null,null,null,null,null,null,""]
[null,null,null,null,null,null,null,null,null,null,null,null,null,null,null,null,null,null,null,null,null,null,null,null,null,null,null,null,null,null,null,null,null,null,null,null,null,null,null,""]
[null,null,null,null,null,null,null,null,null,null,null,null,null,null,null,null,null,null,null,null,null,null,null,null,null,null,null,null,null,null,null,null,null,null,null,null,null,null,null,""]
[null,null,null,null,null,null,null,null,null,null,null,null,null,null,null,null,null,null,null,null,null,null,null,null,null,null,null,null,null,null,null,null,null,null,null,null,null,null,null,""]
[null,null,null,null,null,null,null,null,null,null,null,null,null,null,null,null,null,null,null,null,null,null,null,null,null,null,null,null,null,null,null,null,null,null,null,null,null,null,null,""]
[null,null,null,null,null,null,null,null,null,null,null,null,null,null,null,null,null,null,null,null,null,null,null,null,null,null,null,null,null,null,null,null,null,null,null,null,null,null,null,""]
[null,null,null,null,null,null,null,null,null,null,null,null,null,null,null,null,null,null,null,null,null,null,null,null,null,null,null,null,null,null,null,null,null,null,null,null,null,null,null,""]
[null,null,null,null,null,null,null,null,null,null,null,null,null,null,null,null,null,null,null,null,null,null,null,null,null,null,null,null,null,null,null,null,null,null,null,null,null,null,null,""]
[null,null,null,null,null,null,null,null,null,null,null,null,null,null,null,null,null,null,null,null,null,null,null,null,null,null,null,null,null,null,null,null,null,null,null,null,null,null,null,""]
[null,null,null,null,null,null,null,null,null,null,null,null,null,null,null,null,null,null,null,null,null,null,null,null,null,null,null,null,null,null,null,null,null,null,null,null,null,null,null,""]
[null,null,null,null,null,null,null,null,null,null,null,null,null,null,null,null,null,null,null,null,null,null,null,null,null,null,null,null,null,null,null,null,null,null,null,null,null,null,null,""]
["TOTAL",null,null,null,null,null,null,null,null,null,null,null,null,null,null,null,null,null,null,null,null,null,null,null,null,null,{"$f":"IF(SUM(AA373:AG422)=0,\"-\",SUM(AA373:AG422))","v":"-"},null,null,null,null,null,null,{"$f":"IF(SUM(AH373:AM422)=0,\"-\",SUM(AH373:AM422))","v":"-"},null,null,null,null,null,{"$f":"IF(SUM(AN373:AS422)=0,\"-\",SUM(AN373:AS422))","v":"-"}]
["OUTROS ANIMAIS"]
["TIPO DE ANIMAL",null,null,null,null,null,null,"DESCRIÇÃO",null,null,null,null,null,null,null,null,null,null,null,null,null,null,null,null,null,null,null,null,null,null,"QTDE",null,null,"VALOR \nUNITÁRIO (R$)",null,null,null,null,null,"VALOR \nTOTAL (R$)"]
[null,null,null,null,null,null,null,null,null,null,null,null,null,null,null,null,null,null,null,null,null,null,null,null,null,null,null,null,null,null,null,null,null,null,null,null,null,null,null,{"$f":"IF(OR(AH426=\"\",AE426=\"\"),\"\",AE426*AH426)","v":""},null,null,null,null,null,null,{"$f":"SUM(AV426:AV475)","v":1},1]
[null,null,null,null,null,null,null,null,null,null,null,null,null,null,null,null,null,null,null,null,null,null,null,null,null,null,null,null,null,null,null,null,null,null,null,null,null,null,null,{"$f":"IF(OR(AH427=\"\",AE427=\"\"),\"\",AE427*AH427)","v":""}]
[null,null,null,null,null,null,null,null,null,null,null,null,null,null,null,null,null,null,null,null,null,null,null,null,null,null,null,null,null,null,null,null,null,null,null,null,null,null,null,""]
[null,null,null,null,null,null,null,null,null,null,null,null,null,null,null,null,null,null,null,null,null,null,null,null,null,null,null,null,null,null,null,null,null,null,null,null,null,null,null,""]
[null,null,null,null,null,null,null,null,null,null,null,null,null,null,null,null,null,null,null,null,null,null,null,null,null,null,null,null,null,null,null,null,null,null,null,null,null,null,null,""]
[null,null,null,null,null,null,null,null,null,null,null,null,null,null,null,null,null,null,null,null,null,null,null,null,null,null,null,null,null,null,null,null,null,null,null,null,null,null,null,""]
[null,null,null,null,null,null,null,null,null,null,null,null,null,null,null,null,null,null,null,null,null,null,null,null,null,null,null,null,null,null,null,null,null,null,null,null,null,null,null,""]
[null,null,null,null,null,null,null,null,null,null,null,null,null,null,null,null,null,null,null,null,null,null,null,null,null,null,null,null,null,null,null,null,null,null,null,null,null,null,null,""]
[null,null,null,null,null,null,null,null,null,null,null,null,null,null,null,null,null,null,null,null,null,null,null,null,null,null,null,null,null,null,null,null,null,null,null,null,null,null,null,""]
[null,null,null,null,null,null,null,null,null,null,null,null,null,null,null,null,null,null,null,null,null,null,null,null,null,null,null,null,null,null,null,null,null,null,null,null,null,null,null,""]
[null,null,null,null,null,null,null,null,null,null,null,null,null,null,null,null,null,null,null,null,null,null,null,null,null,null,null,null,null,null,null,null,null,null,null,null,null,null,null,""]
[null,null,null,null,null,null,null,null,null,null,null,null,null,null,null,null,null,null,null,null,null,null,null,null,null,null,null,null,null,null,null,null,null,null,null,null,null,null,null,""]
[null,null,null,null,null,null,null,null,null,null,null,null,null,null,null,null,null,null,null,null,null,null,null,null,null,null,null,null,null,null,null,null,null,null,null,null,null,null,null,""]
[null,null,null,null,null,null,null,null,null,null,null,null,null,null,null,null,null,null,null,null,null,null,null,null,null,null,null,null,null,null,null,null,null,null,null,null,null,null,null,""]
[null,null,null,null,null,null,null,null,null,null,null,null,null,null,null,null,null,null,null,null,null,null,null,null,null,null,null,null,null,null,null,null,null,null,null,null,null,null,null,""]
[null,null,null,null,null,null,null,null,null,null,null,null,null,null,null,null,null,null,null,null,null,null,null,null,null,null,null,null,null,null,null,null,null,null,null,null,null,null,null,""]
[null,null,null,null,null,null,null,null,null,null,null,null,null,null,null,null,null,null,null,null,null,null,null,null,null,null,null,null,null,null,null,null,null,null,null,null,null,null,null,""]
[null,null,null,null,null,null,null,null,null,null,null,null,null,null,null,null,null,null,null,null,null,null,null,null,null,null,null,null,null,null,null,null,null,null,null,null,null,null,null,""]
[null,null,null,null,null,null,null,null,null,null,null,null,null,null,null,null,null,null,null,null,null,null,null,null,null,null,null,null,null,null,null,null,null,null,null,null,null,null,null,""]
[null,null,null,null,null,null,null,null,null,null,null,null,null,null,null,null,null,null,null,null,null,null,null,null,null,null,null,null,null,null,null,null,null,null,null,null,null,null,null,""]
[null,null,null,null,null,null,null,null,null,null,null,null,null,null,null,null,null,null,null,null,null,null,null,null,null,null,null,null,null,null,null,null,null,null,null,null,null,null,null,""]
[null,null,null,null,null,null,null,null,null,null,null,null,null,null,null,null,null,null,null,null,null,null,null,null,null,null,null,null,null,null,null,null,null,null,null,null,null,null,null,""]
[null,null,null,null,null,null,null,null,null,null,null,null,null,null,null,null,null,null,null,null,null,null,null,null,null,null,null,null,null,null,null,null,null,null,null,null,null,null,null,""]
[null,null,null,null,null,null,null,null,null,null,null,null,null,null,null,null,null,null,null,null,null,null,null,null,null,null,null,null,null,null,null,null,null,null,null,null,null,null,null,""]
[null,null,null,null,null,null,null,null,null,null,null,null,null,null,null,null,null,null,null,null,null,null,null,null,null,null,null,null,null,null,null,null,null,null,null,null,null,null,null,""]
[null,null,null,null,null,null,null,null,null,null,null,null,null,null,null,null,null,null,null,null,null,null,null,null,null,null,null,null,null,null,null,null,null,null,null,null,null,null,null,""]
[null,null,null,null,null,null,null,null,null,null,null,null,null,null,null,null,null,null,null,null,null,null,null,null,null,null,null,null,null,null,null,null,null,null,null,null,null,null,null,""]
[null,null,null,null,null,null,null,null,null,null,null,null,null,null,null,null,null,null,null,null,null,null,null,null,null,null,null,null,null,null,null,null,null,null,null,null,null,null,null,""]
[null,null,null,null,null,null,null,null,null,null,null,null,null,null,null,null,null,null,null,null,null,null,null,null,null,null,null,null,null,null,null,null,null,null,null,null,null,null,null,""]
[null,null,null,null,null,null,null,null,null,null,null,null,null,null,null,null,null,null,null,null,null,null,null,null,null,null,null,null,null,null,null,null,null,null,null,null,null,null,null,""]
[null,null,null,null,null,null,null,null,null,null,null,null,null,null,null,null,null,null,null,null,null,null,null,null,null,null,null,null,null,null,null,null,null,null,null,null,null,null,null,""]
[null,null,null,null,null,null,null,null,null,null,null,null,null,null,null,null,null,null,null,null,null,null,null,null,null,null,null,null,null,null,null,null,null,null,null,null,null,null,null,""]
[null,null,null,null,null,null,null,null,null,null,null,null,null,null,null,null,null,null,null,null,null,null,null,null,null,null,null,null,null,null,null,null,null,null,null,null,null,null,null,""]
[null,null,null,null,null,null,null,null,null,null,null,null,null,null,null,null,null,null,null,null,null,null,null,null,null,null,null,null,null,null,null,null,null,null,null,null,null,null,null,""]
[null,null,null,null,null,null,null,null,null,null,null,null,null,null,null,null,null,null,null,null,null,null,null,null,null,null,null,null,null,null,null,null,null,null,null,null,null,null,null,""]
[null,null,null,null,null,null,null,null,null,null,null,null,null,null,null,null,null,null,null,null,null,null,null,null,null,null,null,null,null,null,null,null,null,null,null,null,null,null,null,""]
[null,null,null,null,null,null,null,null,null,null,null,null,null,null,null,null,null,null,null,null,null,null,null,null,null,null,null,null,null,null,null,null,null,null,null,null,null,null,null,""]
[null,null,null,null,null,null,null,null,null,null,null,null,null,null,null,null,null,null,null,null,null,null,null,null,null,null,null,null,null,null,null,null,null,null,null,null,null,null,null,""]
[null,null,null,null,null,null,null,null,null,null,null,null,null,null,null,null,null,null,null,null,null,null,null,null,null,null,null,null,null,null,null,null,null,null,null,null,null,null,null,""]
[null,null,null,null,null,null,null,null,null,null,null,null,null,null,null,null,null,null,null,null,null,null,null,null,null,null,null,null,null,null,null,null,null,null,null,null,null,null,null,""]
[null,null,null,null,null,null,null,null,null,null,null,null,null,null,null,null,null,null,null,null,null,null,null,null,null,null,null,null,null,null,null,null,null,null,null,null,null,null,null,""]
[null,null,null,null,null,null,null,null,null,null,null,null,null,null,null,null,null,null,null,null,null,null,null,null,null,null,null,null,null,null,null,null,null,null,null,null,null,null,null,""]
[null,null,null,null,null,null,null,null,null,null,null,null,null,null,null,null,null,null,null,null,null,null,null,null,null,null,null,null,null,null,null,null,null,null,null,null,null,null,null,""]
[null,null,null,null,null,null,null,null,null,null,null,null,null,null,null,null,null,null,null,null,null,null,null,null,null,null,null,null,null,null,null,null,null,null,null,null,null,null,null,""]
[null,null,null,null,null,null,null,null,null,null,null,null,null,null,null,null,null,null,null,null,null,null,null,null,null,null,null,null,null,null,null,null,null,null,null,null,null,null,null,""]
[null,null,null,null,null,null,null,null,null,null,null,null,null,null,null,null,null,null,null,null,null,null,null,null,null,null,null,null,null,null,null,null,null,null,null,null,null,null,null,""]
[null,null,null,null,null,null,null,null,null,null,null,null,null,null,null,null,null,null,null,null,null,null,null,null,null,null,null,null,null,null,null,null,null,null,null,null,null,null,null,""]
[null,null,null,null,null,null,null,null,null,null,null,null,null,null,null,null,null,null,null,null,null,null,null,null,null,null,null,null,null,null,null,null,null,null,null,null,null,null,null,""]
[null,null,null,null,null,null,null,null,null,null,null,null,null,null,null,null,null,null,null,null,null,null,null,null,null,null,null,null,null,null,null,null,null,null,null,null,null,null,null,""]
[null,null,null,null,null,null,null,null,null,null,null,null,null,null,null,null,null,null,null,null,null,null,null,null,null,null,null,null,null,null,null,null,null,null,null,null,null,null,null,{"$f":"IF(OR(AH475=\"\",AE475=\"\"),\"\",AE475*AH475)","v":""}]
["TOTAL",null,null,null,null,null,null,null,null,null,null,null,null,null,null,null,null,null,null,null,null,null,null,null,null,null,null,null,null,null,{"$f":"IF(SUM(AE426:AG475)=0,\"-\",SUM(AE426:AG475))","v":"-"},null,null,{"$f":"IF(SUM(AH426:AM475)=0,\"-\",SUM(AH426:AM475))","v":"-"},null,null,null,null,null,{"$f":"IF(SUM(AN426:AS475)=0,\"-\",SUM(AN426:AS475))","v":"-"}]
[]
[null,null,null,null,null,null,null,null,null,null,null,"PATRIMÔNIO TOTAL"]
[null,null,null,null,null,null,null,null,null,null,null,{"$f":"A7","v":"I - BENS IMÓVEIS"},null,null,null,null,null,null,null,null,null,null,null,null,null,null,null,null,{"$f":"SUM(AC480:AH482)","v":0}]
[null,null,null,null,null,null,null,null,null,null,null,"RURAIS",null,null,null,null,null,null,null,null,null,null,null,null,null,null,null,null,{"$f":"SUMIF(C10:E109,\"RURAL\",AO10:AS109)","v":0}]
[null,null,null,null,null,null,null,null,null,null,null,"URBANOS",null,null,null,null,null,null,null,null,null,null,null,null,null,null,null,null,{"$f":"SUMIF(C10:E109,\"URBANO\",AO10:AS109)","v":0}]
[null,null,null,null,null,null,null,null,null,null,null,"BENFEITORIAS",null,null,null,null,null,null,null,null,null,null,null,null,null,null,null,null,{"$f":"SUM(AN113:AS162)","v":0}]
[null,null,null,null,null,null,null,null,null,null,null,{"$f":"A165","v":"II - BENS MÓVEIS"},null,null,null,null,null,null,null,null,null,null,null,null,null,null,null,null,{"$f":"SUM(AN168:AS367)","v":0}]
[null,null,null,null,null,null,null,null,null,null,null,"VEÍCULOS",null,null,null,null,null,null,null,null,null,null,null,null,null,null,null,null,{"$f":"SUMIF(A168:F367,\"VEÍCULO\",AN168:AS367)","v":0}]
[null,null,null,null,null,null,null,null,null,null,null,"MÁQUINAS",null,null,null,null,null,null,null,null,null,null,null,null,null,null,null,null,{"$f":"SUMIF(A168:F367,\"MÁQUINA\",AN168:AS367)","v":0}]
[null,null,null,null,null,null,null,null,null,null,null,"EQUIPAMENTOS",null,null,null,null,null,null,null,null,null,null,null,null,null,null,null,null,{"$f":"SUMIF(A168:F367,\"EQUIPAMENTO\",AN168:AS367)","v":0}]
[null,null,null,null,null,null,null,null,null,null,null,{"$f":"A370","v":"III - SEMOVENTES"},null,null,null,null,null,null,null,null,null,null,null,null,null,null,null,null,{"$f":"SUM(AC488:AH489)","v":0}]
[null,null,null,null,null,null,null,null,null,null,null,"BOVINOS",null,null,null,null,null,null,null,null,null,null,null,null,null,null,null,null,{"$f":"SUM(AN373:AS422)","v":0}]
[null,null,null,null,null,null,null,null,null,null,null,"OUTROS ANIMAIS",null,null,null,null,null,null,null,null,null,null,null,null,null,null,null,null,{"$f":"SUM(AN426:AS475)","v":0}]
[null,null,null,null,null,null,null,null,null,null,null,"TOTAL",null,null,null,null,null,null,null,null,null,null,null,null,null,null,null,null,{"$f":"PAT_IMOVEIS+PAT_MOVEIS+PAT_SEMOVENTES","v":0}]
[]
[]
[]
["________________________________________",null,null,null,null,null,null,null,null,null,null,null,null,null,null,null,null,null,null,null,null,null,null,null,null,"________________________________________"]
[{"$f":"UPPER('INFORMAÇÕES GERAIS'!F19)","v":""},null,null,null,null,null,null,null,null,null,null,null,null,null,null,null,null,null,null,null,null,null,null,null,null,{"$f":"UPPER('INFORMAÇÕES GERAIS'!H15)","v":""}]
["Proponente",null,null,null,null,null,null,null,null,null,null,null,null,null,null,null,null,null,null,null,null,null,null,null,null,"Responsável Técnico"]

{"sheet":"REGRAS","index":11,"n_rows":29,"n_cols":5,"rows_kept":29,"cut":false,"hidden":true,"merged":[]}
[null,null,null,null,{"$f":"COUNTIF(B:B,\"OK\")","v":19}]
["DESCRIÇÃO","SITUAÇÃO","PÁGINA"]
["INFORMAÇÕES OBRIGATÓRIAS DA EMPRESA ELABORADORA - AUSENTES",{"$f":"'INFORMAÇÕES GERAIS'!AT7","v":"AUSENTE"},"EMPREENDIMENTO"]
["INFORMAÇÕES OBRIGATÓRIAS DE IDENTIFICAÇÃO DO PROPONENTE  - AUSENTES",{"$f":"'INFORMAÇÕES GERAIS'!AT17","v":"AUSENTE"},"EMPREENDIMENTO"]
["DADOS DE IDENTIFICAÇÃO DO IMÓVEL 1 - AUSENTES",{"$f":"'INFORMAÇÕES GERAIS'!AT29","v":"AUSENTE"},"EMPREENDIMENTO"]
["DADOS DE IDENTIFICAÇÃO DO IMÓVEL 2 - AUSENTES",{"$f":"IF('INFORMAÇÕES GERAIS'!K27<2,\"OK\",'INFORMAÇÕES GERAIS'!AT37)","v":"OK"},"EMPREENDIMENTO"]
["DADOS DE IDENTIFICAÇÃO DO IMÓVEL 3 - AUSENTES",{"$f":"IF('INFORMAÇÕES GERAIS'!K27<3,\"OK\",'INFORMAÇÕES GERAIS'!AT45)","v":"OK"},"EMPREENDIMENTO"]
["EXISTEM CAMPOS NAS INFORMAÇÕES SOBRE O EMPREENDIMENTO QUE NÃO FORAM PREENCHIDOS",{"$f":"'INFORMAÇÕES GERAIS'!AT53","v":"AUSENTE"},"EMPREENDIMENTO"]
["VALOR ORÇADO DEVE TER UM VALOR MAIOR QUE ZERO",{"$f":"IF(VALOR_ORÇADO<=0,\"NÃO\",\"OK\")","v":"NÃO"},"ORÇAMENTO"]
["VALOR FINANCIADO DEVE TER UM VALOR MAIOR QUE ZERO",{"$f":"IF(VALOR_FINANCIADO<=0,\"NÃO\",\"OK\")","v":"NÃO"},"ORÇAMENTO"]
["VALOR FINANCIADO NÃO PODE SER MAIOR QUE VALOR ORÇADO",{"$f":"IF(VALOR_ORÇADO<VALOR_FINANCIADO,\"NÃO\",\"OK\")","v":"OK"},"ORÇAMENTO"]
["UMA OU MAIS LINHAS NA TABELA \"PREPARO DO SOLO - INSUMOS\" SEM CAMPOS PREENCHIDOS",{"$f":"IF(Tabela1[[#Totals],[EM BRANCO]]>0,\"AUSENTE\",\"OK\")","v":"OK"},"ORÇAMENTO"]
["UMA OU MAIS LINHAS NA TABELA \"PREPARO DO SOLO - SERVIÇOS\" SEM CAMPOS PREENCHIDOS",{"$f":"IF(Tabela116[[#Totals],[EM BRANCO]]>0,\"AUSENTE\",\"OK\")","v":"OK"},"ORÇAMENTO"]
["UMA OU MAIS LINHAS NA TABELA \"TRATOS CULTURAIS - INSUMOS\" SEM CAMPOS PREENCHIDOS",{"$f":"IF(Tabela11617[[#Totals],[EM BRANCO]]>0,\"AUSENTE\",\"OK\")","v":"OK"},"ORÇAMENTO"]
["UMA OU MAIS LINHAS NA TABELA \"TRATOS CULTURAIS - SERVIÇOS\" SEM CAMPOS PREENCHIDOS",{"$f":"IF(Tabela1161718[[#Totals],[EM BRANCO]]>0,\"AUSENTE\",\"OK\")","v":"OK"},"ORÇAMENTO"]
["UMA OU MAIS LINHAS NA TABELA \"COLHEITA - INSUMOS\" SEM CAMPOS PREENCHIDOS",{"$f":"IF(Tabela116171821[[#Totals],[EM BRANCO]]>0,\"AUSENTE\",\"OK\")","v":"OK"},"ORÇAMENTO"]
["UMA OU MAIS LINHAS NA TABELA \"COLHEITA - INSUMOS\" SEM PREENCHIDOS",{"$f":"IF(Tabela11617182122[[#Totals],[EM BRANCO]]>0,\"AUSENTE\",\"OK\")","v":"OK"},"ORÇAMENTO"]
["A RENTABILIDADE DO EMPREENDIMENTO DEVE SER POSITIVA",{"$f":"IF('DEMONSTRATIVO DE VIABILIDADE'!G15<=0,\"ERRO\",\"OK\")","v":"ERRO"},"VIABILIDADE"]
["COORDENADAS DO IMÓVEL 1 AUSENTES","OK","IMÓVEIS"]
["COORDENADAS DO IMÓVEL 2 AUSENTES","OK","IMÓVEIS"]
["COORDENADAS DO IMÓVEL 3 AUSENTES","OK","IMÓVEIS"]
["É NECESSÁRIO JUSTIFICATIVA QUANDO NÃO HOUVER A PRODUÇÃO DE 3 ANOS",{"$f":"IF(AND(OR('INFORMAÇÕES GERAIS'!AD89=\"\",'INFORMAÇÕES GERAIS'!AD90=\"\",'INFORMAÇÕES GERAIS'!AD91=\"\"),'INFORMAÇÕES GERAIS'!A93=\"\"),\"AUSENTE\",\"OK\")","v":"AUSENTE"},"EMPREENDIMENTO"]
["É NECESSÁRIO JUSTIFICAR VARIAÇÕES DE PRODUTIVDADE MAIORES QUE 10%","OK","EMPREENDIMENTO"]
["EXISTE UMA OU MAIS LINHAS DE ATIVIDADES AGRÍCOLAS SEM TODOS OS CAMPOS PREENCHIDOS",{"$f":"IF(AND(('CAPACIDADE DE PAGAMENTO'!K9+'CAPACIDADE DE PAGAMENTO'!K31)>('CAPACIDADE DE PAGAMENTO'!M9+'CAPACIDADE DE PAGAMENTO'!M31),'CAPACIDADE DE PAGAMENTO'!K9>=2),\"AUSENTE\",\"OK\")","v":"OK"},"CAPACIDADE GLOBAL"]
["EXISTE UMA OU MAIS LINHAS DE ATIVIDADES PECUÁRIAS SEM TODOS OS CAMPOS PREENCHIDOS",{"$f":"IF(AND(('CAPACIDADE DE PAGAMENTO'!K55+'CAPACIDADE DE PAGAMENTO'!K77>'CAPACIDADE DE PAGAMENTO'!M77+'CAPACIDADE DE PAGAMENTO'!M55),'CAPACIDADE DE PAGAMENTO'!K55>=2),\"AUSENTE\",\"OK\")","v":"OK"},"CAPACIDADE GLOBAL"]
["SOMATÓRIO DAS ÁREAS DOS IMÓVEIS DEVE SER IGUAL À AREA FINANCIADA TOTAL",{"$f":"IF(('INFORMAÇÕES GERAIS'!AP35+'INFORMAÇÕES GERAIS'!AP43+'INFORMAÇÕES GERAIS'!AP51)=ÁREA_FINANCIADA,\"OK\",\"ERRO\")","v":"OK"},"EMPREENDIMENTO"]
["ROTEIRO DE ACESSO DO IMÓVEL 1","OK","IMÓVEIS"]
["ROTEIRO DE ACESSO DO IMÓVEL 2","OK","IMÓVEIS"]
["ROTEIRO DE ACESSO DO IMÓVEL 3","OK","IMÓVEIS"]